Service Area,Service Division,Expense Type,Expense Code,Detailed Expense Type,Payment Date,Transaction Number,Amount Exc VAT,Supplier Name
Regeneration Economy and Growth,Business Durham CL0850,Third Party Payments,430100,Rendered by Private Contractors,01/06/2022,4009469-DBRG-05-2022-34,"1,106.25",LANCHESTER GARDEN CENTRE LTD.
Regeneration Economy and Growth,Business Durham CL0850,Third Party Payments,440999,Other third party payments E440,01/06/2022,4009508-DBRG-05-2022-32,"4,215.00",NORMA LOWTHER CATERING LTD T/A SEVENTEEN BISTRO.
Neighbourhoods and Climate Change,Environmental Services,Third Party Payments,430100,Rendered by Private Contractors,01/06/2022,4009497-14278,637.06,N1 JETTING SYSTEMS LTD.
Neighbourhoods and Climate Change,Environmental Services,Stock A926,926004,Stock,01/06/2022,4009432-1522017745,558.78,HIAB LTD.
Neighbourhoods and Climate Change,Environmental Services,Third Party Payments,430100,Rendered by Private Contractors,01/06/2022,4009497-14277,504.17,N1 JETTING SYSTEMS LTD.
Regeneration Economy and Growth,Corporate Property and Land,Third Party Payments,430100,Rendered by Private Contractors,01/06/2022,4009633-2204,"2,813.04",TRIDENT MAINTENANCE SERVICES LTD.
Regeneration Economy and Growth,Corporate Property and Land,Third Party Payments,430100,Rendered by Private Contractors,01/06/2022,4009580-SDL4265/JCC/22042131,"65,916.98",SIRIUS GEOTECHNICAL LTD.
Neighbourhoods and Climate Change,Technical Services CM0300,Supplies and Services,304999,Equipment and Materials,01/06/2022,4009378-59190,689.95,DEH DESIGNS LTD T/A HUDSONS.
Regeneration Economy and Growth,Business Durham CL0850,Premises,108125,Service Repairs and Maintenance,01/06/2022,4009614-INV-0250,800.00,SWINBURNE HORTICULTURAL SERVICES LTD.
Regeneration Economy and Growth,Business Durham CL0850,Premises,108125,Service Repairs and Maintenance,01/06/2022,4009614-INV-0251,800.00,SWINBURNE HORTICULTURAL SERVICES LTD.
Regeneration Economy and Growth,Development and Housing,Supplies and Services,336005,Advertising E336,01/06/2022,4009556-PL123246,"1,450.00",REDACTIVE PUBLISHING LTD.
Regeneration Economy and Growth,Development and Housing,Supplies and Services,384999,Miscellaneous Expenses,01/06/2022,4009611-25/11/2020,780.00,SUPERIOR HOMES NORTH EAST.
Regeneration Economy and Growth,Transport and Contracted Services,Supplies and Services,342051,Computers and Communications,01/06/2022,4009426-INV-0574,"3,000.00",GRM MAPPING LTD.
Regeneration Economy and Growth,Transport and Contracted Services,Supplies and Services,342051,Computers and Communications,01/06/2022,4009631-INV0090169,"18,917.00",TRAPEZE GROUP (UK) LIMITED.
Regeneration Economy and Growth,Transport and Contracted Services,Supplies and Services,338080,Services,01/06/2022,4009400-4842,"1,632.96",ESP SYSTEX LTD.
Adult and Health Services,Commissioning inc Supporting People,Supplies and Services,352001,Conference Expenses,01/06/2022,4009560-422001,"1,860.00",ROBERT HARRIS T/A CHRONOS SAFETY LTD.
Adult and Health Services,Head of Adults,Supplies and Services,384616,Miscellaneous Expenses,01/06/2022,4009326-2/2223/DEALO,812.68,BERNICIA GROUP LTD.*
Adult and Health Services,Head of Adults,Supplies and Services,384616,Miscellaneous Expenses,01/06/2022,4009326-2/2223/RUSHG,970.00,BERNICIA GROUP LTD.*
Adult and Health Services,Head of Adults,Supplies and Services,384616,Miscellaneous Expenses,01/06/2022,4009326-24/05/2022,604.76,BERNICIA GROUP LTD.*
Resources BK0010,Legal & Democratic Services,Supplies and Services,308011,Furniture,01/06/2022,4009545-INV0988465,"1,374.23",POSTURITE (UK) LTD.
Regeneration Economy and Growth,Communications Management,Supplies and Services,336005,Advertising E336,01/06/2022,4009567-205078,585.00,SAGITTARIAN EMBROIDERY.
Resources BK0010,Digital Services,Supplies and Services,332029,Printing Stationery and Gen Off Exps,01/06/2022,4009579-26335,"1,700.00",SIMPLY STRIPES (THE SIGNMAKERS) LTD.
Resources BK0010,Digital Services,Supplies and Services,332029,Printing Stationery and Gen Off Exps,01/06/2022,4009579-26339,"1,625.00",SIMPLY STRIPES (THE SIGNMAKERS) LTD.
Resources BK0010,HR & Employee Services,Supplies and Services,304040,Equipment and Materials,01/06/2022,4009406-1330,"2,400.00",FACULTY OF OCCUPATIONAL MEDICINE.
Children and Young Peoples Services,Head of Education and Skills,Third Party Payments,440999,Other third party payments E440,01/06/2022,4009581-PO4100749558A,"6,360.27",SMARTT NORTH EAST LTD.
Neighbourhoods and Climate Change,Environmental Services,Supplies and Services,304357,Equipment and Materials,01/06/2022,4009415-DCC150522,"28,697.25",GAP GROUP LTD.
Neighbourhoods and Climate Change,Environmental Services,Transport,210057,Repair and Maintenance of Vehicles,01/06/2022,4009324-35224490,884.89,BELL TRUCK SALES LTD T/A BELL TRUCK & VAN.
Neighbourhoods and Climate Change,Environmental Services,Transport,210057,Repair and Maintenance of Vehicles,01/06/2022,4009380-96423898,"2,496.58",DENNIS EAGLE LTD T/A TERBERG MATEC (UK) LTD.
Neighbourhoods and Climate Change,Environmental Services,Transport,210057,Repair and Maintenance of Vehicles,01/06/2022,4009381-DE11498834,563.29,DENNIS EAGLE LTD.
Neighbourhoods and Climate Change,Environmental Services,Third Party Payments,430101,Rendered by Private Contractors,01/06/2022,4009488-FKL00328,"1,340.25",MCCONECHYS TYRE SERVICE LTD.
Neighbourhoods and Climate Change,Environmental Services,Third Party Payments,430101,Rendered by Private Contractors,01/06/2022,4009488-HOL07204,"1,257.45",MCCONECHYS TYRE SERVICE LTD.
Neighbourhoods and Climate Change,Environmental Services,Third Party Payments,430100,Rendered by Private Contractors,01/06/2022,4009324-46064220,578.92,BELL TRUCK SALES LTD T/A BELL TRUCK & VAN.
Neighbourhoods and Climate Change,Environmental Services,Transport,210057,Repair and Maintenance of Vehicles,01/06/2022,4009425-275846,"1,432.78",GREENLAY T/A THOMAS SHERRIFF & CO LTD.
Neighbourhoods and Climate Change,Environmental Services,Third Party Payments,430101,Rendered by Private Contractors,01/06/2022,4009488-FKL00329,"1,983.95",MCCONECHYS TYRE SERVICE LTD.
Neighbourhoods and Climate Change,Environmental Services,Third Party Payments,430101,Rendered by Private Contractors,01/06/2022,4009488-HOL07203,620.40,MCCONECHYS TYRE SERVICE LTD.
Regeneration Economy and Growth,Culture Sport and Tourism,Premises,145023,Cleaning and Domestic Supplies,01/06/2022,4009424-06/175047,835.96,GREENHAM TRADING LTD.
Regeneration Economy and Growth,Culture Sport and Tourism,Supplies and Services,328041,Clothing uniforms and laundry E328,01/06/2022,4009627-NSIN00075459,794.23,THOMAS OWEN & SONS (NEWCASTLE) LTD.
Neighbourhoods and Climate Change,Community Protection,Third Party Payments,430100,Rendered by Private Contractors,01/06/2022,4009516-915221993,577.82,NORTHUMBRIAN WATER LTD.
Neighbourhoods and Climate Change,Community Protection,Third Party Payments,430100,Rendered by Private Contractors,01/06/2022,4009516-915222000,"1,571.17",NORTHUMBRIAN WATER LTD.
Neighbourhoods and Climate Change,Environmental Services,Third Party Payments,430100,Rendered by Private Contractors,01/06/2022,4009324-36145905,818.00,BELL TRUCK SALES LTD T/A BELL TRUCK & VAN.
Neighbourhoods and Climate Change,Environmental Services,Transport,210057,Repair and Maintenance of Vehicles,01/06/2022,4009380-96423618,"1,925.12",DENNIS EAGLE LTD T/A TERBERG MATEC (UK) LTD.
Neighbourhoods and Climate Change,Environmental Services,Third Party Payments,430101,Rendered by Private Contractors,01/06/2022,4009488-FKL00330,686.75,MCCONECHYS TYRE SERVICE LTD.
Neighbourhoods and Climate Change,Environmental Services,Third Party Payments,430101,Rendered by Private Contractors,01/06/2022,4009488-HOL07202,"1,725.25",MCCONECHYS TYRE SERVICE LTD.
Regeneration Economy and Growth,Culture Sport and Tourism,Premises,106082,Centrally Controlled Rep and Maint,01/06/2022,4009435-7080964996,727.08,HONEYWELL NOVAR SYSTEMS LTD.
Neighbourhoods and Climate Change,Environmental Services,Third Party Payments,430101,Rendered by Private Contractors,01/06/2022,4009488-FKL00327,829.70,MCCONECHYS TYRE SERVICE LTD.
Neighbourhoods and Climate Change,Environmental Services,Third Party Payments,430101,Rendered by Private Contractors,01/06/2022,4009488-HOL07205,"1,412.58",MCCONECHYS TYRE SERVICE LTD.
Neighbourhoods and Climate Change,Environmental Services,Transport,210057,Repair and Maintenance of Vehicles,01/06/2022,4009557-775752,587.14,RICKERBY LTD.
Regeneration Economy and Growth,Corporate Property and Land,Premises,106082,Centrally Controlled Rep and Maint,01/06/2022,4009435-7080964992,635.65,HONEYWELL NOVAR SYSTEMS LTD.
Neighbourhoods and Climate Change,Environmental Services,Supplies and Services,304221,Equipment and Materials,01/06/2022,4009322-99067741,"4,602.38",BALL COLEGRAVE LTD.
Neighbourhoods and Climate Change,Environmental Services,Supplies and Services,304221,Equipment and Materials,01/06/2022,4009322-99067742,"3,798.74",BALL COLEGRAVE LTD.
Neighbourhoods and Climate Change,Environmental Services,Supplies and Services,304221,Equipment and Materials,01/06/2022,4009322-99067743,630.00,BALL COLEGRAVE LTD.
Neighbourhoods and Climate Change,Environmental Services,Transport,215005,Running Costs of Vehicles,01/06/2022,4009656-943452,"6,466.87",YOUR NRG LTD.
Regeneration Economy and Growth,Culture Sport and Tourism,Supplies and Services,336005,Advertising E336,01/06/2022,4009623-6427A,807.00,THE CRACK LTD.
Regeneration Economy and Growth,Culture Sport and Tourism,Supplies and Services,328041,Clothing uniforms and laundry E328,01/06/2022,4009627-NSIN00075155,"1,176.27",THOMAS OWEN & SONS (NEWCASTLE) LTD.
Regeneration Economy and Growth,Culture Sport and Tourism,Supplies and Services,328041,Clothing uniforms and laundry E328,01/06/2022,4009627-NSIN00075757,"1,185.72",THOMAS OWEN & SONS (NEWCASTLE) LTD.
Regeneration Economy and Growth,Corporate Property and Land,Premises,106080,Centrally Controlled Rep and Maint,01/06/2022,4009435-7080963920,"2,206.41",HONEYWELL NOVAR SYSTEMS LTD.
Regeneration Economy and Growth,Corporate Property and Land,Premises,108099,Service Repairs and Maintenance,01/06/2022,4009393-93183,"1,113.50",EIAT UK LTD (ELECTRICAL INSTALLATION & APPLIANCE TESTING UK).
Regeneration Economy and Growth,Corporate Property and Land,Premises,108099,Service Repairs and Maintenance,01/06/2022,4009393-93281,"1,011.50",EIAT UK LTD (ELECTRICAL INSTALLATION & APPLIANCE TESTING UK).
Neighbourhoods and Climate Change,Technical Services CM0300,Stock A926,926900,Stock in hand-Inventory system,01/06/2022,4009424-06/176130,515.34,GREENHAM TRADING LTD.
Neighbourhoods and Climate Change,Technical Services CM0300,Stock A926,926900,Stock in hand-Inventory system,01/06/2022,4009424-06/176162,"5,673.02",GREENHAM TRADING LTD.
Neighbourhoods and Climate Change,Technical Services CM0300,Supplies and Services,338066,Services,01/06/2022,4009523-A225832,"10,420.94",OPENREACH LLU.
Neighbourhoods and Climate Change,Technical Services CM0300,Supplies and Services,304221,Equipment and Materials,01/06/2022,4009424-06/175649,"2,730.76",GREENHAM TRADING LTD.
Neighbourhoods and Climate Change,Technical Services CM0300,Supplies and Services,304252,Equipment and Materials,01/06/2022,4009415-412695565,"1,367.56",GAP GROUP LTD.
Regeneration Economy and Growth,Corporate Property and Land,Third Party Payments,430100,Rendered by Private Contractors,01/06/2022,4009413-2916,"1,689.60",FT LEISURE LTD.
Regeneration Economy and Growth,Corporate Property and Land,Third Party Payments,430100,Rendered by Private Contractors,01/06/2022,4009524-11547-06,"1,199.70",OPUS BUILDING SERVICES LTD.
Regeneration Economy and Growth,Corporate Property and Land,Third Party Payments,430100,Rendered by Private Contractors,01/06/2022,4009610-180714,983.64,SUPATINT LTD T/A SUPATINT WINDOW FILMS & BLINDS.
Regeneration Economy and Growth,Corporate Property and Land,Supplies and Services,304221,Equipment and Materials,01/06/2022,4009617-JE023741TLHLB,830.00,T MANNERS & SONS LTD.
Regeneration Economy and Growth,Corporate Property and Land,Supplies and Services,304221,Equipment and Materials,01/06/2022,4009476-5381834,"5,466.43",LONDON GENERAL SALES LTD.
Regeneration Economy and Growth,Corporate Property and Land,Third Party Payments,430100,Rendered by Private Contractors,01/06/2022,4009524-11469-61,909.60,OPUS BUILDING SERVICES LTD.
Regeneration Economy and Growth,Corporate Property and Land,Supplies and Services,304252,Equipment and Materials,01/06/2022,4009415-007122328,880.00,GAP GROUP LTD.
Regeneration Economy and Growth,Corporate Property and Land,Supplies and Services,304221,Equipment and Materials,01/06/2022,4009616-805678,572.96,T CROSSLING & CO LTD.
Regeneration Economy and Growth,Corporate Property and Land,Third Party Payments,430100,Rendered by Private Contractors,01/06/2022,4009452-50288,588.00,JBL SERVICES LTD.
Regeneration Economy and Growth,Corporate Property and Land,Third Party Payments,430100,Rendered by Private Contractors,01/06/2022,4009452-50293,792.00,JBL SERVICES LTD.
Regeneration Economy and Growth,Corporate Property and Land,Third Party Payments,430100,Rendered by Private Contractors,01/06/2022,4009524-11469-94,914.10,OPUS BUILDING SERVICES LTD.
Regeneration Economy and Growth,Corporate Property and Land,Third Party Payments,430100,Rendered by Private Contractors,01/06/2022,4009320-2165,"2,190.00",AWR ROOFING & ALUMIN RAINWATER SYSTEMS LTD.
Regeneration Economy and Growth,Corporate Property and Land,Premises,108099,Service Repairs and Maintenance,01/06/2022,4009644-INV-1677,"1,033.50",WATER SOLUTIONS (EUROPE) LTD.
Regeneration Economy and Growth,Development and Housing,Supplies and Services,384197,Miscellaneous Expenses,01/06/2022,4009334-0030589,748.15,BOX-IT NORTH.
Regeneration Economy and Growth,Development and Housing,Employees,080025,Agency Staff,01/06/2022,4009420-2459952,"162,307.98",GEOMETRIC RESULTS INTERNATIONAL.
Regeneration Economy and Growth,Development and Housing,Third Party Payments,440999,Other third party payments E440,01/06/2022,4009455-210,"10,667.45",JIGSAW RECOVERY PROJECT CIC.
Regeneration Economy and Growth,Corporate Property and Land,Premises,120009,Energy Costs,01/06/2022,4009519-IN03122854REPROVIDE,823.30,NPOWER.
Regeneration Economy and Growth,Development and Housing,Fees,901002,Consultants fees 901002,01/06/2022,4009331-SIN033761,"306,718.08",BLOOM PROCUREMENT SERVICES LTD (FORMERLY NEPRO LTD).
Adult and Health Services,Head of Adults,Supplies and Services,338366,Services,01/06/2022,4009342-83859,"1,170.44",CARE ABILITY HEALTHCARE LTD.
Adult and Health Services,Head of Adults,Supplies and Services,338366,Services,01/06/2022,4009342-84039,957.57,CARE ABILITY HEALTHCARE LTD.
Adult and Health Services,Head of Adults,Supplies and Services,338366,Services,01/06/2022,4009342-84040,889.08,CARE ABILITY HEALTHCARE LTD.
Adult and Health Services,Commissioning inc Supporting People,Third Party Payments,479111,Purchase of Care,01/06/2022,4009314-INV-2125,"1,046.50",APM CLEANING LTD.
Adult and Health Services,Commissioning inc Supporting People,Third Party Payments,479101,Purchase of Care,01/06/2022,4009407-APR22-0034,"55,500.00",FAMILY ACTION T/A PAC-UK LTD.
Adult and Health Services,Head of Adults,Third Party Payments,470101,Purchase of Care,01/06/2022,4009366-32,"1,416.00",COUNT CARE SERVICES LTD.
Adult and Health Services,Head of Adults,Third Party Payments,470101,Purchase of Care,01/06/2022,4009510-0000060111,"4,064.60",NORTH EAST AUTISM SOCIETY.
Adult and Health Services,Head of Adults,Third Party Payments,478151,Purchase of Care,01/06/2022,4009333-CB36,"4,155.43",BONDCARE WILLINGTON LTD.
Adult and Health Services,Head of Adults,Third Party Payments,478151,Purchase of Care,01/06/2022,4009491-31,"1,800.00",MOORLAND HOLDINGS (NE) LTD.
Regeneration Economy and Growth,Culture Sport and Tourism,Fees,901002,Consultants fees 901002,01/06/2022,4009549-YOR003985,"7,622.50",PURCELL ARCHITECTURE LTD.
Adult and Health Services,Public Health CC0450,Third Party Payments,460803,Contract Payments,01/06/2022,4009505-7310026105,"8,789.00",NHS NORTH OF ENGLAND CSU.
Adult and Health Services,Public Health CC0450,Third Party Payments,460803,Contract Payments,01/06/2022,4009515-7550002463,600.00,NORTHUMBRIA HEALTHCARE NHS FOUNDATION TRUST.
Adult and Health Services,Public Health CC0450,Supplies and Services,384899,Miscellaneous Expenses,01/06/2022,4009368-3910020049,"46,747.23",COUNTY DURHAM & DARLINGTON NHS FOUNDATION TRUST (CDDFT).
Adult and Health Services,Public Health CC0450,Supplies and Services,304259,Equipment and Materials,01/06/2022,4009544-900962327,688.98,PORTAKABIN LTD.
Resources BK0010,Transactional & Customer Services,Supplies and Services,338066,Services,01/06/2022,4009359-C/BN242569,704.20,CIVICA UK LTD.
Resources BK0010,Transactional & Customer Services,Supplies and Services,338066,Services,01/06/2022,4009359-C/BN242889,700.88,CIVICA UK LTD.
Resources BK0010,Transactional & Customer Services,Supplies and Services,342055,Computers and Communications,01/06/2022,4009359-C/RB244309,"2,400.00",CIVICA UK LTD.
Resources BK0010,Transactional & Customer Services,Supplies and Services,304040,Equipment and Materials,01/06/2022,4009359-C/BN244140,"8,457.62",CIVICA UK LTD.
Resources BK0010,Digital Services,Supplies and Services,342033,Computers and Communications,01/06/2022,4009615-140729,"4,986.56",SWITCHSHOP LTD.
Resources BK0010,Digital Services,Supplies and Services,344131,Telephones,01/06/2022,4009615-140730,"4,986.56",SWITCHSHOP LTD.
Resources BK0010,Digital Services,Supplies and Services,344131,Telephones,01/06/2022,4009615-140731,"4,986.56",SWITCHSHOP LTD.
Resources BK0010,Digital Services,Supplies and Services,332029,Printing Stationery and Gen Off Exps,01/06/2022,4009546-705643,550.00,POTTS PRINTERS LTD.
Resources BK0010,Digital Services,Supplies and Services,342033,Computers and Communications,01/06/2022,4009615-140689,"15,299.16",SWITCHSHOP LTD.
Resources BK0010,Digital Services,Supplies and Services,344131,Telephones,01/06/2022,4009655-SI-1856779,761.06,YORKSHIRE PURCHASING ORGANISATION.
Resources BK0010,Procurement Sales & Business Services,Supplies and Services,342053,Computers and Communications,01/06/2022,4009622-1021130,"30,859.29",THE COPYRIGHT LICENSING AGENCY LTD.
Resources BK0010,Legal & Democratic Services,Supplies and Services,338042,Services,01/06/2022,4009634-297369/INVLM172,"1,030.00",TRINITY CHAMBERS.
Resources BK0010,HR & Employee Services,Supplies and Services,338094,Services,01/06/2022,4009624-6708,706.00,THE DURHAM CENTRE LTD.
Resources BK0010,HR & Employee Services,Supplies and Services,338094,Services,01/06/2022,4009624-6715,846.00,THE DURHAM CENTRE LTD.
Resources BK0010,HR & Employee Services,Supplies and Services,338094,Services,01/06/2022,4009624-6724,818.00,THE DURHAM CENTRE LTD.
Children and Young Peoples Services,Head of Education and Skills,Transport,230034,Contract Hire,01/06/2022,4009542-3422-MAY22,985.15,PETER`S TAXIS.
Children and Young Peoples Services,Head of Education and Skills,Construction work A908,908105,Construction work,01/06/2022,4009478-158360,880.00,LUCION ENVIRONMENTAL LLP LTD.
Children and Young Peoples Services,Head of Education and Skills,Transport,230007,Contract Hire,01/06/2022,4009542-2088-MAY22,950.00,PETER`S TAXIS.
Children and Young Peoples Services,Head of Education and Skills,Construction work A908,908105,Construction work,01/06/2022,4009478-158364,880.00,LUCION ENVIRONMENTAL LLP LTD.
Children and Young Peoples Services,Head of Education and Skills,Transfer Payments,510034,School Children,01/06/2022,4009330-LACPPSUMMERTERM22-23,"1,200.00",BISHOP HOGARTH CATHOLIC EDUCATION TRUST.
Children and Young Peoples Services,Head of Education and Skills,Transport,230007,Contract Hire,01/06/2022,4009417-23560-4034,"2,641.00",GARNETTS LTD (COACHES).
Children and Young Peoples Services,Head of Education and Skills,Transport,230007,Contract Hire,01/06/2022,4009417-23560-4035,"2,755.00",GARNETTS LTD (COACHES).
Children and Young Peoples Services,Head of Education and Skills,Transport,230007,Contract Hire,01/06/2022,4009417-23560-4037,"5,282.00",GARNETTS LTD (COACHES).
Children and Young Peoples Services,Head of Education and Skills,Transport,230007,Contract Hire,01/06/2022,4009417-23560-4038,"3,135.00",GARNETTS LTD (COACHES).
Children and Young Peoples Services,Head of Education and Skills,Transport,230003,Contract Hire,01/06/2022,4009417-23562-3302,"3,526.78",GARNETTS LTD (COACHES).
Children and Young Peoples Services,Head of Education and Skills,Transport,230034,Contract Hire,01/06/2022,4009542-3482-MAY22,"1,520.00",PETER`S TAXIS.
Children and Young Peoples Services,Head of Education and Skills,Transport,230007,Contract Hire,01/06/2022,4009417-23565,"2,935.69",GARNETTS LTD (COACHES).
Children and Young Peoples Services,Head of Education and Skills,Transport,230003,Contract Hire,01/06/2022,4009417-23561-3020,"2,837.27",GARNETTS LTD (COACHES).
Children and Young Peoples Services,Head of Education and Skills,Transport,230003,Contract Hire,01/06/2022,4009417-23561-3024,"2,344.60",GARNETTS LTD (COACHES).
Children and Young Peoples Services,Head of Education and Skills,Transport,230003,Contract Hire,01/06/2022,4009417-23561-3027,"2,502.30",GARNETTS LTD (COACHES).
Children and Young Peoples Services,Head of Education and Skills,Transport,230003,Contract Hire,01/06/2022,4009417-23561-3028,"2,738.66",GARNETTS LTD (COACHES).
Children and Young Peoples Services,Head of Education and Skills,Transport,230007,Contract Hire,01/06/2022,4009417-23561-3029,"2,817.51",GARNETTS LTD (COACHES).
Children and Young Peoples Services,Head of Education and Skills,Transport,230007,Contract Hire,01/06/2022,4009417-23561-3199,"2,679.57",GARNETTS LTD (COACHES).
Children and Young Peoples Services,Head of Education and Skills,Transport,230007,Contract Hire,01/06/2022,4009417-23559-3007,"2,812.00",GARNETTS LTD (COACHES).
Children and Young Peoples Services,Head of Education and Skills,Transport,230007,Contract Hire,01/06/2022,4009417-23559-3315,"2,641.00",GARNETTS LTD (COACHES).
Children and Young Peoples Services,Head of Education and Skills,Transport,230007,Contract Hire,01/06/2022,4009417-23559-3435,"3,572.00",GARNETTS LTD (COACHES).
Children and Young Peoples Services,Head of Education and Skills,Transport,230007,Contract Hire,01/06/2022,4009417-23557,"6,042.00",GARNETTS LTD (COACHES).
Children and Young Peoples Services,Head of Education and Skills,Construction work A908,908105,Construction work,01/06/2022,4009478-158354,"2,245.00",LUCION ENVIRONMENTAL LLP LTD.
Children and Young Peoples Services,Head of Education and Skills,Transport,230007,Contract Hire,01/06/2022,4009417-23558,"11,324.00",GARNETTS LTD (COACHES).
Children and Young Peoples Services,Head of Education and Skills,Transport,230007,Contract Hire,01/06/2022,4009417-23555,"4,905.99",GARNETTS LTD (COACHES).
Children and Young Peoples Services,Head of Education and Skills,Transport,230003,Contract Hire,01/06/2022,4009417-23562-3301,"3,526.78",GARNETTS LTD (COACHES).
Children and Young Peoples Services,Head of Education and Skills,Transport,230003,Contract Hire,01/06/2022,4009417-23562-3303,"3,526.78",GARNETTS LTD (COACHES).
Children and Young Peoples Services,Head of Education and Skills,Transport,230034,Contract Hire,01/06/2022,4009542-5294-MAY-2,936.75,PETER`S TAXIS.
Children and Young Peoples Services,Head of Education and Skills,Transport,230007,Contract Hire,01/06/2022,4009417-23556,"4,827.33",GARNETTS LTD (COACHES).
Children and Young Peoples Services,Head of Education and Skills,Transport,230008,Contract Hire,01/06/2022,4009408-N340-005,"3,306.00",FERRYHILL VILLAGE TRAVEL & BROOM ROAD GARAGE LIMITED.
Children and Young Peoples Services,Head of Education and Skills,Transport,230008,Contract Hire,01/06/2022,4009417-23574,"4,681.16",GARNETTS LTD (COACHES).
Children and Young Peoples Services,Head of Education and Skills,Transport,230008,Contract Hire,01/06/2022,4009423-89,"1,657.24",GP TAXIS.
Children and Young Peoples Services,Head of Education and Skills,Transport,230008,Contract Hire,01/06/2022,4009417-23564,"3,073.63",GARNETTS LTD (COACHES).
Children and Young Peoples Services,Head of Education and Skills,Transport,230006,Contract Hire,01/06/2022,4009542-F789-MAY,"1,500.00",PETER`S TAXIS.
Children and Young Peoples Services,Head of Childrens Social Care,Third Party Payments,425021,Rendered by Voluntary Organisations,01/06/2022,4009318-INV-1635,"26,455.00",ARTEMIS SUPPORT LTD.
Children and Young Peoples Services,Head of Childrens Social Care,Third Party Payments,440046,Other third party payments E440,01/06/2022,4009346-22268,"7,110.00",CASTLE VIEW GROUP TRAINING.
Children and Young Peoples Services,Head of Childrens Social Care,Third Party Payments,440046,Other third party payments E440,01/06/2022,4009346-22270,"14,231.25",CASTLE VIEW GROUP TRAINING.
Children and Young Peoples Services,Head of Childrens Social Care,Third Party Payments,440046,Other third party payments E440,01/06/2022,4009346-22273,"6,720.00",CASTLE VIEW GROUP TRAINING.
Children and Young Peoples Services,Head of Childrens Social Care,Third Party Payments,440046,Other third party payments E440,01/06/2022,4009455-209,"2,887.78",JIGSAW RECOVERY PROJECT CIC.
Children and Young Peoples Services,Head of Childrens Social Care,Third Party Payments,440046,Other third party payments E440,01/06/2022,4009455-214,"9,106.80",JIGSAW RECOVERY PROJECT CIC.
Children and Young Peoples Services,Head of Childrens Social Care,Third Party Payments,440046,Other third party payments E440,01/06/2022,4009455-215,"10,136.80",JIGSAW RECOVERY PROJECT CIC.
Children and Young Peoples Services,Head of Childrens Social Care,Third Party Payments,440046,Other third party payments E440,01/06/2022,4009647-INV-3299,"4,243.40",WE CARE RECRUITMENT SOLUTIONS LTD.
Children and Young Peoples Services,Head of Childrens Social Care,Third Party Payments,440046,Other third party payments E440,01/06/2022,4009647-INV-3301,"2,188.00",WE CARE RECRUITMENT SOLUTIONS LTD.
Children and Young Peoples Services,Head of Childrens Social Care,Third Party Payments,440046,Other third party payments E440,01/06/2022,4009647-INV-3303,"3,767.10",WE CARE RECRUITMENT SOLUTIONS LTD.
Children and Young Peoples Services,Head of Childrens Social Care,Third Party Payments,440046,Other third party payments E440,01/06/2022,4009647-INV-3314,"1,200.00",WE CARE RECRUITMENT SOLUTIONS LTD.
Children and Young Peoples Services,Head of Childrens Social Care,Third Party Payments,440046,Other third party payments E440,01/06/2022,4009647-INV-3316,750.00,WE CARE RECRUITMENT SOLUTIONS LTD.
Children and Young Peoples Services,Head of Early Help Inclusion & Vulnerable Children.,Premises,108251,Service Repairs and Maintenance,01/06/2022,4009313-330971,595.49,APEX RADIO SYSTEMS LTD.
Children and Young Peoples Services,Head of Early Help Inclusion & Vulnerable Children.,Premises,145023,Cleaning and Domestic Supplies,01/06/2022,4009424-06/175064,525.50,GREENHAM TRADING LTD.
Regeneration Economy and Growth,Culture Sport and Tourism,Supplies and Services,384999,Miscellaneous Expenses,01/06/2022,4009637-2001720,"4,000.00",USHAW COLLEGE.
Regeneration Economy and Growth,Culture Sport and Tourism,Supplies and Services,336005,Advertising E336,01/06/2022,4009360-0104206515,"1,299.99",CLEAR CHANNEL UK LTD.
Regeneration Economy and Growth,Culture Sport and Tourism,Third Party Payments,430131,Rendered by Private Contractors,01/06/2022,4009512-4430,560.00,NORTH EAST DANCE CIC.
Adult and Health Services,Head of Adults,Third Party Payments,473101,Purchase of Care,01/06/2022,4009625-I-22-4832352,"1,031.27",THE HOSPITAL OF GOD AT GREATHAM.
Adult and Health Services,Head of Adults,Third Party Payments,478151,Purchase of Care,01/06/2022,4009433-HLC669,"7,838.44",HIGHLEA CARE LTD.
Adult and Health Services,Head of Adults,Third Party Payments,478151,Purchase of Care,01/06/2022,4009433-HLC670,"6,905.60",HIGHLEA CARE LTD.
Adult and Health Services,Head of Adults,Third Party Payments,478151,Purchase of Care,01/06/2022,4009433-HLC671,"3,159.83",HIGHLEA CARE LTD.
Regeneration Economy and Growth,Culture Sport and Tourism,Supplies and Services,304083,Equipment and Materials,01/06/2022,4009397-203277,669.00,ENGLISH LAKES ICE CREAM LTD.
Regeneration Economy and Growth,Culture Sport and Tourism,Supplies and Services,338047,Services,01/06/2022,4009353-ZL1050,"1,000.00",CIEKABAILEY ASSOCIATES.
Regeneration Economy and Growth,Corporate Property and Land,Premises,150005,Apportioned Exps of Operational Blds,01/06/2022,4009475-22135,515.27,LOFTHOUSE & PARTNERS LTD.
Regeneration Economy and Growth,Corporate Property and Land,Premises,150005,Apportioned Exps of Operational Blds,01/06/2022,4009475-22136,515.27,LOFTHOUSE & PARTNERS LTD.
Regeneration Economy and Growth,Development and Housing,Construction work A908,908105,Construction work,01/06/2022,4009350-RES-05-2022-491,"269,257.00",CHAPTER HOMES (DURHAM) LTD.
Regeneration Economy and Growth,Development and Housing,Fees,901002,Consultants fees 901002,01/06/2022,4009498-2021-291,540.00,NATURALLY WILD CONSULTANTS LTD.
Regeneration Economy and Growth,Development and Housing,Cap Exp on Grants & Other Financial Assistance (REFCUS),918501,Exp assets not owned by authority,01/06/2022,4009480-RES-05-2022-486,"9,342.00",M & R DEVELOPMENTS & CONTRACTORS LTD.
Adult and Health Services,Commissioning inc Supporting People,Third Party Payments,442002,Supporting People E442,01/06/2022,4009532-A432-190522,"10,612.00",PACT HOUSE STANLEY.
Children and Young Peoples Services,Head of Education and Skills,Supplies and Services,338027,Services,01/06/2022,4009586-RES-05-2022-457,511.42,SOUTH TYNESIDE COUNCIL.
Children and Young Peoples Services,Head of Education and Skills,Transfer Payments,510034,School Children,01/06/2022,317821-LACPPSUMMER2223OOC,"1,200.00",BALLYHASS NATIONAL SCHOOL.
Children and Young Peoples Services,Head of Education and Skills,Transfer Payments,510034,School Children,01/06/2022,317848-LACPPSUMMER2223OOC,"1,200.00",OXCLOSE COMMUNITY ACADEMY.
Children and Young Peoples Services,Head of Childrens Social Care,Third Party Payments,440046,Other third party payments E440,01/06/2022,4009493-CAL019,"3,900.00",MOVING UP CARE LTD.
Children and Young Peoples Services,Head of Childrens Social Care,Third Party Payments,440046,Other third party payments E440,01/06/2022,4009493-CBE007,"4,400.00",MOVING UP CARE LTD.
Children and Young Peoples Services,Head of Childrens Social Care,Third Party Payments,440046,Other third party payments E440,01/06/2022,4009493-EPR009,"9,600.00",MOVING UP CARE LTD.
Children and Young Peoples Services,Head of Childrens Social Care,Third Party Payments,440046,Other third party payments E440,01/06/2022,4009493-GB012,"9,760.00",MOVING UP CARE LTD.
Children and Young Peoples Services,Head of Childrens Social Care,Third Party Payments,440046,Other third party payments E440,01/06/2022,4009493-JFH012,"2,300.00",MOVING UP CARE LTD.
Children and Young Peoples Services,Head of Childrens Social Care,Third Party Payments,440046,Other third party payments E440,01/06/2022,4009493-KBR005,"4,300.00",MOVING UP CARE LTD.
Children and Young Peoples Services,Head of Childrens Social Care,Third Party Payments,440046,Other third party payments E440,01/06/2022,4009493-KL012,"4,975.00",MOVING UP CARE LTD.
Children and Young Peoples Services,Head of Childrens Social Care,Third Party Payments,440046,Other third party payments E440,01/06/2022,4009493-KST010,"5,600.00",MOVING UP CARE LTD.
Children and Young Peoples Services,Head of Childrens Social Care,Third Party Payments,440046,Other third party payments E440,01/06/2022,4009493-NH012,"7,250.00",MOVING UP CARE LTD.
Regeneration Economy and Growth,Transport and Contracted Services,Supplies and Services,336005,Advertising E336,01/06/2022,4009309-DCCDUR-160486INV,"1,595.00",REDACTED - PAYMENT TO INDIVIDUAL
Adult and Health Services,Head of Adults,Third Party Payments,478101,Purchase of Care,01/06/2022,4009375-031,"1,282.40",REDACTED - PAYMENT TO INDIVIDUAL
Children and Young Peoples Services,Head of Early Help Inclusion & Vulnerable Children.,Supplies and Services,384409,Miscellaneous Expenses,01/06/2022,4009311-284,"7,200.00",REDACTED - PAYMENT TO INDIVIDUAL
Neighbourhoods and Climate Change,Technical Services CM0300,Third Party Payments,430127,Rendered by Private Contractors,01/06/2022,4009496-5624,"7,238.00",REDACTED - PAYMENT TO INDIVIDUAL
Neighbourhoods and Climate Change,Technical Services CM0300,Third Party Payments,430127,Rendered by Private Contractors,01/06/2022,4009496-5625,"5,758.50",REDACTED - PAYMENT TO INDIVIDUAL
Regeneration Economy and Growth,Business Durham CL0850,Third Party Payments,440999,Other third party payments E440,01/06/2022,4009584-DBRG-05-2022-31,"6,225.00",REDACTED - PAYMENT TO INDIVIDUAL
Adult and Health Services,Head of Adults,Transport,230005,Contract Hire,01/06/2022,4009310-00521,"1,424.00",REDACTED - PAYMENT TO INDIVIDUAL
Adult and Health Services,Head of Adults,Transport,230005,Contract Hire,01/06/2022,4009539-SLD011-MAY22,"1,518.99",REDACTED - PAYMENT TO INDIVIDUAL
Adult and Health Services,Head of Adults,Transport,230005,Contract Hire,01/06/2022,4009310-00525,"2,740.00",REDACTED - PAYMENT TO INDIVIDUAL
Adult and Health Services,Head of Adults,Transport,230005,Contract Hire,01/06/2022,4009458-01052022,"1,455.66",REDACTED - PAYMENT TO INDIVIDUAL
Adult and Health Services,Head of Adults,Transport,230005,Contract Hire,01/06/2022,4009606-002-MAY,680.00,REDACTED - PAYMENT TO INDIVIDUAL
Resources BK0010,Legal & Democratic Services,Supplies and Services,338105,Services,01/06/2022,4009387-JRB-05-2022-JC,"1,522.95",REDACTED - PAYMENT TO INDIVIDUAL
Children and Young Peoples Services,Head of Education and Skills,Transport,230012,Contract Hire,01/06/2022,4009310-00528,"3,083.04",REDACTED - PAYMENT TO INDIVIDUAL
Children and Young Peoples Services,Head of Education and Skills,Transport,230034,Contract Hire,01/06/2022,4009606-001,"2,041.80",REDACTED - PAYMENT TO INDIVIDUAL
Children and Young Peoples Services,Head of Education and Skills,Transport,230007,Contract Hire,01/06/2022,4009502-281,"2,020.27",REDACTED - PAYMENT TO INDIVIDUAL
Children and Young Peoples Services,Head of Education and Skills,Transport,230008,Contract Hire,01/06/2022,4009457-91-MAY,"3,040.00",REDACTED - PAYMENT TO INDIVIDUAL
Children and Young Peoples Services,Head of Education and Skills,Transport,230008,Contract Hire,01/06/2022,4009457-93-MAY,"1,900.00",REDACTED - PAYMENT TO INDIVIDUAL
Children and Young Peoples Services,Head of Education and Skills,Transport,230008,Contract Hire,01/06/2022,4009457-98-MAY,"4,180.00",REDACTED - PAYMENT TO INDIVIDUAL
Children and Young Peoples Services,Head of Education and Skills,Transport,230008,Contract Hire,01/06/2022,4009457-94-MAY,"3,386.64",REDACTED - PAYMENT TO INDIVIDUAL
Children and Young Peoples Services,Head of Education and Skills,Transport,230008,Contract Hire,01/06/2022,4009457-95-MAY,"3,610.00",REDACTED - PAYMENT TO INDIVIDUAL
Children and Young Peoples Services,Head of Education and Skills,Transport,230016,Contract Hire,01/06/2022,4009310-00526,"2,880.00",REDACTED - PAYMENT TO INDIVIDUAL
Children and Young Peoples Services,Head of Education and Skills,Transport,230008,Contract Hire,01/06/2022,4009457-97-MAY,"3,610.00",REDACTED - PAYMENT TO INDIVIDUAL
Children and Young Peoples Services,Head of Education and Skills,Transport,230008,Contract Hire,01/06/2022,4009539-E007-MAY22,"1,862.00",REDACTED - PAYMENT TO INDIVIDUAL
Children and Young Peoples Services,Head of Education and Skills,Transport,230008,Contract Hire,01/06/2022,4009539-E014-MAY22,"2,190.70",REDACTED - PAYMENT TO INDIVIDUAL
Children and Young Peoples Services,Head of Education and Skills,Transport,230008,Contract Hire,01/06/2022,4009539-E025-MAY22,"2,306.60",REDACTED - PAYMENT TO INDIVIDUAL
Children and Young Peoples Services,Head of Education and Skills,Transport,230008,Contract Hire,01/06/2022,4009539-E051-MAY22,"2,565.00",REDACTED - PAYMENT TO INDIVIDUAL
Children and Young Peoples Services,Head of Education and Skills,Transport,230008,Contract Hire,01/06/2022,4009539-E061-MAY-1,"1,701.72",REDACTED - PAYMENT TO INDIVIDUAL
Children and Young Peoples Services,Head of Education and Skills,Transport,230008,Contract Hire,01/06/2022,4009539-E061-MAY-2,"1,860.80",REDACTED - PAYMENT TO INDIVIDUAL
Children and Young Peoples Services,Head of Education and Skills,Transport,230008,Contract Hire,01/06/2022,4009310-00523,"3,800.00",REDACTED - PAYMENT TO INDIVIDUAL
Children and Young Peoples Services,Head of Education and Skills,Transport,230008,Contract Hire,01/06/2022,4009310-00507,"3,240.00",REDACTED - PAYMENT TO INDIVIDUAL
Children and Young Peoples Services,Head of Education and Skills,Transport,230008,Contract Hire,01/06/2022,4009457-90-MAY,"1,440.00",REDACTED - PAYMENT TO INDIVIDUAL
Children and Young Peoples Services,Head of Education and Skills,Transport,230016,Contract Hire,01/06/2022,4009457-92-MAY,"3,640.00",REDACTED - PAYMENT TO INDIVIDUAL
Children and Young Peoples Services,Head of Education and Skills,Transport,230008,Contract Hire,01/06/2022,4009539-M066-MAY22,"1,962.00",REDACTED - PAYMENT TO INDIVIDUAL
Children and Young Peoples Services,Head of Education and Skills,Transport,230008,Contract Hire,01/06/2022,4009539-N053-MAY22,"1,120.00",REDACTED - PAYMENT TO INDIVIDUAL
Children and Young Peoples Services,Head of Education and Skills,Transport,230008,Contract Hire,01/06/2022,4009310-00529,"2,790.54",REDACTED - PAYMENT TO INDIVIDUAL
Children and Young Peoples Services,Head of Education and Skills,Transport,230006,Contract Hire,01/06/2022,4009310-00520,"1,545.50",REDACTED - PAYMENT TO INDIVIDUAL
Children and Young Peoples Services,Head of Education and Skills,Transport,230006,Contract Hire,01/06/2022,4009310-00524,770.00,REDACTED - PAYMENT TO INDIVIDUAL
Children and Young Peoples Services,Head of Education and Skills,Transport,230006,Contract Hire,01/06/2022,4009539-F180-MAY22,"1,430.00",REDACTED - PAYMENT TO INDIVIDUAL
Children and Young Peoples Services,Head of Education and Skills,Transport,230006,Contract Hire,01/06/2022,4009605-F859-MAY,"1,400.88",REDACTED - PAYMENT TO INDIVIDUAL
Children and Young Peoples Services,Head of Education and Skills,Transport,230006,Contract Hire,01/06/2022,4009606-003-MAY,"1,501.68",REDACTED - PAYMENT TO INDIVIDUAL
Regeneration Economy and Growth,Culture Sport and Tourism,Supplies and Services,384199,Miscellaneous Expenses,01/06/2022,4009351-CM305,"3,090.00",REDACTED - PAYMENT TO INDIVIDUAL
Regeneration Economy and Growth,Business Durham CL0850,Third Party Payments,440999,Other third party payments E440,01/06/2022,4009490-DBRG-05-2022-33,934.03,REDACTED - PAYMENT TO INDIVIDUAL
Children and Young Peoples Services,Head of Education and Skills,Transport,230007,Contract Hire,01/06/2022,4009621-4407,"1,072.50",REDACTED - PAYMENT TO INDIVIDUAL
Regeneration Economy and Growth,Business Durham CL0850,Third Party Payments,440999,Other third party payments E440,06/06/2022,4009830-DBRG-05-2022-36,"1,350.00",KAKHKI INTERNATIONAL LAW OFFICE LTD.
Regeneration Economy and Growth,Business Durham CL0850,Third Party Payments,440999,Other third party payments E440,06/06/2022,4009906-DBRG-05-2022-37,"18,253.92",PLTD OPERATIONS LTD T/A THE BLACK HORSE INN.
Neighbourhoods and Climate Change,Technical Services CM0300,Third Party Payments,430100,Rendered by Private Contractors,06/06/2022,4009799-IN101945,"3,403.80",HILL & SMITH LTD.
Regeneration Economy and Growth,Corporate Property and Land,Supplies and Services,304221,Equipment and Materials,06/06/2022,4009778-100/10019582,"1,013.40",FIBREGRID LTD.
Regeneration Economy and Growth,Corporate Property and Land,Supplies and Services,304221,Equipment and Materials,06/06/2022,4009908-90439,550.81,POLLOCK LIFTS.
Neighbourhoods and Climate Change,Technical Services CM0300,Third Party Payments,460224,Contract Payments,06/06/2022,4009673-22141,"121,069.15",ARM PIPETEK LTD.
Regeneration Economy and Growth,Business Durham CL0850,Supplies and Services,338066,Services,06/06/2022,4009731-27052022,"24,952.50",CDC ENTERPRISE AGENCY LTD.
Neighbourhoods and Climate Change,Environmental Services,Supplies and Services,384199,Miscellaneous Expenses,06/06/2022,4009876-INV-1196,"1,350.00",NARRATIVE INTEGRATED COMMUNICATIONS LTD.
Neighbourhoods and Climate Change,Environmental Services,Supplies and Services,338066,Services,06/06/2022,4009756-3847,"1,060.00",CURIOUS 12 LTD.
Neighbourhoods and Climate Change,Environmental Services,Supplies and Services,338066,Services,06/06/2022,4009817-331,"1,760.00",JOANNE COATES.
Neighbourhoods and Climate Change,Environmental Services,Supplies and Services,352001,Conference Expenses,06/06/2022,4009896-INV-0085,"2,124.00",PAOLA V ROZO.
Neighbourhoods and Climate Change,Environmental Services,Supplies and Services,338027,Services,06/06/2022,4009775-144837/01,"18,375.00",FAIRHURST GROUP LLP.
Regeneration Economy and Growth,Transport and Contracted Services,Supplies and Services,338099,Services,06/06/2022,4009935-13302,"1,562.96",SWIFT ADVERTISING NE LTD.
Regeneration Economy and Growth,Business Durham CL0850,Construction work A908,908105,Construction work,06/06/2022,4009929-19135,"1,750.00",STEADFAST SECURITY SYSTEMS LTD.
Adult and Health Services,Commissioning inc Supporting People,Supplies and Services,384616,Miscellaneous Expenses,06/06/2022,4009806-13488,"1,202.32",INCLUSION HOUSING CIC LTD.
Adult and Health Services,Commissioning inc Supporting People,Supplies and Services,384616,Miscellaneous Expenses,06/06/2022,4009806-13763,"1,312.44",INCLUSION HOUSING CIC LTD.
Adult and Health Services,Commissioning inc Supporting People,Third Party Payments,479102,Purchase of Care,06/06/2022,4009736-YJ/4592,"5,428.49",CHILD ACTION NORTHWEST.
Adult and Health Services,Commissioning inc Supporting People,Third Party Payments,479102,Purchase of Care,06/06/2022,4009736-YJ/4593,"2,433.43",CHILD ACTION NORTHWEST.
Adult and Health Services,Commissioning inc Supporting People,Third Party Payments,479102,Purchase of Care,06/06/2022,4009736-YJ/4628,"4,013.69",CHILD ACTION NORTHWEST.
Adult and Health Services,Commissioning inc Supporting People,Third Party Payments,479102,Purchase of Care,06/06/2022,4009736-YJ/4629,"1,402.17",CHILD ACTION NORTHWEST.
Resources BK0010,Procurement Sales & Business Services,Supplies and Services,384199,Miscellaneous Expenses,06/06/2022,4009670-C65130,"3,912.20",ALLIED PUBLICITY SERVICES (MANCHESTER) LTD.
Resources BK0010,Legal & Democratic Services,Supplies and Services,338025,Services,06/06/2022,4009783-301890/1172,"1,110.00",FUNERAL PARTNERS LTD T/A JOHN BLENKIRON & SONS.
Resources BK0010,Legal & Democratic Services,Supplies and Services,338025,Services,06/06/2022,4009788-SI55422,"1,330.00",GIBSONS FUNERAL SERVICES LTD.
Children and Young Peoples Services,Head of Education and Skills,Supplies and Services,372009,Subscriptions E372,06/06/2022,4009774-14032022-556,"4,374.12",EVIDENCE BASED EDUCATION T/A INJ ASSOCIATES LTD.
Children and Young Peoples Services,Head of Education and Skills,Supplies and Services,384199,Miscellaneous Expenses,06/06/2022,4009665-1341744,"21,072.82",ACCESS UK LTD.
Children and Young Peoples Services,Head of Education and Skills,Supplies and Services,384199,Miscellaneous Expenses,06/06/2022,4009665-1341763,"21,388.91",ACCESS UK LTD.
Neighbourhoods and Climate Change,Environmental Services,Supplies and Services,304221,Equipment and Materials,06/06/2022,4009881-SI/04423912,"2,753.50",NOMIX ENVIRO LTD.
Neighbourhoods and Climate Change,Environmental Services,Transport,215005,Running Costs of Vehicles,06/06/2022,4009981-943372,"19,706.40",YOUR NRG LTD.
Neighbourhoods and Climate Change,Environmental Services,Transport,215005,Running Costs of Vehicles,06/06/2022,4009981-944884,"19,633.32",YOUR NRG LTD.
Neighbourhoods and Climate Change,Environmental Services,Transport,215005,Running Costs of Vehicles,06/06/2022,4009981-944973,"19,706.40",YOUR NRG LTD.
Neighbourhoods and Climate Change,Environmental Services,Transport,215005,Running Costs of Vehicles,06/06/2022,4009981-944975,"4,260.30",YOUR NRG LTD.
Regeneration Economy and Growth,Corporate Property and Land,Supplies and Services,384199,Miscellaneous Expenses,06/06/2022,4009821-0000083633,"2,300.00",JOHN WADE (HAULAGE) LTD.
Neighbourhoods and Climate Change,Environmental Services,Supplies and Services,304221,Equipment and Materials,06/06/2022,4009773-6915462,"15,768.00",ESE WORLD LTD.
Neighbourhoods and Climate Change,Environmental Services,Supplies and Services,324117,Provisions E324,06/06/2022,4009812-18867,"1,057.12",J MORAN LTD T/A CAFFE VINCI.
Neighbourhoods and Climate Change,Environmental Services,Supplies and Services,304259,Equipment and Materials,06/06/2022,4009915-19908,"1,520.00",RADECAL SIGNS GRAPHICS & ADVERTISING.
Neighbourhoods and Climate Change,Environmental Services,Transport,215005,Running Costs of Vehicles,06/06/2022,4009981-944978,"9,879.84",YOUR NRG LTD.
Neighbourhoods and Climate Change,Environmental Services,Transport,215005,Running Costs of Vehicles,06/06/2022,4009981-944980,"2,853.77",YOUR NRG LTD.
Neighbourhoods and Climate Change,Technical Services CM0300,Stock A926,926900,Stock in hand-Inventory system,06/06/2022,4009975-82814613,"1,662.89",WOLSELEY UK LTD.
Neighbourhoods and Climate Change,Technical Services CM0300,Third Party Payments,430100,Rendered by Private Contractors,06/06/2022,4009911-14147,522.36,QUANTUM POWER CONNECTIONS LTD.
Neighbourhoods and Climate Change,Technical Services CM0300,Third Party Payments,430100,Rendered by Private Contractors,06/06/2022,4009911-14154,"1,169.28",QUANTUM POWER CONNECTIONS LTD.
Neighbourhoods and Climate Change,Technical Services CM0300,Third Party Payments,430100,Rendered by Private Contractors,06/06/2022,4009911-14157,"1,169.28",QUANTUM POWER CONNECTIONS LTD.
Neighbourhoods and Climate Change,Technical Services CM0300,Supplies and Services,304358,Equipment and Materials,06/06/2022,4009671-0000036875,"5,772.00",AQUAJET DRAIN CLEANING LTD.
Neighbourhoods and Climate Change,Technical Services CM0300,Supplies and Services,304358,Equipment and Materials,06/06/2022,4009671-0000036878,"1,924.00",AQUAJET DRAIN CLEANING LTD.
Neighbourhoods and Climate Change,Technical Services CM0300,Supplies and Services,304358,Equipment and Materials,06/06/2022,4009681-MG08012,750.00,BAILEY CONCRETE PUMPING LTD.
Neighbourhoods and Climate Change,Technical Services CM0300,Supplies and Services,304221,Equipment and Materials,06/06/2022,4009696-207R01901,"1,019.70",BIFFA WASTE SERVICES LTD.
Neighbourhoods and Climate Change,Technical Services CM0300,Supplies and Services,304221,Equipment and Materials,06/06/2022,4009724-20690068,989.15,BREEDON TRADING LTD.
Neighbourhoods and Climate Change,Technical Services CM0300,Supplies and Services,304358,Equipment and Materials,06/06/2022,4009820-31932,"3,805.50",JOHN R BUTTERFIELD LTD.
Neighbourhoods and Climate Change,Technical Services CM0300,Supplies and Services,304358,Equipment and Materials,06/06/2022,4009820-31933,"1,269.50",JOHN R BUTTERFIELD LTD.
Neighbourhoods and Climate Change,Technical Services CM0300,Supplies and Services,304221,Equipment and Materials,06/06/2022,4009825-0104/00637844,"1,144.40",JT DOVE LTD.
Neighbourhoods and Climate Change,Technical Services CM0300,Supplies and Services,304221,Equipment and Materials,06/06/2022,4009825-0107/00637845,"1,293.28",JT DOVE LTD.
Neighbourhoods and Climate Change,Technical Services CM0300,Supplies and Services,304221,Equipment and Materials,06/06/2022,4009825-0107/00640223,799.20,JT DOVE LTD.
Neighbourhoods and Climate Change,Technical Services CM0300,Supplies and Services,304221,Equipment and Materials,06/06/2022,4009825-0113/00648493,806.40,JT DOVE LTD.
Neighbourhoods and Climate Change,Technical Services CM0300,Supplies and Services,304221,Equipment and Materials,06/06/2022,4009825-0113/00651986,806.40,JT DOVE LTD.
Neighbourhoods and Climate Change,Technical Services CM0300,Supplies and Services,304221,Equipment and Materials,06/06/2022,4009825-0303/00637851,"1,032.84",JT DOVE LTD.
Neighbourhoods and Climate Change,Technical Services CM0300,Third Party Payments,430100,Rendered by Private Contractors,06/06/2022,4009829-356540,"3,084.45",KAEFER LTD.
Neighbourhoods and Climate Change,Technical Services CM0300,Supplies and Services,304221,Equipment and Materials,06/06/2022,4009860-Z001270062,"7,070.00",MARSHALLS MONO LTD.
Neighbourhoods and Climate Change,Technical Services CM0300,Supplies and Services,304221,Equipment and Materials,06/06/2022,4009860-Z001270730,812.53,MARSHALLS MONO LTD.
Neighbourhoods and Climate Change,Technical Services CM0300,Supplies and Services,304221,Equipment and Materials,06/06/2022,4009939-9045241852,825.41,TARMAC TRADING LTD.
Neighbourhoods and Climate Change,Technical Services CM0300,Supplies and Services,304221,Equipment and Materials,06/06/2022,4009958-233439,939.31,TYNEDALE ROADSTONE LTD.
Neighbourhoods and Climate Change,Technical Services CM0300,Supplies and Services,304221,Equipment and Materials,06/06/2022,4009958-233489,795.18,TYNEDALE ROADSTONE LTD.
Neighbourhoods and Climate Change,Technical Services CM0300,Supplies and Services,304221,Equipment and Materials,06/06/2022,4009958-233624,868.68,TYNEDALE ROADSTONE LTD.
Neighbourhoods and Climate Change,Technical Services CM0300,Supplies and Services,304221,Equipment and Materials,06/06/2022,4009958-233625,"1,118.31",TYNEDALE ROADSTONE LTD.
Neighbourhoods and Climate Change,Technical Services CM0300,Supplies and Services,304221,Equipment and Materials,06/06/2022,4009958-233629,"1,157.43",TYNEDALE ROADSTONE LTD.
Neighbourhoods and Climate Change,Technical Services CM0300,Supplies and Services,304221,Equipment and Materials,06/06/2022,4009958-233633,"1,740.96",TYNEDALE ROADSTONE LTD.
Neighbourhoods and Climate Change,Technical Services CM0300,Supplies and Services,304221,Equipment and Materials,06/06/2022,4009958-233634,"1,141.13",TYNEDALE ROADSTONE LTD.
Neighbourhoods and Climate Change,Technical Services CM0300,Supplies and Services,304221,Equipment and Materials,06/06/2022,4009958-233644,697.74,TYNEDALE ROADSTONE LTD.
Neighbourhoods and Climate Change,Technical Services CM0300,Supplies and Services,304358,Equipment and Materials,06/06/2022,4009963-50466,"2,780.00",W MARLEY AGRICULTURAL CONTRACTORS LTD.
Neighbourhoods and Climate Change,Technical Services CM0300,Supplies and Services,304358,Equipment and Materials,06/06/2022,4009963-50490,580.00,W MARLEY AGRICULTURAL CONTRACTORS LTD.
Neighbourhoods and Climate Change,Technical Services CM0300,Third Party Payments,430100,Rendered by Private Contractors,06/06/2022,4009973-668,"1,806.00",WHORLTON LAND SURVEYS LTD.
Neighbourhoods and Climate Change,Technical Services CM0300,Supplies and Services,304358,Equipment and Materials,06/06/2022,4009980-8970,"2,464.00",YOULL CONSTRUCTION LTD.
Regeneration Economy and Growth,Corporate Property and Land,Supplies and Services,304221,Equipment and Materials,06/06/2022,4009740-2852ABO087,"1,029.90",CITY PLUMBING SUPPLIES HOLDINGS LTD.
Regeneration Economy and Growth,Corporate Property and Land,Supplies and Services,304221,Equipment and Materials,06/06/2022,4009796-7915,"3,628.22",GROVE REED JOINERY LTD.
Regeneration Economy and Growth,Corporate Property and Land,Third Party Payments,430100,Rendered by Private Contractors,06/06/2022,4009686-SI-7051,"2,470.00",BELL CONTROL SOLUTIONS LTD.
Regeneration Economy and Growth,Corporate Property and Land,Supplies and Services,304221,Equipment and Materials,06/06/2022,4009937-809764,595.75,T CROSSLING & CO LTD.
Regeneration Economy and Growth,Corporate Property and Land,Supplies and Services,304221,Equipment and Materials,06/06/2022,4009937-785088,"1,511.22",T CROSSLING & CO LTD.
Regeneration Economy and Growth,Corporate Property and Land,Third Party Payments,430100,Rendered by Private Contractors,06/06/2022,4009815-50290,"1,734.00",JBL SERVICES LTD.
Regeneration Economy and Growth,Corporate Property and Land,Supplies and Services,304221,Equipment and Materials,06/06/2022,4009768-059-301015,735.00,EDMUNDSON ELECTRICAL LTD.
Regeneration Economy and Growth,Corporate Property and Land,Supplies and Services,304221,Equipment and Materials,06/06/2022,4009768-059-301124,"1,187.06",EDMUNDSON ELECTRICAL LTD.
Regeneration Economy and Growth,Development and Housing,Supplies and Services,338045,Services,06/06/2022,4009976-3644104,"2,297.10",WOMBLE BOND DICKINSON (UK) LLP.
Regeneration Economy and Growth,Business Durham CL0850,Supplies and Services,336005,Advertising E336,06/06/2022,4009915-19898,"3,050.00",RADECAL SIGNS GRAPHICS & ADVERTISING.
Regeneration Economy and Growth,Development and Housing,Construction work A908,908105,Construction work,06/06/2022,4009892-DI20384686,"1,599.32",NORTHERN POWERGRID (NORTHEAST) LTD.
Regeneration Economy and Growth,Transport and Contracted Services,Supplies and Services,304245,Equipment and Materials,06/06/2022,4009956-31N/10390916,"2,100.00",TUNSTALL HEALTHCARE (UK) LTD.
Regeneration Economy and Growth,Business Durham CL0850,Premises,120009,Energy Costs,06/06/2022,4009893-IN03447320,"1,085.84",NPOWER.
Regeneration Economy and Growth,Business Durham CL0850,Premises,120009,Energy Costs,06/06/2022,4009894-IN03443029,"1,583.77",NPOWER.
Neighbourhoods and Climate Change,Environmental Services,Fees,901002,Consultants fees 901002,06/06/2022,4009760-64021549,"6,189.28",DESCO (DESIGN & CONSULTANCY) LTD.
Adult and Health Services,Head of Adults,Third Party Payments,470101,Purchase of Care,06/06/2022,4009750-0001-2022,716.00,COUNT CARE SERVICES LTD.
Adult and Health Services,Head of Adults,Third Party Payments,478151,Purchase of Care,06/06/2022,4009950-NTX-INV-0000000287,"1,428.00",THERA NORTH TRADING LTD.
Regeneration Economy and Growth,Culture Sport and Tourism,Premises,120009,Energy Costs,06/06/2022,4009805-16256,"2,369.78",IMPALA ESTATES LTD.
Regeneration Economy and Growth,Culture Sport and Tourism,Construction work A908,908105,Construction work,06/06/2022,4009845-158367,820.00,LUCION ENVIRONMENTAL LLP LTD.
Regeneration Economy and Growth,Culture Sport and Tourism,Construction work A908,908105,Construction work,06/06/2022,4009695-41875,"1,299.00",BGP CONSULTING LTD T/A BILLINGHURST GEORGE & PARTNERS.
Regeneration Economy and Growth,Culture Sport and Tourism,Supplies and Services,324001,Provisions E324,06/06/2022,4009869-906555048,645.85,MOLSON COORS BREWING COMPANY (UK) LTD.
Regeneration Economy and Growth,Culture Sport and Tourism,Supplies and Services,338047,Services,06/06/2022,4009897-R2274249,564.00,PARAMOUNT PICTURES UK.
Adult and Health Services,Head of Adults,Supplies and Services,338429,Services,06/06/2022,4009746-JOB001/20679,650.00,COLIN JOBLING T/A RAINBOW INTERNATIONAL.
Resources BK0010,Transactional & Customer Services,Supplies and Services,340001,Postages E340,06/06/2022,4009921-9064997318,"12,520.54",ROYAL MAIL GROUP PLC.
Resources BK0010,Digital Services,Supplies and Services,384199,Miscellaneous Expenses,06/06/2022,4009907-PT10787,"2,400.00",POINT TOPIC LTD.
Resources BK0010,Digital Services,Supplies and Services,342033,Computers and Communications,06/06/2022,4009853-12652938,"3,720.00",MAINTEL EUROPE LTD.
Children and Young Peoples Services,Head of Early Help Inclusion & Vulnerable Children.,Third Party Payments,486029,Service level agreements E486,06/06/2022,4009776-APR22-0033,"19,042.50",FAMILY ACTION T/A PAC-UK LTD.
Children and Young Peoples Services,Head of Early Help Inclusion & Vulnerable Children.,Third Party Payments,486029,Service level agreements E486,06/06/2022,4009776-MAY22-0013,"19,042.50",FAMILY ACTION T/A PAC-UK LTD.
Children and Young Peoples Services,Head of Education and Skills,Third Party Payments,440999,Other third party payments E440,06/06/2022,4009978-KICK5044718INVOICE000803,"1,044.28",WOODSHED WORKSHOP CIC.
Children and Young Peoples Services,Head of Childrens Social Care,Third Party Payments,440038,Other third party payments E440,06/06/2022,4009800-68603-SS-1/2022,693.40,HOME GROUP LTD FORMERLY STONHAM HOUSING ASSOCIATION LTD.
Children and Young Peoples Services,Head of Childrens Social Care,Transport,230005,Contract Hire,06/06/2022,4009753-112470,598.40,CROFT BUSINESS SERVICES LTD T/A CROFT TRAVEL.
Children and Young Peoples Services,Head of Childrens Social Care,Transport,230005,Contract Hire,06/06/2022,4009753-113321,598.40,CROFT BUSINESS SERVICES LTD T/A CROFT TRAVEL.
Children and Young Peoples Services,Head of Childrens Social Care,Third Party Payments,486020,Service level agreements E486,06/06/2022,4009969-INV-3328,"2,128.00",WE CARE RECRUITMENT SOLUTIONS LTD.
Children and Young Peoples Services,Head of Childrens Social Care,Third Party Payments,486020,Service level agreements E486,06/06/2022,4009969-INV-3332,"1,200.00",WE CARE RECRUITMENT SOLUTIONS LTD.
Children and Young Peoples Services,Head of Childrens Social Care,Third Party Payments,486020,Service level agreements E486,06/06/2022,4009969-INV-3378,"1,368.00",WE CARE RECRUITMENT SOLUTIONS LTD.
Children and Young Peoples Services,Head of Childrens Social Care,Third Party Payments,486020,Service level agreements E486,06/06/2022,4009969-INV-3380,"1,400.00",WE CARE RECRUITMENT SOLUTIONS LTD.
Children and Young Peoples Services,Head of Childrens Social Care,Transport,230005,Contract Hire,06/06/2022,4009742-CLUB2218W,510.00,CLUBMAN CABS.
Children and Young Peoples Services,Head of Childrens Social Care,Transport,230005,Contract Hire,06/06/2022,4009742-DH2219X,620.00,CLUBMAN CABS.
Children and Young Peoples Services,Head of Childrens Social Care,Transport,230005,Contract Hire,06/06/2022,4009931-MAY46/STL,581.00,STL CABS.
Children and Young Peoples Services,Head of Childrens Social Care,Transport,230005,Contract Hire,06/06/2022,4009931-MAY98/STL,581.00,STL CABS.
Children and Young Peoples Services,Head of Childrens Social Care,Transport,230005,Contract Hire,06/06/2022,4009742-CLUB2218Y,540.00,CLUBMAN CABS.
Children and Young Peoples Services,Head of Childrens Social Care,Transport,230005,Contract Hire,06/06/2022,4009742-DH2219Y,660.00,CLUBMAN CABS.
Children and Young Peoples Services,Head of Childrens Social Care,Transport,230005,Contract Hire,06/06/2022,4009742-CLUB2218ZB,560.00,CLUBMAN CABS.
Children and Young Peoples Services,Head of Childrens Social Care,Transport,230005,Contract Hire,06/06/2022,4009742-DH2219ZA,690.00,CLUBMAN CABS.
Children and Young Peoples Services,Head of Childrens Social Care,Transport,230005,Contract Hire,06/06/2022,4009753-112473,"1,103.49",CROFT BUSINESS SERVICES LTD T/A CROFT TRAVEL.
Children and Young Peoples Services,Head of Childrens Social Care,Transport,230005,Contract Hire,06/06/2022,4009753-113176,"1,579.64",CROFT BUSINESS SERVICES LTD T/A CROFT TRAVEL.
Children and Young Peoples Services,Head of Childrens Social Care,Transport,230005,Contract Hire,06/06/2022,4009753-113326,"1,642.62",CROFT BUSINESS SERVICES LTD T/A CROFT TRAVEL.
Children and Young Peoples Services,Head of Childrens Social Care,Transport,230005,Contract Hire,06/06/2022,4009742-DH2219P,605.00,CLUBMAN CABS.
Children and Young Peoples Services,Head of Early Help Inclusion & Vulnerable Children.,Supplies and Services,324500,Provisions E324,06/06/2022,4009752-24467,"16,857.06",CREATIVE MANAGEMENT SERVICES LTD.
Regeneration Economy and Growth,Culture Sport and Tourism,Construction work A908,908105,Construction work,06/06/2022,4009856-22043,500.00,MARIA FERGUSON PLANNING LTD.
Regeneration Economy and Growth,Culture Sport and Tourism,Supplies and Services,338047,Services,06/06/2022,4009889-0140,"1,000.00",NORTH EXHIBITION SERVICES LTD.
Regeneration Economy and Growth,Culture Sport and Tourism,Supplies and Services,338047,Services,06/06/2022,4009889-0142,"1,150.00",NORTH EXHIBITION SERVICES LTD.
Regeneration Economy and Growth,Culture Sport and Tourism,Supplies and Services,332029,Printing Stationery and Gen Off Exps,06/06/2022,4009747-INV06046,"2,628.76",COMPETITION LINE UK LTD T/A LIFESTYLE FITNESS.
Regeneration Economy and Growth,Culture Sport and Tourism,Third Party Payments,430131,Rendered by Private Contractors,06/06/2022,4009887-4479,630.00,NORTH EAST DANCE CIC.
Regeneration Economy and Growth,Culture Sport and Tourism,Supplies and Services,384199,Miscellaneous Expenses,06/06/2022,4009864-INV-0320,"2,833.33",MCBRYDE & CO LTD.
Regeneration Economy and Growth,Culture Sport and Tourism,Supplies and Services,384199,Miscellaneous Expenses,06/06/2022,4009859-6075438,"20,000.00",MARKETING MANCHESTER.
Adult and Health Services,Public Health CC0450,Third Party Payments,460803,Contract Payments,06/06/2022,4009676-DTPB/00000304,"1,280.00",ASDA PHARMACY.*
Adult and Health Services,Public Health CC0450,Third Party Payments,460803,Contract Payments,06/06/2022,4009692-DTZQ/00000330,531.00,BESTWAY NATIONAL CHEMIST LTD T/A WELL.
Adult and Health Services,Public Health CC0450,Third Party Payments,460803,Contract Payments,06/06/2022,4009693-DYPD/00000338,611.50,BESTWAY NATIONAL CHEMIST LTD T/A WELL.
Adult and Health Services,Public Health CC0450,Third Party Payments,460803,Contract Payments,06/06/2022,4009705-DPWT/00000338,507.50,BOOTS THE CHEMISTS LTD.*
Adult and Health Services,Public Health CC0450,Third Party Payments,460803,Contract Payments,06/06/2022,4009706-FFMZ/00000277,502.50,BOOTS THE CHEMISTS LTD.*
Adult and Health Services,Public Health CC0450,Third Party Payments,460803,Contract Payments,06/06/2022,4009707-DZJM/00000351,689.50,BOOTS THE CHEMISTS LTD.*
Adult and Health Services,Public Health CC0450,Third Party Payments,460803,Contract Payments,06/06/2022,4009715-DRJY/00000338,916.50,BOOTS THE CHEMISTS LTD.*
Adult and Health Services,Public Health CC0450,Third Party Payments,460803,Contract Payments,06/06/2022,4009715-FCWX/00000209,586.50,BOOTS THE CHEMISTS LTD.*
Adult and Health Services,Public Health CC0450,Third Party Payments,460803,Contract Payments,06/06/2022,4009716-FNHN/00000209,972.00,BOOTS THE CHEMISTS LTD.*
Adult and Health Services,Public Health CC0450,Third Party Payments,460803,Contract Payments,06/06/2022,4009717-DWTP/00000307,"1,400.50",BOOTS THE CHEMISTS LTD.*
Adult and Health Services,Public Health CC0450,Third Party Payments,460803,Contract Payments,06/06/2022,4009718-DYTC/00000324,813.00,BOOTS THE CHEMISTS LTD.*
Adult and Health Services,Public Health CC0450,Third Party Payments,460803,Contract Payments,06/06/2022,4009723-DWZN/00000075,662.50,BRANDON PHARMACY.
Adult and Health Services,Public Health CC0450,Third Party Payments,460803,Contract Payments,06/06/2022,4009732-DVQC/00000244,865.00,CENTRECHEM DISPENSING CHEMIST.
Adult and Health Services,Public Health CC0450,Third Party Payments,460803,Contract Payments,06/06/2022,4009784-FNCW/00000376,681.00,G WHITFIELD LTD.
Adult and Health Services,Public Health CC0450,Third Party Payments,460803,Contract Payments,06/06/2022,4009789-FBFN/00000293,552.50,GILL & SCHOFIELD PHARMACEUTICAL CHEMISTS LTD.
Adult and Health Services,Public Health CC0450,Third Party Payments,460803,Contract Payments,06/06/2022,4009792-DWGM/00000212,"1,278.00",GORGEMEAD LTD T/A COHENS CHEMIST.
Adult and Health Services,Public Health CC0450,Third Party Payments,460803,Contract Payments,06/06/2022,4009810-DQPW/00000323,752.50,INTRAHEALTH LTD.*
Adult and Health Services,Public Health CC0450,Third Party Payments,460803,Contract Payments,06/06/2022,4009839-FLRB/00000418,704.00,LLOYDS PHARMACY.
Adult and Health Services,Public Health CC0450,Third Party Payments,460803,Contract Payments,06/06/2022,4009840-DZTR/00000380,"1,135.50",LLOYDS PHARMACY.
Adult and Health Services,Public Health CC0450,Third Party Payments,460803,Contract Payments,06/06/2022,4009843-FQVV/00000390,532.50,LLOYDS PHARMACY.
Adult and Health Services,Public Health CC0450,Third Party Payments,460803,Contract Payments,06/06/2022,4009883-LGFQ/00000353,691.00,NORCHEM HEALTHCARE LTD.
Adult and Health Services,Public Health CC0450,Third Party Payments,460803,Contract Payments,06/06/2022,4009884-DWMD/00000321,874.50,NORCHEM HEALTHCARE LTD.
Adult and Health Services,Public Health CC0450,Third Party Payments,460803,Contract Payments,06/06/2022,4009885-FNTN/00000300,580.00,NORCHEM HEALTHCARE LTD.
Adult and Health Services,Public Health CC0450,Third Party Payments,460803,Contract Payments,06/06/2022,4009891-DTXL/00000334,792.50,NORTHERN PHARMACY GROUP LTD T/A CROOK PHARMACY.
Adult and Health Services,Public Health CC0450,Third Party Payments,460803,Contract Payments,06/06/2022,4009936-LQPJ/00000318,"1,122.50",T & J HEALTHCARE LTD T/A STATION ROAD PHARMACY..
Adult and Health Services,Public Health CC0450,Third Party Payments,460803,Contract Payments,06/06/2022,4009943-FFPB/00000254,516.00,TESCO PHARMACY.*
Adult and Health Services,Public Health CC0450,Third Party Payments,460803,Contract Payments,06/06/2022,4009944-DPNG/00000285,588.00,TESCO PHARMACY.*
Adult and Health Services,Public Health CC0450,Third Party Payments,460803,Contract Payments,06/06/2022,4009961-DTJG/00000265,617.00,VANGMAYI LTD T/A J & J PHARMACY.
Adult and Health Services,Public Health CC0450,Third Party Payments,460803,Contract Payments,06/06/2022,4009676-DTPB/00000303,785.14,ASDA PHARMACY.*
Adult and Health Services,Public Health CC0450,Third Party Payments,460803,Contract Payments,06/06/2022,4009689-FKLX/00000325,520.60,BESTWAY NATIONAL CHEMIST LTD T/A WELL.
Adult and Health Services,Public Health CC0450,Third Party Payments,460803,Contract Payments,06/06/2022,4009707-DZJM/00000350,932.06,BOOTS THE CHEMISTS LTD.*
Children and Young Peoples Services,Head of Childrens Social Care,Third Party Payments,440046,Other third party payments E440,06/06/2022,4009854-23951,"7,661.92",MAJOR RECRUITMENT LTD.
Children and Young Peoples Services,Head of Childrens Social Care,Third Party Payments,440046,Other third party payments E440,06/06/2022,4009854-23953,"5,446.40",MAJOR RECRUITMENT LTD.
Children and Young Peoples Services,Head of Childrens Social Care,Third Party Payments,440046,Other third party payments E440,06/06/2022,4009854-23954,"10,121.68",MAJOR RECRUITMENT LTD.
Children and Young Peoples Services,Head of Childrens Social Care,Third Party Payments,440046,Other third party payments E440,06/06/2022,4009854-24001,"8,667.61",MAJOR RECRUITMENT LTD.
Children and Young Peoples Services,Head of Childrens Social Care,Third Party Payments,440046,Other third party payments E440,06/06/2022,4009854-24003,"4,668.72",MAJOR RECRUITMENT LTD.
Children and Young Peoples Services,Head of Childrens Social Care,Third Party Payments,440046,Other third party payments E440,06/06/2022,4009854-24004,"11,082.37",MAJOR RECRUITMENT LTD.
Children and Young Peoples Services,Head of Childrens Social Care,Third Party Payments,440046,Other third party payments E440,06/06/2022,4009854-24005,500.17,MAJOR RECRUITMENT LTD.
Children and Young Peoples Services,Head of Education and Skills,Supplies and Services,384199,Miscellaneous Expenses,06/06/2022,4009880-4100742924-230522,600.00,REDACTED - PAYMENT TO INDIVIDUAL
Neighbourhoods and Climate Change,Technical Services CM0300,Supplies and Services,304221,Equipment and Materials,06/06/2022,4009875-5675,"1,344.00",REDACTED - PAYMENT TO INDIVIDUAL
Neighbourhoods and Climate Change,Environmental Services,Supplies and Services,338066,Services,06/06/2022,4009913-BURSARYMAY2022,755.68,REDACTED - PAYMENT TO INDIVIDUAL
Regeneration Economy and Growth,Culture Sport and Tourism,Supplies and Services,384199,Miscellaneous Expenses,06/06/2022,4009858-GTSSVOCALCOACHMAY2022,510.00,REDACTED - PAYMENT TO INDIVIDUAL
Regeneration Economy and Growth,Culture Sport and Tourism,Third Party Payments,430131,Rendered by Private Contractors,06/06/2022,4009741-002CLS-MAY2022,745.00,REDACTED - PAYMENT TO INDIVIDUAL
Neighbourhoods and Climate Change,Environmental Services,Supplies and Services,304221,Equipment and Materials,07/06/2022,4010573-1030008,965.42,BOSTON SEEDS LTD.
Neighbourhoods and Climate Change,Environmental Services,Third Party Payments,430100,Rendered by Private Contractors,07/06/2022,4010629-INV-671,"3,200.00",ECO ENTERPRISES LTD.
Regeneration Economy and Growth,Corporate Property and Land,Construction work A908,908105,Construction work,07/06/2022,4010662-INV2357,"4,995.00",GT3 ARHCITECTS LTD.
Regeneration Economy and Growth,Corporate Property and Land,Supplies and Services,304259,Equipment and Materials,07/06/2022,4010856-2381,"3,613.00",TEESDALE COMMUNICATION & SECURITY.
Neighbourhoods and Climate Change,Technical Services CM0300,Construction work A908,908105,Construction work,07/06/2022,4010689-232418,"4,066.28",J9 LTD T/A BARRIERS DIRECT.
Neighbourhoods and Climate Change,Technical Services CM0300,Third Party Payments,430100,Rendered by Private Contractors,07/06/2022,4010711-220164,"708,133.27",KIELY BROS LTD.
Neighbourhoods and Climate Change,Environmental Services,Third Party Payments,430116,Rendered by Private Contractors,07/06/2022,4010562-4827,"3,850.00",AUTOMATIC FLARE SYSTEMS LTD.
Neighbourhoods and Climate Change,Environmental Services,Third Party Payments,430116,Rendered by Private Contractors,07/06/2022,4010886-25864,"4,281.80",WGR LTD.
Neighbourhoods and Climate Change,Technical Services CM0300,Stock A926,926900,Stock in hand-Inventory system,07/06/2022,4010699-10690,539.50,JG UNIFORMS.
Neighbourhoods and Climate Change,Technical Services CM0300,Stock A926,926900,Stock in hand-Inventory system,07/06/2022,4010834-295,"2,805.84",SNAPFAST LTD.
Neighbourhoods and Climate Change,Technical Services CM0300,Stock A926,926900,Stock in hand-Inventory system,07/06/2022,4010834-420,"3,588.48",SNAPFAST LTD.
Neighbourhoods and Climate Change,Technical Services CM0300,Stock A926,926900,Stock in hand-Inventory system,07/06/2022,4010834-460,"3,627.36",SNAPFAST LTD.
Neighbourhoods and Climate Change,Technical Services CM0300,Stock A926,926900,Stock in hand-Inventory system,07/06/2022,4010834-730,"3,498.48",SNAPFAST LTD.
Neighbourhoods and Climate Change,Technical Services CM0300,Third Party Payments,430100,Rendered by Private Contractors,07/06/2022,4010875-INV066684,"3,517.88",URBIS SCHREDER LTD.
Regeneration Economy and Growth,Corporate Property and Land,Third Party Payments,430100,Rendered by Private Contractors,07/06/2022,4010847-0001113458,"2,430.00",STROMA BUILT ENVIRONMENT LTD.
Regeneration Economy and Growth,Corporate Property and Land,Supplies and Services,304221,Equipment and Materials,07/06/2022,4010716-1733,643.00,L-PAC PACKAGING SOLUTIONS LTD.
Neighbourhoods and Climate Change,Technical Services CM0300,Supplies and Services,352001,Conference Expenses,07/06/2022,4010680-200001788,790.00,INSTITUTE OF HIGHWAY ENGINEERS (IHE).
Regeneration Economy and Growth,Development and Housing,Fees,901001,Internal fees,07/06/2022,4010797-6676164,"2,378.00",PINSENT MASONS LLP.
Regeneration Economy and Growth,Business Durham CL0850,Supplies and Services,336005,Advertising E336,07/06/2022,4010603-49049,"4,140.00",COMMUNITY PARTNERS LTD.
Regeneration Economy and Growth,Business Durham CL0850,Supplies and Services,342053,Computers and Communications,07/06/2022,4010609-CSUK-SI-255699,"6,450.00",CREDITSAFE BUSINESS SOLUTIONS LTD.
Regeneration Economy and Growth,Development and Housing,Supplies and Services,352001,Conference Expenses,07/06/2022,4010858-6075897,"1,500.00",THE GROWTH COMPANY LTD.
Regeneration Economy and Growth,Development and Housing,Supplies and Services,352001,Conference Expenses,07/06/2022,4010819-PART3,600.00,RONNIE KELL DSA ADI.
Regeneration Economy and Growth,Business Durham CL0850,Supplies and Services,338066,Services,07/06/2022,4010874-6151,"5,000.00",UNW LLP.
Regeneration Economy and Growth,Development and Housing,Third Party Payments,430108,Rendered by Private Contractors,07/06/2022,4010817-5992A,"1,235.00",ROADSAFE TRAFFIC MANAGEMENT LTD.
Adult and Health Services,Commissioning inc Supporting People,Supplies and Services,384540,Miscellaneous Expenses,07/06/2022,4010821-S5237,612.50,ROUND SUN LTD T/A PRIMARY TIMES NORTH EAST.
Adult and Health Services,Head of Adults,Supplies and Services,338429,Services,07/06/2022,4010653-1MALCOLMAVE,800.00,GILLIAN MEREDITH T/A PETALS CLEANERS.
Resources BK0010,Transactional & Customer Services,Supplies and Services,338045,Services,07/06/2022,4010657-1051072,977.77,GREENHALGH KERR.
Resources BK0010,Transactional & Customer Services,Supplies and Services,338045,Services,07/06/2022,4010657-1075673,"4,007.50",GREENHALGH KERR.
Resources BK0010,Legal & Democratic Services,Supplies and Services,384150,Miscellaneous Expenses,07/06/2022,4010773-3010033081,"25,251.60",NEWCASTLE UPON TYNE HOSPITALS NHS FOUNDATION TRUST.
Resources BK0010,Legal & Democratic Services,Supplies and Services,384150,Miscellaneous Expenses,07/06/2022,4010773-3010033086,"29,170.60",NEWCASTLE UPON TYNE HOSPITALS NHS FOUNDATION TRUST.
Children and Young Peoples Services,Head of Education and Skills,Supplies and Services,372009,Subscriptions E372,07/06/2022,4010770-87385,950.00,NATIONAL GOVERNANCE ASSOCIATION.
Children and Young Peoples Services,Head of Education and Skills,Supplies and Services,352001,Conference Expenses,07/06/2022,4010737-1095,"1,750.00",MALCPD EDUCATION CONSULTANCY & COACHING LTD.
Children and Young Peoples Services,Head of Education and Skills,Third Party Payments,440999,Other third party payments E440,07/06/2022,4010833-PO4100749557A,"5,856.10",SMARTT NORTH EAST LTD.
Children and Young Peoples Services,Head of Childrens Social Care,Supplies and Services,338044,Services,07/06/2022,4010553-INV608496,584.64,ALPHA BIOLABORATORIES LTD.
Children and Young Peoples Services,Head of Early Help Inclusion & Vulnerable Children.,Supplies and Services,304259,Equipment and Materials,07/06/2022,4010564-8379,633.64,BARRONS CONTRACTS.
Children and Young Peoples Services,Head of Early Help Inclusion & Vulnerable Children.,Supplies and Services,338094,Services,07/06/2022,4010774-3920,790.00,NEWTON AYCLIFFE YOUTH & COMMUNITY CENTRE.
Neighbourhoods and Climate Change,Environmental Services,Supplies and Services,304259,Equipment and Materials,07/06/2022,4010877-00638/2022,"1,495.00",VIPA UK LTD.
Neighbourhoods and Climate Change,Environmental Services,Supplies and Services,304259,Equipment and Materials,07/06/2022,4010586-427885,"1,404.00",CARRS BILLINGTON AGRICULTURE.
Neighbourhoods and Climate Change,Environmental Services,Supplies and Services,304252,Equipment and Materials,07/06/2022,4010890-22-0168,"2,950.00",WM O SILMON LTD.
Neighbourhoods and Climate Change,Technical Services CM0300,Third Party Payments,460109,Contract Payments,07/06/2022,4010679-INS2505,"2,160.00",INSPECTORATE LTD T/A ROCH NDT SERVICES.
Regeneration Economy and Growth,Culture Sport and Tourism,Supplies and Services,304337,Equipment and Materials,07/06/2022,4010739-4236061878,"5,575.19",MARES SPA.
Regeneration Economy and Growth,Culture Sport and Tourism,Supplies and Services,324117,Provisions E324,07/06/2022,4010753-906519446,791.85,MOLSON COORS BREWING COMPANY (UK) LTD.
Regeneration Economy and Growth,Culture Sport and Tourism,Supplies and Services,384199,Miscellaneous Expenses,07/06/2022,4010783-00020640,"1,669.14",NSL LTD.
Neighbourhoods and Climate Change,Environmental Services,Supplies and Services,304999,Equipment and Materials,07/06/2022,4010772-INVHE69159,"1,199.95",NE TRUCK SPARES LTD (NETS).
Neighbourhoods and Climate Change,Environmental Services,Supplies and Services,304252,Equipment and Materials,07/06/2022,4010651-I283577,"1,556.50",GEMCO SERVICE LTD.
Regeneration Economy and Growth,Corporate Property and Land,Third Party Payments,430105,Rendered by Private Contractors,07/06/2022,4010568-143C23964,"1,027.64",BIFFA WASTE SERVICES LTD.
Neighbourhoods and Climate Change,Technical Services CM0300,Construction work A908,908105,Construction work,07/06/2022,4010545-28485108,"29,939.87",AECOM LTD.
Neighbourhoods and Climate Change,Technical Services CM0300,Construction work A908,908105,Construction work,07/06/2022,4010545-28493429,"18,288.37",AECOM LTD.
Neighbourhoods and Climate Change,Technical Services CM0300,Construction work A908,908105,Construction work,07/06/2022,4010690-26362,"1,157.32",JACK COUPE & SONS LTD T/A COUPE LINE.
Regeneration Economy and Growth,Culture Sport and Tourism,Supplies and Services,384999,Miscellaneous Expenses,07/06/2022,4010606-SI-4263,"1,666.00",COUNTY DURHAM SPORT.
Neighbourhoods and Climate Change,Environmental Services,Supplies and Services,338027,Services,07/06/2022,4010835-0000957867,"5,261.03",SOCOTEC UK LTD.
Regeneration Economy and Growth,Culture Sport and Tourism,Supplies and Services,336005,Advertising E336,07/06/2022,4010552-85293,682.50,ALLWAG PROMOTIONS LTD.
Regeneration Economy and Growth,Culture Sport and Tourism,Supplies and Services,338047,Services,07/06/2022,4010600-10207,"2,058.17",COMEDY STORE MANAGEMENT T/A THE COMEDY STORE LTD.
Regeneration Economy and Growth,Culture Sport and Tourism,Supplies and Services,372009,Subscriptions E372,07/06/2022,4010800-SIN2085281,778.90,PPL PRS LTD.
Regeneration Economy and Growth,Corporate Property and Land,Supplies and Services,324117,Provisions E324,07/06/2022,4010688-18774,505.66,J MORAN LTD T/A CAFFE VINCI.
Neighbourhoods and Climate Change,Community Protection,Third Party Payments,430100,Rendered by Private Contractors,07/06/2022,4010830-183222,"1,684.62",SHOWSEC INTERNATIONAL LTD.
Neighbourhoods and Climate Change,Technical Services CM0300,Stock A926,926900,Stock in hand-Inventory system,07/06/2022,4010598-1016412,"1,459.65",CMT EQUIPMENT LTD.
Neighbourhoods and Climate Change,Technical Services CM0300,Stock A926,926900,Stock in hand-Inventory system,07/06/2022,4010867-110933,"1,852.00",TOTAL RENTAL SOLUTIONS.
Neighbourhoods and Climate Change,Technical Services CM0300,Stock A926,926900,Stock in hand-Inventory system,07/06/2022,4010867-110934,"2,341.52",TOTAL RENTAL SOLUTIONS.
Neighbourhoods and Climate Change,Technical Services CM0300,Third Party Payments,430100,Rendered by Private Contractors,07/06/2022,4010806-14173,"1,728.01",QUANTUM POWER CONNECTIONS LTD.
Neighbourhoods and Climate Change,Technical Services CM0300,Supplies and Services,338027,Services,07/06/2022,4010893-64569026,"4,270.00",WSP UK LTD.
Neighbourhoods and Climate Change,Technical Services CM0300,Supplies and Services,304221,Equipment and Materials,07/06/2022,4010577-20690069,"1,099.14",BREEDON TRADING LTD.
Neighbourhoods and Climate Change,Technical Services CM0300,Supplies and Services,304221,Equipment and Materials,07/06/2022,4010851-9045298972,"1,330.19",TARMAC TRADING LTD.
Regeneration Economy and Growth,Corporate Property and Land,Third Party Payments,430100,Rendered by Private Contractors,07/06/2022,4010827-23680,"109,706.10",SEYMOUR (CIVIL ENGINEERING CONTRACTORS) LTD.
Regeneration Economy and Growth,Corporate Property and Land,Third Party Payments,430100,Rendered by Private Contractors,07/06/2022,4010664-4,"25,285.33",H MALONE & SONS LTD.
Regeneration Economy and Growth,Corporate Property and Land,Supplies and Services,304221,Equipment and Materials,07/06/2022,4010850-807163,690.52,T CROSSLING & CO LTD.
Regeneration Economy and Growth,Corporate Property and Land,Supplies and Services,304221,Equipment and Materials,07/06/2022,4010850-808770,"1,122.34",T CROSSLING & CO LTD.
Regeneration Economy and Growth,Corporate Property and Land,Supplies and Services,304221,Equipment and Materials,07/06/2022,4010850-809651,"1,080.00",T CROSSLING & CO LTD.
Regeneration Economy and Growth,Corporate Property and Land,Supplies and Services,304221,Equipment and Materials,07/06/2022,4010891-82773490,"1,679.01",WOLSELEY UK LTD.
Regeneration Economy and Growth,Corporate Property and Land,Supplies and Services,304221,Equipment and Materials,07/06/2022,4010585-10778140,789.36,CARPET & FLOORING (TRADING) LTD.
Regeneration Economy and Growth,Corporate Property and Land,Third Party Payments,430100,Rendered by Private Contractors,07/06/2022,4010787-11469-95,667.20,OPUS BUILDING SERVICES LTD.
Neighbourhoods and Climate Change,Technical Services CM0300,Third Party Payments,460503,Contract Payments,07/06/2022,4010771-00060315,645.00,NCC SERVICES LTD.
Regeneration Economy and Growth,Business Durham CL0850,Premises,120009,Energy Costs,07/06/2022,4010630-000012366490,"11,542.71",EDF ENERGY CUSTOMERS PLC T/A EDF ENERGY.
Regeneration Economy and Growth,Business Durham CL0850,Premises,120009,Energy Costs,07/06/2022,4010630-000012403921,"8,502.80",EDF ENERGY CUSTOMERS PLC T/A EDF ENERGY.
Regeneration Economy and Growth,Business Durham CL0850,Premises,120009,Energy Costs,07/06/2022,4010630-000012366702,"5,125.50",EDF ENERGY CUSTOMERS PLC T/A EDF ENERGY.
Regeneration Economy and Growth,Business Durham CL0850,Premises,120009,Energy Costs,07/06/2022,4010630-000012366716,"5,850.55",EDF ENERGY CUSTOMERS PLC T/A EDF ENERGY.
Regeneration Economy and Growth,Business Durham CL0850,Premises,120009,Energy Costs,07/06/2022,4010630-000012380822,"8,623.30",EDF ENERGY CUSTOMERS PLC T/A EDF ENERGY.
Neighbourhoods and Climate Change,Environmental Services,Supplies and Services,304999,Equipment and Materials,07/06/2022,4010627-0000086343,"1,168.72",EAST RIDING HORTICULTURE LTD.
Regeneration Economy and Growth,Development and Housing,Fees,901003,Capital - Contract Supervision,07/06/2022,4010816-J/22/05/4F/APK/TM,"1,200.00",RNJ PARTNERSHIP LLP.
Regeneration Economy and Growth,Development and Housing,Fees,901003,Capital - Contract Supervision,07/06/2022,4010816-J/22/10/4F/APK/TM,"1,200.00",RNJ PARTNERSHIP LLP.
Regeneration Economy and Growth,Transport and Contracted Services,Supplies and Services,384199,Miscellaneous Expenses,07/06/2022,4010830-183190,"3,850.56",SHOWSEC INTERNATIONAL LTD.
Regeneration Economy and Growth,Transport and Contracted Services,Third Party Payments,430106,Rendered by Private Contractors,07/06/2022,4010560-119412,"5,180.90",ARRIVA DURHAM COUNTY LTD.
Regeneration Economy and Growth,Transport and Contracted Services,Third Party Payments,430106,Rendered by Private Contractors,07/06/2022,4010560-119414,"69,795.69",ARRIVA DURHAM COUNTY LTD.
Regeneration Economy and Growth,Transport and Contracted Services,Third Party Payments,430106,Rendered by Private Contractors,07/06/2022,4010883-17663,"22,274.00",WEARDALE MOTOR SERVICES LTD.
Regeneration Economy and Growth,Development and Housing,Fees,901002,Consultants fees 901002,07/06/2022,4010769-7116,855.00,NAPPER ARCHITECTS LTD.
Adult and Health Services,Head of Adults,Transport,230005,Contract Hire,07/06/2022,4010702-44-EAS192-MAY22,580.72,JOHN CRAKE & SONS MINI BUSES LTD.
Adult and Health Services,Commissioning inc Supporting People,Third Party Payments,479111,Purchase of Care,07/06/2022,4010558-INV-2126,"2,990.00",APM CLEANING LTD.
Adult and Health Services,Commissioning inc Supporting People,Third Party Payments,470111,Purchase of Care,07/06/2022,4010725-LCD-FTI092091,"6,060.01",LEONARD CHESHIRE DISABILITY.
Adult and Health Services,Commissioning inc Supporting People,Third Party Payments,470111,Purchase of Care,07/06/2022,4010725-LCD-FTI092092,"5,132.89",LEONARD CHESHIRE DISABILITY.
Adult and Health Services,Head of Adults,Transport,230005,Contract Hire,07/06/2022,4010674-1066,"1,871.88",I & R EXECUTIVE TRAVEL.
Adult and Health Services,Head of Adults,Transport,230005,Contract Hire,07/06/2022,4010702-41-SED126-MAY22,"1,757.70",JOHN CRAKE & SONS MINI BUSES LTD.
Adult and Health Services,Head of Adults,Transport,230005,Contract Hire,07/06/2022,4010702-43-DM112-MAY22,560.00,JOHN CRAKE & SONS MINI BUSES LTD.
Adult and Health Services,Head of Adults,Third Party Payments,478151,Purchase of Care,07/06/2022,4010601-421R187563,"8,049.60",COMMUNITY INTEGRATED CARE LTD.
Adult and Health Services,Head of Adults,Third Party Payments,478151,Purchase of Care,07/06/2022,4010601-421R187596,"9,907.20",COMMUNITY INTEGRATED CARE LTD.
Adult and Health Services,Head of Adults,Third Party Payments,478151,Purchase of Care,07/06/2022,4010602-421R187564,"13,498.56",COMMUNITY INTEGRATED CARE LTD.
Adult and Health Services,Head of Adults,Third Party Payments,478151,Purchase of Care,07/06/2022,4010614-INV-1131,"2,314.08",DEACONSTAR LTD.
Adult and Health Services,Head of Adults,Third Party Payments,478151,Purchase of Care,07/06/2022,4010614-INV-1157,"2,314.08",DEACONSTAR LTD.
Adult and Health Services,Head of Adults,Third Party Payments,478151,Purchase of Care,07/06/2022,4010614-INV-1158,"2,686.58",DEACONSTAR LTD.
Adult and Health Services,Head of Adults,Third Party Payments,478151,Purchase of Care,07/06/2022,4010640-ED0008,952.00,ETHICARE (DURHAM) LTD.
Adult and Health Services,Head of Adults,Third Party Payments,478151,Purchase of Care,07/06/2022,4010640-ED0009,952.00,ETHICARE (DURHAM) LTD.
Regeneration Economy and Growth,Culture Sport and Tourism,Supplies and Services,324001,Provisions E324,07/06/2022,4010753-906580788,"1,629.99",MOLSON COORS BREWING COMPANY (UK) LTD.
Regeneration Economy and Growth,Culture Sport and Tourism,Supplies and Services,324001,Provisions E324,07/06/2022,4010753-906541439,"3,089.40",MOLSON COORS BREWING COMPANY (UK) LTD.
Regeneration Economy and Growth,Culture Sport and Tourism,Supplies and Services,324001,Provisions E324,07/06/2022,4010753-906563235,"1,121.36",MOLSON COORS BREWING COMPANY (UK) LTD.
Regeneration Economy and Growth,Culture Sport and Tourism,Supplies and Services,324001,Provisions E324,07/06/2022,4010753-906574711,"2,658.89",MOLSON COORS BREWING COMPANY (UK) LTD.
Regeneration Economy and Growth,Culture Sport and Tourism,Supplies and Services,324001,Provisions E324,07/06/2022,4010753-906585943,847.21,MOLSON COORS BREWING COMPANY (UK) LTD.
Adult and Health Services,Head of Adults,Supplies and Services,308011,Furniture,07/06/2022,4010549-174922,890.00,ALBANY OFFICE EQUIPMENT (WHOLESALE) LTD.
Resources BK0010,Legal & Democratic Services,Construction work A908,908105,Construction work,07/06/2022,4010712-10288153,"816,814.54",KIER CONSTRUCTION LTD - SCOTLAND
Resources BK0010,Transactional & Customer Services,Supplies and Services,342051,Computers and Communications,07/06/2022,4010594-C/BN244139,"3,348.75",CIVICA UK LTD.
Resources BK0010,Digital Services,Supplies and Services,304303,Equipment and Materials,07/06/2022,4010663-INV0187268,"7,776.84",GVAV LTD.
Resources BK0010,Digital Services,Supplies and Services,304303,Equipment and Materials,07/06/2022,4010663-INV0187317,"1,152.63",GVAV LTD.
Resources BK0010,Digital Services,Supplies and Services,304639,Equipment and Materials,07/06/2022,4010678-2100244468,720.43,INSIGHT DIRECT (UK) LTD.
Resources BK0010,Digital Services,Supplies and Services,342033,Computers and Communications,07/06/2022,4010678-2100249084,"1,113.37",INSIGHT DIRECT (UK) LTD.
Resources BK0010,HR & Employee Services,Supplies and Services,338064,Services,07/06/2022,4010778-31675,"20,250.00",NORTH EAST REGIONAL EMPLOYERS ORGANISATION (NEREO).
Resources BK0010,Legal & Democratic Services,Premises,120021,Energy Costs,07/06/2022,4010575-34450,"1,343.24",BRADLEY HALL LTD.
Resources BK0010,Legal & Democratic Services,Supplies and Services,338042,Services,07/06/2022,4010616-354167/INVSHW2,775.00,DERE STREET BARRISTERS.
Resources BK0010,Legal & Democratic Services,Supplies and Services,338042,Services,07/06/2022,4010616-369997/INVEL195,775.00,DERE STREET BARRISTERS.
Resources BK0010,Legal & Democratic Services,Supplies and Services,338042,Services,07/06/2022,4010616-370077/INVRR175,"2,275.00",DERE STREET BARRISTERS.
Resources BK0010,Legal & Democratic Services,Supplies and Services,338042,Services,07/06/2022,4010616-371429/INVPM332,775.00,DERE STREET BARRISTERS.
Resources BK0010,Legal & Democratic Services,Supplies and Services,338042,Services,07/06/2022,4010616-372119/INVSEB1X309,775.00,DERE STREET BARRISTERS.
Resources BK0010,Legal & Democratic Services,Supplies and Services,338042,Services,07/06/2022,4010616-372191/INVSPA462,875.00,DERE STREET BARRISTERS.
Resources BK0010,Legal & Democratic Services,Supplies and Services,338042,Services,07/06/2022,4010616-372417/INVHMU467,775.00,DERE STREET BARRISTERS.
Resources BK0010,Legal & Democratic Services,Supplies and Services,338042,Services,07/06/2022,4010616-372722/INVEL196,875.00,DERE STREET BARRISTERS.
Resources BK0010,Legal & Democratic Services,Supplies and Services,338042,Services,07/06/2022,4010872-282968/INVTOP4,"1,750.00",TRINITY CHAMBERS.
Resources BK0010,Legal & Democratic Services,Supplies and Services,338042,Services,07/06/2022,4010872-298711/INVTOP9,720.00,TRINITY CHAMBERS.
Children and Young Peoples Services,Head of Education and Skills,Transport,230007,Contract Hire,07/06/2022,4010720-2032,"1,216.00",LD TAXIS.
Children and Young Peoples Services,Head of Education and Skills,Transport,230009,Contract Hire,07/06/2022,4010729-4790,"1,121.00",LINCAB TAXIS.
Children and Young Peoples Services,Head of Education and Skills,Transport,230007,Contract Hire,07/06/2022,4010700-34699,"3,645.15",JIM HUGHES COACHES LTD.
Children and Young Peoples Services,Head of Education and Skills,Transport,230007,Contract Hire,07/06/2022,4010702-42-4506-MAY22,"1,080.00",JOHN CRAKE & SONS MINI BUSES LTD.
Children and Young Peoples Services,Head of Education and Skills,Transport,230003,Contract Hire,07/06/2022,4010648-23602-3003,"4,560.00",GARNETTS LTD (COACHES).
Children and Young Peoples Services,Head of Education and Skills,Transport,230003,Contract Hire,07/06/2022,4010648-23602-3004,"4,019.45",GARNETTS LTD (COACHES).
Children and Young Peoples Services,Head of Education and Skills,Transport,230003,Contract Hire,07/06/2022,4010648-23602-3005,"5,871.57",GARNETTS LTD (COACHES).
Children and Young Peoples Services,Head of Education and Skills,Transport,230003,Contract Hire,07/06/2022,4010648-23602-3008,"3,329.75",GARNETTS LTD (COACHES).
Children and Young Peoples Services,Head of Education and Skills,Transport,230003,Contract Hire,07/06/2022,4010648-23602-3203,"3,132.72",GARNETTS LTD (COACHES).
Children and Young Peoples Services,Head of Education and Skills,Transport,230003,Contract Hire,07/06/2022,4010648-23602-3262,"3,684.48",GARNETTS LTD (COACHES).
Children and Young Peoples Services,Head of Education and Skills,Transport,230003,Contract Hire,07/06/2022,4010648-23602-3333,"3,310.18",GARNETTS LTD (COACHES).
Children and Young Peoples Services,Head of Education and Skills,Transport,230003,Contract Hire,07/06/2022,4010648-26302-3223,"6,265.63",GARNETTS LTD (COACHES).
Children and Young Peoples Services,Head of Education and Skills,Transport,230003,Contract Hire,07/06/2022,4010700-34700,"4,413.51",JIM HUGHES COACHES LTD.
Children and Young Peoples Services,Head of Education and Skills,Transport,230003,Contract Hire,07/06/2022,4010855-5300-APRIL,"1,650.00",TED WILFORD COACHES.
Children and Young Peoples Services,Head of Education and Skills,Transport,230034,Contract Hire,07/06/2022,4010720-2026,"1,330.00",LD TAXIS.
Children and Young Peoples Services,Head of Education and Skills,Transport,230006,Contract Hire,07/06/2022,4010720-2027,"1,330.00",LD TAXIS.
Children and Young Peoples Services,Head of Education and Skills,Transport,230008,Contract Hire,07/06/2022,4010720-2028,"1,663.26",LD TAXIS.
Children and Young Peoples Services,Head of Education and Skills,Transport,230007,Contract Hire,07/06/2022,4010734-44-MAY,"3,325.00",LORRAINES TAXIS.
Children and Young Peoples Services,Head of Education and Skills,Transport,230008,Contract Hire,07/06/2022,4010707-9-MAY,"2,470.00",KD TAXIS.
Children and Young Peoples Services,Head of Education and Skills,Transport,230008,Contract Hire,07/06/2022,4010720-2033,"1,520.00",LD TAXIS.
Children and Young Peoples Services,Head of Education and Skills,Transport,230008,Contract Hire,07/06/2022,4010674-1064,"2,405.40",I & R EXECUTIVE TRAVEL.
Children and Young Peoples Services,Head of Education and Skills,Transport,230008,Contract Hire,07/06/2022,4010674-1065,"1,879.48",I & R EXECUTIVE TRAVEL.
Children and Young Peoples Services,Head of Education and Skills,Transport,230008,Contract Hire,07/06/2022,4010705-M00948,"1,694.88",JOVIAL PRIVATE HIRE.
Children and Young Peoples Services,Head of Education and Skills,Transport,230008,Contract Hire,07/06/2022,4010705-M01609,"1,260.00",JOVIAL PRIVATE HIRE.
Children and Young Peoples Services,Head of Education and Skills,Transport,230008,Contract Hire,07/06/2022,4010705-M01748,871.20,JOVIAL PRIVATE HIRE.
Children and Young Peoples Services,Head of Education and Skills,Transport,230008,Contract Hire,07/06/2022,4010734-42,"2,329.92",LORRAINES TAXIS.
Children and Young Peoples Services,Head of Education and Skills,Transport,230008,Contract Hire,07/06/2022,4010729-4787,"2,395.14",LINCAB TAXIS.
Children and Young Peoples Services,Head of Education and Skills,Transport,230008,Contract Hire,07/06/2022,4010729-4789,"3,131.58",LINCAB TAXIS.
Children and Young Peoples Services,Head of Education and Skills,Transport,230008,Contract Hire,07/06/2022,4010720-2031,"2,532.89",LD TAXIS.
Children and Young Peoples Services,Head of Education and Skills,Transport,230008,Contract Hire,07/06/2022,4010729-4788,"3,286.05",LINCAB TAXIS.
Children and Young Peoples Services,Head of Education and Skills,Transport,230006,Contract Hire,07/06/2022,4010701-9-21-22,913.63,JOHN BELL TAXI.
Children and Young Peoples Services,Head of Education and Skills,Transport,230006,Contract Hire,07/06/2022,4010709-02-MAY,800.00,KELLY`S.
Children and Young Peoples Services,Head of Education and Skills,Transport,230006,Contract Hire,07/06/2022,4010720-2024,720.00,LD TAXIS.
Children and Young Peoples Services,Head of Education and Skills,Transport,230006,Contract Hire,07/06/2022,4010720-2025,"1,688.70",LD TAXIS.
Children and Young Peoples Services,Head of Education and Skills,Supplies and Services,338035,Services,07/06/2022,4010592-806021826,710.00,CITY & GUILDS OF LONDON INSTITUTE.
Children and Young Peoples Services,Head of Education and Skills,Supplies and Services,338094,Services,07/06/2022,4010605-893,975.00,CORNERSTONES CENTRE FOR THE COMMUNITY.
Children and Young Peoples Services,Head of Education and Skills,Third Party Payments,440999,Other third party payments E440,07/06/2022,4010687-1379,"3,469.55",J & K TRAINING LTD.
Children and Young Peoples Services,Head of Childrens Social Care,Supplies and Services,384500,Miscellaneous Expenses,07/06/2022,4010871-SI-3904,875.50,TREE TOPS OCCUPATIONAL THERAPY LTD.
Children and Young Peoples Services,Head of Childrens Social Care,Supplies and Services,338045,Services,07/06/2022,4010719-31871,900.61,LAWSON HARDWICK LTD T/A 1ST CLASS SECRETARIAL.
Children and Young Peoples Services,Head of Childrens Social Care,Supplies and Services,338044,Services,07/06/2022,4010805-22112/1,838.95,PSYCHREP UK LTD.
Children and Young Peoples Services,Head of Early Help Inclusion & Vulnerable Children.,Premises,108099,Service Repairs and Maintenance,07/06/2022,4010889-56546,"5,433.47",WILLOWCRETE MANUFACTURING COMPANY LTD (MFG).
Regeneration Economy and Growth,Culture Sport and Tourism,Supplies and Services,372009,Subscriptions E372,07/06/2022,4010604-SI-3493,"2,138.00",CORE BUSINESS SYSTEMS LTD T/A CASCADE 3D.
Regeneration Economy and Growth,Culture Sport and Tourism,Supplies and Services,372009,Subscriptions E372,07/06/2022,4010873-INV-202810,"4,255.00",UKACTIVE.
Regeneration Economy and Growth,Culture Sport and Tourism,Supplies and Services,304259,Equipment and Materials,07/06/2022,4010572-283797,"1,490.04",BOOGIE BOUNCE XTREME LTD.
Regeneration Economy and Growth,Culture Sport and Tourism,Supplies and Services,384999,Miscellaneous Expenses,07/06/2022,4010543-05271,950.00,ACTION LEARNING ASSOCIATES LTD.
Regeneration Economy and Growth,Culture Sport and Tourism,Supplies and Services,338047,Services,07/06/2022,4010589-73,"3,335.55",CHIMES ENTERTAINMENT AGENCY LTD.
Regeneration Economy and Growth,Culture Sport and Tourism,Supplies and Services,338047,Services,07/06/2022,4010638-13110,"7,756.31",ENTERTAINERS (MAGIC OF MOTOWN) LTD.
Regeneration Economy and Growth,Culture Sport and Tourism,Supplies and Services,338047,Services,07/06/2022,4010639-20214266LBRIGHT,"3,374.80",ENTERTAINMENT UNLIMITED.
Regeneration Economy and Growth,Culture Sport and Tourism,Supplies and Services,338047,Services,07/06/2022,4010807-04,"4,710.37",QUAYSIDE PRODUCTIONS LTD.
Regeneration Economy and Growth,Culture Sport and Tourism,Supplies and Services,304259,Equipment and Materials,07/06/2022,4010879-6265,"2,350.00",VORTEX LIGHTING LTD.
Regeneration Economy and Growth,Culture Sport and Tourism,Supplies and Services,352001,Conference Expenses,07/06/2022,4010728-AS2022/047,600.00,LIBRARIES CONNECTED LTD.
Children and Young Peoples Services,Head of Education and Skills,Transport,230008,Contract Hire,07/06/2022,4010566-SMITH1APRIL22,"1,385.15",BEELINE PRIVATE HIRE.
Regeneration Economy and Growth,Culture Sport and Tourism,Supplies and Services,384199,Miscellaneous Expenses,07/06/2022,4010561-1885,"2,325.00",REDACTED - PAYMENT TO INDIVIDUAL
Adult and Health Services,Head of Adults,Transport,230005,Contract Hire,07/06/2022,4010761-290,720.00,REDACTED - PAYMENT TO INDIVIDUAL
Children and Young Peoples Services,Head of Education and Skills,Transport,230012,Contract Hire,07/06/2022,4010761-288,"1,620.00",REDACTED - PAYMENT TO INDIVIDUAL
Children and Young Peoples Services,Head of Education and Skills,Transport,230009,Contract Hire,07/06/2022,4010743-KC3003,936.33,REDACTED - PAYMENT TO INDIVIDUAL
Children and Young Peoples Services,Head of Education and Skills,Transport,230034,Contract Hire,07/06/2022,4010759-KDK-MAY22,"1,434.69",REDACTED - PAYMENT TO INDIVIDUAL
Children and Young Peoples Services,Head of Education and Skills,Transport,230012,Contract Hire,07/06/2022,4010761-287,"3,227.45",REDACTED - PAYMENT TO INDIVIDUAL
Children and Young Peoples Services,Head of Education and Skills,Transport,230009,Contract Hire,07/06/2022,4010761-295,"1,502.52",REDACTED - PAYMENT TO INDIVIDUAL
Children and Young Peoples Services,Head of Education and Skills,Transport,230009,Contract Hire,07/06/2022,4010759-KDK/MAY22-1,889.35,REDACTED - PAYMENT TO INDIVIDUAL
Children and Young Peoples Services,Head of Education and Skills,Transport,230013,Contract Hire,07/06/2022,4010715-008-MAY,"1,216.00",REDACTED - PAYMENT TO INDIVIDUAL
Children and Young Peoples Services,Head of Education and Skills,Transport,230008,Contract Hire,07/06/2022,4010726-0092,"2,831.00",REDACTED - PAYMENT TO INDIVIDUAL
Children and Young Peoples Services,Head of Education and Skills,Transport,230008,Contract Hire,07/06/2022,4010761-292,"1,862.00",REDACTED - PAYMENT TO INDIVIDUAL
Children and Young Peoples Services,Head of Education and Skills,Transport,230008,Contract Hire,07/06/2022,4010761-286,"1,923.37",REDACTED - PAYMENT TO INDIVIDUAL
Children and Young Peoples Services,Head of Education and Skills,Transport,230008,Contract Hire,07/06/2022,4010761-291,"2,063.16",REDACTED - PAYMENT TO INDIVIDUAL
Children and Young Peoples Services,Head of Education and Skills,Transport,230008,Contract Hire,07/06/2022,4010761-294,"1,650.24",REDACTED - PAYMENT TO INDIVIDUAL
Children and Young Peoples Services,Head of Education and Skills,Transport,230008,Contract Hire,07/06/2022,4010726-0091,"2,280.00",REDACTED - PAYMENT TO INDIVIDUAL
Children and Young Peoples Services,Head of Education and Skills,Transport,230008,Contract Hire,07/06/2022,4010743-3331,715.53,REDACTED - PAYMENT TO INDIVIDUAL
Children and Young Peoples Services,Head of Education and Skills,Transport,230008,Contract Hire,07/06/2022,4010761-285,"3,358.44",REDACTED - PAYMENT TO INDIVIDUAL
Children and Young Peoples Services,Head of Education and Skills,Transport,230008,Contract Hire,07/06/2022,4010761-289,"2,700.00",REDACTED - PAYMENT TO INDIVIDUAL
Children and Young Peoples Services,Head of Education and Skills,Transport,230010,Contract Hire,07/06/2022,4010704-100-MAY,"2,660.00",REDACTED - PAYMENT TO INDIVIDUAL
Children and Young Peoples Services,Head of Education and Skills,Transport,230010,Contract Hire,07/06/2022,4010743-KC3013,778.14,REDACTED - PAYMENT TO INDIVIDUAL
Children and Young Peoples Services,Head of Education and Skills,Transport,230006,Contract Hire,07/06/2022,4010758-217,"1,936.14",REDACTED - PAYMENT TO INDIVIDUAL
Regeneration Economy and Growth,Culture Sport and Tourism,Third Party Payments,430131,Rendered by Private Contractors,07/06/2022,4010708-1,510.00,REDACTED - PAYMENT TO INDIVIDUAL
Regeneration Economy and Growth,Culture Sport and Tourism,Supplies and Services,338099,Services,07/06/2022,4010652-3690/0422,"2,450.00",REDACTED - PAYMENT TO INDIVIDUAL
Regeneration Economy and Growth,Culture Sport and Tourism,Third Party Payments,430131,Rendered by Private Contractors,07/06/2022,4010550-CONSETT-MAY22,600.00,REDACTED - PAYMENT TO INDIVIDUAL
Regeneration Economy and Growth,Culture Sport and Tourism,Supplies and Services,324117,Provisions E324,07/06/2022,4010762-16BA,599.70,REDACTED - PAYMENT TO INDIVIDUAL
Neighbourhoods and Climate Change,Technical Services CM0300,Third Party Payments,430100,Rendered by Private Contractors,08/06/2022,4011050-220163,"921,133.72",KIELY BROS LTD.
Neighbourhoods and Climate Change,Environmental Services,Supplies and Services,304221,Equipment and Materials,08/06/2022,4011185-30224,"4,999.00",VALE ENGINEERING YORK LTD.
Neighbourhoods and Climate Change,Environmental Services,Supplies and Services,304221,Equipment and Materials,08/06/2022,4011185-30225,"4,996.00",VALE ENGINEERING YORK LTD.
Neighbourhoods and Climate Change,Technical Services CM0300,Third Party Payments,430100,Rendered by Private Contractors,08/06/2022,4011120-1104,"4,560.00",PRM FABRICATIONS LTD.
Neighbourhoods and Climate Change,Technical Services CM0300,Supplies and Services,304221,Equipment and Materials,08/06/2022,4011143-714560200876,"5,845.73",SIG TRADING LTD.
Neighbourhoods and Climate Change,Technical Services CM0300,Supplies and Services,304221,Equipment and Materials,08/06/2022,4011184-100/10017137,708.00,UNIVERSAL SEALANTS (UK) LTD.
Regeneration Economy and Growth,Development and Housing,Supplies and Services,332001,Printing Stationery and Gen Off Exps,08/06/2022,4011162-507968,"1,445.00",SYCAL UMBRELLAS PRINT & PROMOTIONS LTD.
Regeneration Economy and Growth,Development and Housing,Supplies and Services,304999,Equipment and Materials,08/06/2022,4011162-507986,"3,112.89",SYCAL UMBRELLAS PRINT & PROMOTIONS LTD.
Neighbourhoods and Climate Change,Environmental Services,Supplies and Services,338066,Services,08/06/2022,4010960-5073/419,990.00,CHILDREN NORTH EAST.
Adult and Health Services,Commissioning inc Supporting People,Supplies and Services,352001,Conference Expenses,08/06/2022,4011128-422002,"2,490.00",ROBERT HARRIS T/A CHRONOS SAFETY LTD.
Adult and Health Services,Public Health CC0450,Third Party Payments,460803,Contract Payments,08/06/2022,4011146-D0041908,"27,976.00",SOUTH TEES HOSPITALS NHS FOUNDATION TRUST.
Adult and Health Services,Public Health CC0450,Third Party Payments,460803,Contract Payments,08/06/2022,4011146-D0042437,"13,988.00",SOUTH TEES HOSPITALS NHS FOUNDATION TRUST.
Adult and Health Services,Public Health CC0450,Third Party Payments,460803,Contract Payments,08/06/2022,4011093-7312324041,"19,501.25",NHS MIDLANDS & LANCASHIRE CSU.*
Regeneration Economy and Growth,Communications Management,Supplies and Services,336005,Advertising E336,08/06/2022,4010975-316,"1,475.00",CULTURE VULTURE.
Resources BK0010,Legal & Democratic Services,Supplies and Services,338025,Services,08/06/2022,4011158-12715,"1,180.00",STUART WRIGHT FUNERAL SERVICE LTD.
Resources - C A C,Centrally Administered costs 069006,Supplies and Services,338013,Services,08/06/2022,4011067-1985353,"15,000.00",MAZARS LLP.
Children and Young Peoples Services,Central Charges (CYPS),Supplies and Services,372009,Subscriptions E372,08/06/2022,4010933-S114847,"15,050.00",AVCO SYSTEMS LTD.
Dedicated Schools Grant BG0015,DSG Early Years Block,Transfer Payments,510030,School Children,08/06/2022,4011028-31017,795.30,HORDEN YOUTH & COMMUNITY CENTRE NURSERY.
Dedicated Schools Grant BG0015,DSG Early Years Block,Transfer Payments,510032,School Children,08/06/2022,4011028-31005,"1,735.80",HORDEN YOUTH & COMMUNITY CENTRE NURSERY.
Children and Young Peoples Services,Head of Education and Skills,Supplies and Services,338094,Services,08/06/2022,4010913-7452,560.00,ALINGTON HOUSE COMMUNITY ASSOCIATION.
Children and Young Peoples Services,Head of Early Help Inclusion & Vulnerable Children.,Supplies and Services,352001,Conference Expenses,08/06/2022,4011163-INV-2179,"6,793.80",SYCOL LTD.
Children and Young Peoples Services,Head of Childrens Social Care,Third Party Payments,430105,Rendered by Private Contractors,08/06/2022,4011065-P257641,"3,446.81",MAX RECYCLE T/A THE DURHAM COMPANY (TDC).
Neighbourhoods and Climate Change,Environmental Services,Supplies and Services,304221,Equipment and Materials,08/06/2022,4010957-302013,"1,100.10",CHAS LONG & SON (AGGREGATES) LTD.
Regeneration Economy and Growth,Culture Sport and Tourism,Supplies and Services,304337,Equipment and Materials,08/06/2022,4011063-4236063976,888.48,MARES SPA.
Neighbourhoods and Climate Change,Technical Services CM0300,Construction work A908,908105,Construction work,08/06/2022,4011035-26380,"2,468.20",JACK COUPE & SONS LTD T/A COUPE LINE.
Regeneration Economy and Growth,Culture Sport and Tourism,Supplies and Services,384199,Miscellaneous Expenses,08/06/2022,4010980-057,576.00,DECLAN SOUTHERN.
Regeneration Economy and Growth,Culture Sport and Tourism,Supplies and Services,384237,Miscellaneous Expenses,08/06/2022,4011059-4671,"7,695.00",LOCAL TV LTD.
Regeneration Economy and Growth,Culture Sport and Tourism,Supplies and Services,304259,Equipment and Materials,08/06/2022,4010943-3068203089,544.00,BOC LTD.
Regeneration Economy and Growth,Culture Sport and Tourism,Supplies and Services,324117,Provisions E324,08/06/2022,4010938-51593661,616.58,BIDFOOD.
Regeneration Economy and Growth,Culture Sport and Tourism,Supplies and Services,324117,Provisions E324,08/06/2022,4010938-51665530,501.91,BIDFOOD.
Regeneration Economy and Growth,Culture Sport and Tourism,Supplies and Services,324117,Provisions E324,08/06/2022,4010938-51878371,749.80,BIDFOOD.
Regeneration Economy and Growth,Culture Sport and Tourism,Premises,145023,Cleaning and Domestic Supplies,08/06/2022,4010963-CN30183064,521.16,CITRON HYGIENE UK LTD.
Regeneration Economy and Growth,Culture Sport and Tourism,Supplies and Services,338047,Services,08/06/2022,4011183-22314458144-1,"1,940.63",UNIVERSAL PICTURES INTERNATIONAL UK & EIRE LTD.
Neighbourhoods and Climate Change,Technical Services CM0300,Stock A926,926900,Stock in hand-Inventory system,08/06/2022,4010968-23000RX22009294,"1,358.40",COLAS LTD.
Neighbourhoods and Climate Change,Technical Services CM0300,Stock A926,926900,Stock in hand-Inventory system,08/06/2022,4011020-06/172635,"3,159.90",GREENHAM TRADING LTD.
Neighbourhoods and Climate Change,Technical Services CM0300,Supplies and Services,304221,Equipment and Materials,08/06/2022,4011086-0000106715,"2,003.84",NAL LTD.
Neighbourhoods and Climate Change,Technical Services CM0300,Third Party Payments,430100,Rendered by Private Contractors,08/06/2022,4011121-14155,572.88,QUANTUM POWER CONNECTIONS LTD.
Neighbourhoods and Climate Change,Technical Services CM0300,Third Party Payments,430100,Rendered by Private Contractors,08/06/2022,4011121-14158,"1,033.45",QUANTUM POWER CONNECTIONS LTD.
Neighbourhoods and Climate Change,Technical Services CM0300,Third Party Payments,430100,Rendered by Private Contractors,08/06/2022,4011024-3388,"2,388.00",HIGHWAY CONSTRUCTION SERVICES LTD.
Neighbourhoods and Climate Change,Technical Services CM0300,Third Party Payments,430100,Rendered by Private Contractors,08/06/2022,4011046-356542,"1,595.26",KAEFER LTD.
Neighbourhoods and Climate Change,Technical Services CM0300,Third Party Payments,430100,Rendered by Private Contractors,08/06/2022,4011046-356543,"1,381.61",KAEFER LTD.
Neighbourhoods and Climate Change,Technical Services CM0300,Third Party Payments,430100,Rendered by Private Contractors,08/06/2022,4011046-356544,"1,641.23",KAEFER LTD.
Neighbourhoods and Climate Change,Technical Services CM0300,Third Party Payments,430100,Rendered by Private Contractors,08/06/2022,4011154-18199,"1,800.00",STEADFAST SECURITY SOLUTIONS LTD.
Neighbourhoods and Climate Change,Technical Services CM0300,Supplies and Services,304221,Equipment and Materials,08/06/2022,4011181-233637,669.24,TYNEDALE ROADSTONE LTD.
Neighbourhoods and Climate Change,Technical Services CM0300,Supplies and Services,304221,Equipment and Materials,08/06/2022,4011181-233642,"1,188.84",TYNEDALE ROADSTONE LTD.
Neighbourhoods and Climate Change,Technical Services CM0300,Supplies and Services,304221,Equipment and Materials,08/06/2022,4011181-233645,"1,434.24",TYNEDALE ROADSTONE LTD.
Neighbourhoods and Climate Change,Technical Services CM0300,Supplies and Services,304221,Equipment and Materials,08/06/2022,4011181-233756,"3,231.36",TYNEDALE ROADSTONE LTD.
Neighbourhoods and Climate Change,Technical Services CM0300,Supplies and Services,304221,Equipment and Materials,08/06/2022,4011190-27110,"1,006.50",WARD TIMBER LTD.
Regeneration Economy and Growth,Corporate Property and Land,Third Party Payments,430100,Rendered by Private Contractors,08/06/2022,4011088-38350,"3,258.60",NE & C WINDOWS & DOORS LTD.
Regeneration Economy and Growth,Corporate Property and Land,Third Party Payments,430100,Rendered by Private Contractors,08/06/2022,4011088-38351,525.00,NE & C WINDOWS & DOORS LTD.
Regeneration Economy and Growth,Corporate Property and Land,Third Party Payments,430100,Rendered by Private Contractors,08/06/2022,4011088-38352,"3,258.60",NE & C WINDOWS & DOORS LTD.
Regeneration Economy and Growth,Corporate Property and Land,Third Party Payments,430100,Rendered by Private Contractors,08/06/2022,4010932-8406,"9,971.00",ATLAS WASHROOM SYSTEMS LTD.
Regeneration Economy and Growth,Corporate Property and Land,Supplies and Services,304221,Equipment and Materials,08/06/2022,4011164-806422,589.69,T CROSSLING & CO LTD.
Regeneration Economy and Growth,Corporate Property and Land,Third Party Payments,430100,Rendered by Private Contractors,08/06/2022,4010915-SI19598,925.00,AMBIC LTD.
Regeneration Economy and Growth,Corporate Property and Land,Third Party Payments,430100,Rendered by Private Contractors,08/06/2022,4010995-SIN/22-081827-BD,"1,023.00",ENGINEERING PRECISION SOLUTIONS LTD T/A CYRUS-BRADFORD.
Regeneration Economy and Growth,Corporate Property and Land,Supplies and Services,304221,Equipment and Materials,08/06/2022,4010953-140011362,"4,940.40",CARLISLE CONSTRUCTION MATERIALS LTD.
Regeneration Economy and Growth,Corporate Property and Land,Third Party Payments,430100,Rendered by Private Contractors,08/06/2022,4010995-SIN/22-081813-BD,"1,845.00",ENGINEERING PRECISION SOLUTIONS LTD T/A CYRUS-BRADFORD.
Neighbourhoods and Climate Change,Environmental Services,Supplies and Services,338045,Services,08/06/2022,4011200-3642021,884.00,WOMBLE BOND DICKINSON (UK) LLP.
Neighbourhoods and Climate Change,Environmental Services,Supplies and Services,338045,Services,08/06/2022,4011200-3642022,"2,605.80",WOMBLE BOND DICKINSON (UK) LLP.
Neighbourhoods and Climate Change,Technical Services CM0300,Supplies and Services,304259,Equipment and Materials,08/06/2022,4011116-NE/IN308833,"1,250.00",PQS SURVEY LTD.
Regeneration Economy and Growth,Development and Housing,Supplies and Services,338066,Services,08/06/2022,4010942-SIN033937,"13,250.00",BLOOM PROCUREMENT SERVICES LTD (FORMERLY NEPRO LTD).
Regeneration Economy and Growth,Business Durham CL0850,Supplies and Services,338066,Services,08/06/2022,4010942-SIN033934,"11,150.00",BLOOM PROCUREMENT SERVICES LTD (FORMERLY NEPRO LTD).
Regeneration Economy and Growth,Business Durham CL0850,Supplies and Services,336005,Advertising E336,08/06/2022,4011091-40046891,775.00,NEWSQUEST (YORKSHIRE & NORTH EAST) LTD.
Regeneration Economy and Growth,Business Durham CL0850,Construction work A908,908105,Construction work,08/06/2022,4011130-RCPX3589,"193,180.00",ROBERTSON CAPITAL PROJECTS.
Adult and Health Services,Central/Other,Third Party Payments,440150,Other third party payments E440,08/06/2022,4011092-NHSCCG/JUNE2022,"1,357,782.00",NHS DDES CCG.
Adult and Health Services,Head of Adults,Third Party Payments,478101,Purchase of Care,08/06/2022,4011113-RES-06-2022-049,"11,951.12",POTENSIAL LTD.
Adult and Health Services,Head of Adults,Transport,230005,Contract Hire,08/06/2022,4010930-DCC5MAY22,"1,330.14",ATLAS TAXIS BISHOP AUCKLAND.
Adult and Health Services,Head of Adults,Transport,230005,Contract Hire,08/06/2022,4010930-DCC13MAY2022,"1,378.02",ATLAS TAXIS BISHOP AUCKLAND.
Adult and Health Services,Head of Adults,Transport,230005,Contract Hire,08/06/2022,4010901-52208-MAY22,"1,568.00",24/7 TAXI SERVICES (PETERLEE) LTD.
Adult and Health Services,Head of Adults,Transport,230005,Contract Hire,08/06/2022,4011133-SED112/38,"1,855.88",S & S TRAVEL LTD.
Resources BK0010,Procurement Sales & Business Services,Supplies and Services,384199,Miscellaneous Expenses,08/06/2022,4011186-UKSI16612,"2,425.85",VALTECH LTD.
Regeneration Economy and Growth,Culture Sport and Tourism,Supplies and Services,312013,Newspapers books and periodicals E312,08/06/2022,4010927-6705326,524.42,ASKEWS & HOLTS LIBRARY SERVICES LTD.
Regeneration Economy and Growth,Culture Sport and Tourism,Supplies and Services,312013,Newspapers books and periodicals E312,08/06/2022,4010944-86736,"1,500.00",BOLINDA DIGITAL LTD.
Neighbourhoods and Climate Change,Partnerships & Community Engagement Div.,Supplies and Services,384086,Miscellaneous Expenses,08/06/2022,4010961-VOUCHERCAIJ02-22,999.00,CHILTON CATHOLIC CLUB.
Resources BK0010,Transactional & Customer Services,Supplies and Services,342051,Computers and Communications,08/06/2022,4010966-M/LR101567,"8,505.00",CIVICA UK LTD.
Resources BK0010,Digital Services,Supplies and Services,344131,Telephones,08/06/2022,4011161-140727,"4,986.56",SWITCHSHOP LTD.
Resources BK0010,Digital Services,Supplies and Services,332029,Printing Stationery and Gen Off Exps,08/06/2022,4011122-19907,750.00,RADECAL SIGNS GRAPHICS & ADVERTISING.
Resources BK0010,HR & Employee Services,Supplies and Services,372009,Subscriptions E372,08/06/2022,4011097-31714,"22,691.00",NORTH EAST REGIONAL EMPLOYERS ORGANISATION (NEREO).
Resources BK0010,Legal & Democratic Services,Supplies and Services,338042,Services,08/06/2022,4011178-289547/INVRP206,720.00,TRINITY CHAMBERS.
Resources BK0010,Legal & Democratic Services,Supplies and Services,338042,Services,08/06/2022,4011178-293651/INVKW615,"4,840.00",TRINITY CHAMBERS.
Resources BK0010,Legal & Democratic Services,Supplies and Services,338042,Services,08/06/2022,4011178-298584/INVLS130,"3,240.00",TRINITY CHAMBERS.
Resources BK0010,Digital Services,Stock A926,926900,Stock in hand-Inventory system,08/06/2022,4010981-7402818499,"14,563.50",DELL COMPUTER CORPORATION LTD.
Resources BK0010,Digital Services,Stock A926,926900,Stock in hand-Inventory system,08/06/2022,4010981-7402819477,994.80,DELL COMPUTER CORPORATION LTD.
Resources BK0010,Digital Services,Stock A926,926900,Stock in hand-Inventory system,08/06/2022,4010981-7402819478,994.80,DELL COMPUTER CORPORATION LTD.
Dedicated Schools Grant BG0015,DSG High Needs Block,Central Support and Other Recharges,689996,Unclassified E690,08/06/2022,4010921-RES-06-2022-048,"127,500.00",APOLLO SCHOOLS TRUST T/A ENDEAVOUR ACADEMY.
Dedicated Schools Grant BG0015,DSG Early Years Block,Transfer Payments,510030,School Children,08/06/2022,4010911-31018,699.60,ADVANCE LEARNING PARTNERSHIP.
Dedicated Schools Grant BG0015,DSG Early Years Block,Transfer Payments,510030,School Children,08/06/2022,4010994-31014,699.60,EMERALDS LITTLE GEMS DAYCARE LTD.
Dedicated Schools Grant BG0015,DSG Early Years Block,Transfer Payments,510030,School Children,08/06/2022,4010999-31015,592.02,EXPLORERS DAY CARE.
Dedicated Schools Grant BG0015,DSG Early Years Block,Transfer Payments,510032,School Children,08/06/2022,4010940-31008,867.90,BISHOP HOGARTH CATHOLIC EDUCATION TRUST.
Dedicated Schools Grant BG0015,DSG Early Years Block,Transfer Payments,510032,School Children,08/06/2022,4010985-31004,536.52,DO RE MI DAY NURSERY.
Dedicated Schools Grant BG0015,DSG Early Years Block,Transfer Payments,510032,School Children,08/06/2022,4011030-31006,867.90,HOWLETCH & SHOTTON CHILDCARE LTD.
Dedicated Schools Grant BG0015,DSG Early Years Block,Transfer Payments,510032,School Children,08/06/2022,4011089-31007,646.98,NELLIE`S DAY NURSERY LTD.
Children and Young Peoples Services,Head of Education and Skills,Transport,230034,Contract Hire,08/06/2022,4010929-916,"2,124.00",AT TAXIS LTD.
Children and Young Peoples Services,Head of Education and Skills,Transport,230007,Contract Hire,08/06/2022,4010929-917,"1,766.52",AT TAXIS LTD.
Children and Young Peoples Services,Head of Education and Skills,Construction work A908,908105,Construction work,08/06/2022,4010915-SI19585,"1,150.00",AMBIC LTD.
Children and Young Peoples Services,Head of Education and Skills,Transport,230007,Contract Hire,08/06/2022,4011051-1048,950.00,KINGSWAY CABS LTD.
Children and Young Peoples Services,Head of Education and Skills,Transport,230007,Contract Hire,08/06/2022,4010929-920,"1,805.00",AT TAXIS LTD.
Children and Young Peoples Services,Head of Education and Skills,Transport,230034,Contract Hire,08/06/2022,4011051-1049,"2,945.00",KINGSWAY CABS LTD.
Children and Young Peoples Services,Head of Education and Skills,Transport,230034,Contract Hire,08/06/2022,4011156-MAY183/STL,"3,428.93",STL CABS.
Children and Young Peoples Services,Head of Education and Skills,Transport,230007,Contract Hire,08/06/2022,4011123-09-4062,"1,423.10",RAYNERS COACHES.
Children and Young Peoples Services,Head of Education and Skills,Transport,230034,Contract Hire,08/06/2022,4010901-52202-APRIL,550.00,24/7 TAXI SERVICES (PETERLEE) LTD.
Children and Young Peoples Services,Head of Education and Skills,Transport,230034,Contract Hire,08/06/2022,4010901-52205-MAY,"3,210.72",24/7 TAXI SERVICES (PETERLEE) LTD.
Children and Young Peoples Services,Head of Education and Skills,Transport,230012,Contract Hire,08/06/2022,4010901-52214,"2,280.00",24/7 TAXI SERVICES (PETERLEE) LTD.
Children and Young Peoples Services,Head of Education and Skills,Transport,230034,Contract Hire,08/06/2022,4010929-918,"1,359.45",AT TAXIS LTD.
Children and Young Peoples Services,Head of Education and Skills,Transport,230007,Contract Hire,08/06/2022,4011051-1042,"1,615.00",KINGSWAY CABS LTD.
Children and Young Peoples Services,Head of Education and Skills,Transport,230034,Contract Hire,08/06/2022,4010924-MAY2022-1,"1,064.00",ARMSTRONG`S TAXIS.
Children and Young Peoples Services,Head of Education and Skills,Transport,230034,Contract Hire,08/06/2022,4010901-52203,"1,008.54",24/7 TAXI SERVICES (PETERLEE) LTD.
Children and Young Peoples Services,Head of Education and Skills,Transfer Payments,510034,School Children,08/06/2022,4010941-LACPP21-22ADDITIONAL,"1,400.00",BISHOP HOGARTH CATHOLIC EDUCATION TRUST.
Children and Young Peoples Services,Head of Education and Skills,Transport,230034,Contract Hire,08/06/2022,4011051-1047,"1,710.00",KINGSWAY CABS LTD.
Children and Young Peoples Services,Head of Education and Skills,Transport,230003,Contract Hire,08/06/2022,4011153-59634,"9,812.17",STANLEY TRAVEL (NORTH EAST) LTD.
Children and Young Peoples Services,Head of Education and Skills,Transport,230007,Contract Hire,08/06/2022,4011123-09-4036,"2,375.00",RAYNERS COACHES.
Children and Young Peoples Services,Head of Education and Skills,Transport,230007,Contract Hire,08/06/2022,4011123-09-3194,"1,501.00",RAYNERS COACHES.
Children and Young Peoples Services,Head of Education and Skills,Transport,230007,Contract Hire,08/06/2022,4010929-919,"2,010.58",AT TAXIS LTD.
Children and Young Peoples Services,Head of Education and Skills,Transport,230009,Contract Hire,08/06/2022,4010931-DCC16MAY22,"1,350.00",ATLAS TAXIS MANAGEMENT LTD.
Children and Young Peoples Services,Head of Education and Skills,Transport,230007,Contract Hire,08/06/2022,4011123-02-4006,"2,555.50",RAYNERS COACHES.
Children and Young Peoples Services,Head of Education and Skills,Transport,230007,Contract Hire,08/06/2022,4011123-09-4004,"1,463.00",RAYNERS COACHES.
Children and Young Peoples Services,Head of Education and Skills,Transport,230007,Contract Hire,08/06/2022,4011123-09-4005,"3,980.50",RAYNERS COACHES.
Children and Young Peoples Services,Head of Education and Skills,Transport,230007,Contract Hire,08/06/2022,4010901-52204,779.00,24/7 TAXI SERVICES (PETERLEE) LTD.
Children and Young Peoples Services,Head of Education and Skills,Transport,230007,Contract Hire,08/06/2022,4010901-52201,569.81,24/7 TAXI SERVICES (PETERLEE) LTD.
Children and Young Peoples Services,Head of Education and Skills,Transport,230007,Contract Hire,08/06/2022,4011129-1679,"3,778.15",ROBERTS TOURS.
Children and Young Peoples Services,Head of Education and Skills,Transport,230007,Contract Hire,08/06/2022,4011129-1680,"5,681.00",ROBERTS TOURS.
Children and Young Peoples Services,Head of Education and Skills,Transport,230007,Contract Hire,08/06/2022,4011129-1681,"3,752.50",ROBERTS TOURS.
Children and Young Peoples Services,Head of Education and Skills,Transport,230034,Contract Hire,08/06/2022,4010901-52202,570.00,24/7 TAXI SERVICES (PETERLEE) LTD.
Children and Young Peoples Services,Head of Education and Skills,Transport,230003,Contract Hire,08/06/2022,4011153-59635,"4,123.00",STANLEY TRAVEL (NORTH EAST) LTD.
Children and Young Peoples Services,Head of Education and Skills,Transport,230003,Contract Hire,08/06/2022,4011153-59636,"3,192.00",STANLEY TRAVEL (NORTH EAST) LTD.
Children and Young Peoples Services,Head of Education and Skills,Transport,230006,Contract Hire,08/06/2022,4010901-52206,"3,021.00",24/7 TAXI SERVICES (PETERLEE) LTD.
Children and Young Peoples Services,Head of Education and Skills,Transport,230006,Contract Hire,08/06/2022,4010901-52207,950.00,24/7 TAXI SERVICES (PETERLEE) LTD.
Children and Young Peoples Services,Head of Education and Skills,Transport,230008,Contract Hire,08/06/2022,4010930-DCC14MAY22,"1,680.00",ATLAS TAXIS BISHOP AUCKLAND.
Children and Young Peoples Services,Head of Education and Skills,Transport,230008,Contract Hire,08/06/2022,4010931-DCC12MAY22,"3,021.00",ATLAS TAXIS MANAGEMENT LTD.
Children and Young Peoples Services,Head of Education and Skills,Transport,230006,Contract Hire,08/06/2022,4010931-DCC6MAY2022,"3,591.00",ATLAS TAXIS MANAGEMENT LTD.
Children and Young Peoples Services,Head of Education and Skills,Transport,230008,Contract Hire,08/06/2022,4011051-1031,"1,727.10",KINGSWAY CABS LTD.
Children and Young Peoples Services,Head of Education and Skills,Transport,230008,Contract Hire,08/06/2022,4011051-1036,"3,515.00",KINGSWAY CABS LTD.
Children and Young Peoples Services,Head of Education and Skills,Transport,230008,Contract Hire,08/06/2022,4011051-1038,"2,660.00",KINGSWAY CABS LTD.
Children and Young Peoples Services,Head of Education and Skills,Transport,230007,Contract Hire,08/06/2022,4011051-1034,"1,672.00",KINGSWAY CABS LTD.
Children and Young Peoples Services,Head of Education and Skills,Transport,230034,Contract Hire,08/06/2022,4011051-1041,"1,710.00",KINGSWAY CABS LTD.
Children and Young Peoples Services,Head of Education and Skills,Transport,230003,Contract Hire,08/06/2022,4011153-59629,"2,955.45",STANLEY TRAVEL (NORTH EAST) LTD.
Children and Young Peoples Services,Head of Education and Skills,Transport,230003,Contract Hire,08/06/2022,4011153-59630,"7,698.80",STANLEY TRAVEL (NORTH EAST) LTD.
Children and Young Peoples Services,Head of Education and Skills,Transport,230003,Contract Hire,08/06/2022,4011153-59631,"3,526.78",STANLEY TRAVEL (NORTH EAST) LTD.
Children and Young Peoples Services,Head of Education and Skills,Transport,230003,Contract Hire,08/06/2022,4011153-59632,"3,310.18",STANLEY TRAVEL (NORTH EAST) LTD.
Children and Young Peoples Services,Head of Education and Skills,Transport,230003,Contract Hire,08/06/2022,4011153-59633,"3,723.81",STANLEY TRAVEL (NORTH EAST) LTD.
Children and Young Peoples Services,Head of Education and Skills,Third Party Payments,440999,Other third party payments E440,08/06/2022,4011018-KICK5044718INVOICE000806,"1,085.21",GREENCROFT DOG DAYCARE LTD.
Children and Young Peoples Services,Head of Education and Skills,Transport,230008,Contract Hire,08/06/2022,4010908-AC2044,"1,330.00",ACE TAXIS (WINSTON).
Children and Young Peoples Services,Head of Education and Skills,Transport,230008,Contract Hire,08/06/2022,4011051-1050,"2,432.00",KINGSWAY CABS LTD.
Children and Young Peoples Services,Head of Education and Skills,Transport,230008,Contract Hire,08/06/2022,4011051-1045,"2,565.00",KINGSWAY CABS LTD.
Children and Young Peoples Services,Head of Education and Skills,Transport,230008,Contract Hire,08/06/2022,4010930-DCC04MAY22,"4,144.69",ATLAS TAXIS BISHOP AUCKLAND.
Children and Young Peoples Services,Head of Education and Skills,Transport,230008,Contract Hire,08/06/2022,4011051-1028,"3,325.00",KINGSWAY CABS LTD.
Children and Young Peoples Services,Head of Education and Skills,Transport,230008,Contract Hire,08/06/2022,4011051-1029,"1,900.00",KINGSWAY CABS LTD.
Children and Young Peoples Services,Head of Education and Skills,Transport,230008,Contract Hire,08/06/2022,4011051-1039,"2,812.00",KINGSWAY CABS LTD.
Children and Young Peoples Services,Head of Education and Skills,Transport,230008,Contract Hire,08/06/2022,4010901-52209,"3,021.00",24/7 TAXI SERVICES (PETERLEE) LTD.
Children and Young Peoples Services,Head of Education and Skills,Transport,230008,Contract Hire,08/06/2022,4010901-52211,"2,660.00",24/7 TAXI SERVICES (PETERLEE) LTD.
Children and Young Peoples Services,Head of Education and Skills,Transport,230016,Contract Hire,08/06/2022,4011127-SI-135,"1,606.00",ROBBIE`S PRIVATE HIRE.
Children and Young Peoples Services,Head of Education and Skills,Transport,230008,Contract Hire,08/06/2022,4010901-52212,"4,801.99",24/7 TAXI SERVICES (PETERLEE) LTD.
Children and Young Peoples Services,Head of Education and Skills,Transport,230008,Contract Hire,08/06/2022,4010906-O558,"2,599.80",ABC & OUSTON CABS.
Children and Young Peoples Services,Head of Education and Skills,Transport,230008,Contract Hire,08/06/2022,4011051-1038-MAY22,"3,330.00",KINGSWAY CABS LTD.
Children and Young Peoples Services,Head of Education and Skills,Transport,230008,Contract Hire,08/06/2022,4011051-1046,"2,390.58",KINGSWAY CABS LTD.
Children and Young Peoples Services,Head of Education and Skills,Transport,230008,Contract Hire,08/06/2022,4011106-310522,"1,836.78",PB PRIVATE HIRE.
Children and Young Peoples Services,Head of Education and Skills,Transport,230008,Contract Hire,08/06/2022,4011123-09-M008,"2,524.50",RAYNERS COACHES.
Children and Young Peoples Services,Head of Education and Skills,Transport,230006,Contract Hire,08/06/2022,4010924-MAY2022-4,"2,641.00",ARMSTRONG`S TAXIS.
Children and Young Peoples Services,Head of Education and Skills,Transport,230008,Contract Hire,08/06/2022,4010930-DCC03MAY22,"3,021.00",ATLAS TAXIS BISHOP AUCKLAND.
Children and Young Peoples Services,Head of Education and Skills,Transport,230008,Contract Hire,08/06/2022,4010930-DCC7MAY22,"3,351.22",ATLAS TAXIS BISHOP AUCKLAND.
Children and Young Peoples Services,Head of Education and Skills,Transport,230008,Contract Hire,08/06/2022,4010930-DCC8MAY22,"3,363.38",ATLAS TAXIS BISHOP AUCKLAND.
Children and Young Peoples Services,Head of Education and Skills,Transport,230008,Contract Hire,08/06/2022,4010931-DCC11MAY22,"2,910.80",ATLAS TAXIS MANAGEMENT LTD.
Children and Young Peoples Services,Head of Education and Skills,Transport,230008,Contract Hire,08/06/2022,4011123-09-W042,"1,826.28",RAYNERS COACHES.
Children and Young Peoples Services,Head of Education and Skills,Transport,230008,Contract Hire,08/06/2022,4010929-914,"2,840.50",AT TAXIS LTD.
Children and Young Peoples Services,Head of Education and Skills,Transport,230008,Contract Hire,08/06/2022,4010929-915,"2,755.00",AT TAXIS LTD.
Children and Young Peoples Services,Head of Education and Skills,Transport,230008,Contract Hire,08/06/2022,4010930-DCC10MAY22,"5,589.43",ATLAS TAXIS BISHOP AUCKLAND.
Children and Young Peoples Services,Head of Education and Skills,Transport,230008,Contract Hire,08/06/2022,4010931-DCC15MAY22,"3,855.00",ATLAS TAXIS MANAGEMENT LTD.
Children and Young Peoples Services,Head of Education and Skills,Transport,230008,Contract Hire,08/06/2022,4010931-DCC2MAY2022,"3,572.00",ATLAS TAXIS MANAGEMENT LTD.
Children and Young Peoples Services,Head of Education and Skills,Transport,230008,Contract Hire,08/06/2022,4010931-DCC9MAY2022,"3,040.00",ATLAS TAXIS MANAGEMENT LTD.
Children and Young Peoples Services,Head of Education and Skills,Transport,230008,Contract Hire,08/06/2022,4011132-005-MAY22,"2,769.82",RONS TAXI (CHESTER LE ST).
Dedicated Schools Grant BG0015,DSG High Needs Block,Central Support and Other Recharges,689996,Unclassified E690,08/06/2022,4011026-RES-06-2022-055,"45,907.00",HOPE WOOD ACADEMY.
Dedicated Schools Grant BG0015,DSG High Needs Block,Central Support and Other Recharges,689996,Unclassified E690,08/06/2022,4011026-RES-06-2022-056,"121,573.00",HOPE WOOD ACADEMY.
Children and Young Peoples Services,Head of Education and Skills,Transport,230010,Contract Hire,08/06/2022,4010906-O560,"2,571.40",ABC & OUSTON CABS.
Children and Young Peoples Services,Head of Education and Skills,Transport,230010,Contract Hire,08/06/2022,4010906-O561,"2,506.12",ABC & OUSTON CABS.
Children and Young Peoples Services,Head of Education and Skills,Transport,230006,Contract Hire,08/06/2022,4010924-MAY2022-3,"1,526.72",ARMSTRONG`S TAXIS.
Children and Young Peoples Services,Head of Education and Skills,Transport,230006,Contract Hire,08/06/2022,4011051-1035,"1,661.99",KINGSWAY CABS LTD.
Children and Young Peoples Services,Head of Education and Skills,Transport,230006,Contract Hire,08/06/2022,4011051-1044,"2,074.48",KINGSWAY CABS LTD.
Children and Young Peoples Services,Head of Education and Skills,Transport,230006,Contract Hire,08/06/2022,4011110-INV0031,"3,157.30",PHIL BELL EXECUTIVE TRAVEL.
Children and Young Peoples Services,Head of Education and Skills,Transport,230006,Contract Hire,08/06/2022,4011110-INV0032,"1,639.00",PHIL BELL EXECUTIVE TRAVEL.
Children and Young Peoples Services,Head of Childrens Social Care,Employees,080025,Agency Staff,08/06/2022,4011009-2460165,"139,362.46",GEOMETRIC RESULTS INTERNATIONAL.
Children and Young Peoples Services,Head of Early Help Inclusion & Vulnerable Children.,Supplies and Services,384491,Miscellaneous Expenses,08/06/2022,4011021-31052022,"1,049.75",HAPPYTIMES DAYCARE LTD.
Regeneration Economy and Growth,Culture Sport and Tourism,Supplies and Services,304259,Equipment and Materials,08/06/2022,4010922-274091,650.00,ARCO PROFESSIONAL SAFETY SERVICES LTD.*
Regeneration Economy and Growth,Culture Sport and Tourism,Supplies and Services,384199,Miscellaneous Expenses,08/06/2022,4010987-1219,"1,800.00",DUNELM GEOTECHNICAL & ENVIRONMENTAL LTD.
Regeneration Economy and Growth,Culture Sport and Tourism,Supplies and Services,338047,Services,08/06/2022,4011117-1569,"5,576.64",PRESTIGE PRODUCTIONS LTD.
Neighbourhoods and Climate Change,Technical Services CM0300,Fees,901002,Consultants fees 901002,08/06/2022,4011167-1800047610,"3,490.50",THE CHURCH COMMISSIONERS FOR ENGLAND.
Neighbourhoods and Climate Change,Partnerships & Community Engagement Div.,Supplies and Services,384086,Miscellaneous Expenses,08/06/2022,4010939-VOUCHERPJ-JACA01-22,999.00,BISHOP AUCKLAND TOWN COUNCIL.
Neighbourhoods and Climate Change,Partnerships & Community Engagement Div.,Supplies and Services,384086,Miscellaneous Expenses,08/06/2022,4011003-VOUCHERQUIJ02-22,999.00,FERRYHILL ATHLETIC CLUB.
Neighbourhoods and Climate Change,Partnerships & Community Engagement Div.,Supplies and Services,384086,Miscellaneous Expenses,08/06/2022,4011054-VOUCHERSG-MCGM01-22,999.00,LANCHESTER PARTNERSHIP.
Neighbourhoods and Climate Change,Partnerships & Community Engagement Div.,Supplies and Services,384086,Miscellaneous Expenses,08/06/2022,4011085-VOUCHERPJ-ADRC01-22,600.00,MURTON PARISH COUNCIL.
Neighbourhoods and Climate Change,Partnerships & Community Engagement Div.,Supplies and Services,384086,Miscellaneous Expenses,08/06/2022,4011165-VOUCHERCHAR03-22,990.00,TANFIELD LEA PARTNERSHIP.
Neighbourhoods and Climate Change,Partnerships & Community Engagement Div.,Supplies and Services,384086,Miscellaneous Expenses,08/06/2022,4011174-VOUCHERPEEE04-22,999.00,THRISLINGTON BANNER GROUP.
Neighbourhoods and Climate Change,Partnerships & Community Engagement Div.,Supplies and Services,384086,Miscellaneous Expenses,08/06/2022,4011187-VOUCHERROOK02-22,500.00,VILLA REAL SCHOOL ASSOCIATION.
Regeneration Economy and Growth,Culture Sport and Tourism,Third Party Payments,430131,Rendered by Private Contractors,08/06/2022,4011068-2022020,891.00,REDACTED - PAYMENT TO INDIVIDUAL
Regeneration Economy and Growth,Culture Sport and Tourism,Third Party Payments,430131,Rendered by Private Contractors,08/06/2022,4011068-2022021,"3,268.00",REDACTED - PAYMENT TO INDIVIDUAL
Neighbourhoods and Climate Change,Environmental Services,Supplies and Services,338099,Services,08/06/2022,4011078-SI-10,"2,030.00",REDACTED - PAYMENT TO INDIVIDUAL
Neighbourhoods and Climate Change,Environmental Services,Supplies and Services,338066,Services,08/06/2022,4011061-BOWLEES,955.00,REDACTED - PAYMENT TO INDIVIDUAL
Adult and Health Services,Head of Adults,Transport,230005,Contract Hire,08/06/2022,4010962-EAS199-MAY22,950.00,REDACTED - PAYMENT TO INDIVIDUAL
Children and Young Peoples Services,Head of Education and Skills,Transport,230034,Contract Hire,08/06/2022,4011081-INV0098,"1,129.68",REDACTED - PAYMENT TO INDIVIDUAL
Children and Young Peoples Services,Head of Education and Skills,Transport,230034,Contract Hire,08/06/2022,4011071-AT265,"1,480.00",REDACTED - PAYMENT TO INDIVIDUAL
Children and Young Peoples Services,Head of Education and Skills,Transport,230034,Contract Hire,08/06/2022,4011077-4512-MAY22,"1,190.00",REDACTED - PAYMENT TO INDIVIDUAL
Children and Young Peoples Services,Head of Education and Skills,Transport,230012,Contract Hire,08/06/2022,4011072-E054-9,"1,744.00",REDACTED - PAYMENT TO INDIVIDUAL
Children and Young Peoples Services,Head of Education and Skills,Transport,230007,Contract Hire,08/06/2022,4011084-DCC/002/22,"1,909.69",REDACTED - PAYMENT TO INDIVIDUAL
Children and Young Peoples Services,Head of Education and Skills,Transport,230009,Contract Hire,08/06/2022,4010916-7/MAY,"1,449.89",REDACTED - PAYMENT TO INDIVIDUAL
Children and Young Peoples Services,Head of Education and Skills,Transport,230034,Contract Hire,08/06/2022,4011080-4501MAY22,"2,439.03",REDACTED - PAYMENT TO INDIVIDUAL
Children and Young Peoples Services,Head of Education and Skills,Transport,230003,Contract Hire,08/06/2022,4011105-3560,"2,770.20",REDACTED - PAYMENT TO INDIVIDUAL
Children and Young Peoples Services,Head of Education and Skills,Transport,230007,Contract Hire,08/06/2022,4011145-000004,"2,698.00",REDACTED - PAYMENT TO INDIVIDUAL
Children and Young Peoples Services,Head of Education and Skills,Transport,230007,Contract Hire,08/06/2022,4011082-147,"1,520.00",REDACTED - PAYMENT TO INDIVIDUAL
Children and Young Peoples Services,Head of Education and Skills,Transport,230034,Contract Hire,08/06/2022,4011077-4423-MAY22,"1,976.57",REDACTED - PAYMENT TO INDIVIDUAL
Children and Young Peoples Services,Head of Education and Skills,Transport,230007,Contract Hire,08/06/2022,4011104-SC-125,"2,820.55",REDACTED - PAYMENT TO INDIVIDUAL
Children and Young Peoples Services,Head of Education and Skills,Transport,230009,Contract Hire,08/06/2022,4011071-AT266,"1,017.00",REDACTED - PAYMENT TO INDIVIDUAL
Children and Young Peoples Services,Head of Education and Skills,Transport,230009,Contract Hire,08/06/2022,4011077-7380-MAY22,"2,203.24",REDACTED - PAYMENT TO INDIVIDUAL
Children and Young Peoples Services,Head of Education and Skills,Transport,230009,Contract Hire,08/06/2022,4011082-144,"2,630.00",REDACTED - PAYMENT TO INDIVIDUAL
Children and Young Peoples Services,Head of Education and Skills,Transport,230008,Contract Hire,08/06/2022,4011079-9A-N107,990.00,REDACTED - PAYMENT TO INDIVIDUAL
Children and Young Peoples Services,Head of Education and Skills,Transport,230008,Contract Hire,08/06/2022,4011073-W174/20,"2,378.34",REDACTED - PAYMENT TO INDIVIDUAL
Children and Young Peoples Services,Head of Education and Skills,Transport,230008,Contract Hire,08/06/2022,4011079-38B,792.09,REDACTED - PAYMENT TO INDIVIDUAL
Children and Young Peoples Services,Head of Education and Skills,Transport,230008,Contract Hire,08/06/2022,4011082-142,"1,440.00",REDACTED - PAYMENT TO INDIVIDUAL
Children and Young Peoples Services,Head of Education and Skills,Transport,230010,Contract Hire,08/06/2022,4010916-9/MAY,"1,077.48",REDACTED - PAYMENT TO INDIVIDUAL
Children and Young Peoples Services,Head of Education and Skills,Transport,230010,Contract Hire,08/06/2022,4011043-B045/MAY,"2,528.03",REDACTED - PAYMENT TO INDIVIDUAL
Children and Young Peoples Services,Head of Education and Skills,Transport,230006,Contract Hire,08/06/2022,4010916-9/MAY/F155,715.00,REDACTED - PAYMENT TO INDIVIDUAL
Children and Young Peoples Services,Head of Education and Skills,Transport,230006,Contract Hire,08/06/2022,4011010-14C,"2,596.00",REDACTED - PAYMENT TO INDIVIDUAL
Children and Young Peoples Services,Head of Education and Skills,Transport,230006,Contract Hire,08/06/2022,4011075-09-F117-MAY22,"1,440.00",REDACTED - PAYMENT TO INDIVIDUAL
Children and Young Peoples Services,Head of Education and Skills,Transport,230006,Contract Hire,08/06/2022,4011082-145,770.00,REDACTED - PAYMENT TO INDIVIDUAL
Children and Young Peoples Services,Head of Education and Skills,Transport,230006,Contract Hire,08/06/2022,4011104-SC-126,"1,615.00",REDACTED - PAYMENT TO INDIVIDUAL
Children and Young Peoples Services,Head of Education and Skills,Transport,230006,Contract Hire,08/06/2022,4011104-SC-127,"1,060.86",REDACTED - PAYMENT TO INDIVIDUAL
Neighbourhoods and Climate Change,Environmental Services,Supplies and Services,304221,Equipment and Materials,09/06/2022,4011439-128596,"1,695.41",KERNOCK PARK PLANTS LTD.
Neighbourhoods and Climate Change,Environmental Services,Supplies and Services,304221,Equipment and Materials,09/06/2022,4011404-9002279548,635.00,HAKO MACHINES LTD.
Regeneration Economy and Growth,Corporate Property and Land,Third Party Payments,430105,Rendered by Private Contractors,09/06/2022,4011681-8541240218,"1,285.90",VEOLIA ENVIRONMENTAL SERVICES ES (UK) LTD.
Neighbourhoods and Climate Change,Technical Services CM0300,Supplies and Services,304221,Equipment and Materials,09/06/2022,4011424-33442,544.50,INTERPLAN SIGN SYSTEMS LTD.
Neighbourhoods and Climate Change,Technical Services CM0300,Supplies and Services,304221,Equipment and Materials,09/06/2022,4011520-224148,"1,043.00",NORTH EAST CONCRETE LTD.
Regeneration Economy and Growth,Corporate Property and Land,Supplies and Services,304221,Equipment and Materials,09/06/2022,4011379-100/10019583,"3,360.00",FIBREGRID LTD.
Regeneration Economy and Growth,Corporate Property and Land,Supplies and Services,304221,Equipment and Materials,09/06/2022,4011693-2945757,598.68,WESSEX LIFT CO LTD.
Neighbourhoods and Climate Change,Environmental Services,Supplies and Services,372009,Subscriptions E372,09/06/2022,4011226-223/396,"2,280.00",APSE.
Neighbourhoods and Climate Change,Environmental Services,Supplies and Services,352001,Conference Expenses,09/06/2022,4011561-2022-04,805.20,QUEENS HALL ARTS.
Adult and Health Services,Head of Adults,Supplies and Services,338045,Services,09/06/2022,4011326-INVAJF369,"1,000.00",DEANS COURT CHAMBERS.
Resources BK0010,Digital Services,Supplies and Services,332029,Printing Stationery and Gen Off Exps,09/06/2022,4011265-16108,620.00,BORDER SIGNS & GRAPHICS.
Children and Young Peoples Services,Head of Education and Skills,Supplies and Services,384199,Miscellaneous Expenses,09/06/2022,4011531-INV-0879,"2,177.80",OPTIMUM SKILLS LTD.
Children and Young Peoples Services,Head of Education and Skills,Supplies and Services,352001,Conference Expenses,09/06/2022,4011283-CW592,900.00,CAREERWAVE LTD.
Children and Young Peoples Services,Head of Childrens Social Care,Employees,080025,Agency Staff,09/06/2022,4011275-21625827,"2,966.16",BROOK STREET UK LTD T/A BS SOCIAL CARE.
Children and Young Peoples Services,Head of Childrens Social Care,Employees,080025,Agency Staff,09/06/2022,4011275-21625829,"2,966.16",BROOK STREET UK LTD T/A BS SOCIAL CARE.
Children and Young Peoples Services,Head of Childrens Social Care,Employees,080025,Agency Staff,09/06/2022,4011275-21625832,"2,966.16",BROOK STREET UK LTD T/A BS SOCIAL CARE.
Children and Young Peoples Services,Head of Childrens Social Care,Employees,080025,Agency Staff,09/06/2022,4011275-21625833,"2,966.16",BROOK STREET UK LTD T/A BS SOCIAL CARE.
Children and Young Peoples Services,Head of Childrens Social Care,Employees,080025,Agency Staff,09/06/2022,4011275-21625834,"2,966.16",BROOK STREET UK LTD T/A BS SOCIAL CARE.
Children and Young Peoples Services,Head of Childrens Social Care,Employees,080025,Agency Staff,09/06/2022,4011275-21625835,"2,966.16",BROOK STREET UK LTD T/A BS SOCIAL CARE.
Children and Young Peoples Services,Head of Childrens Social Care,Employees,080025,Agency Staff,09/06/2022,4011275-21625836,"2,966.16",BROOK STREET UK LTD T/A BS SOCIAL CARE.
Children and Young Peoples Services,Head of Childrens Social Care,Employees,080025,Agency Staff,09/06/2022,4011275-21625837,"2,966.16",BROOK STREET UK LTD T/A BS SOCIAL CARE.
Children and Young Peoples Services,Head of Childrens Social Care,Employees,080025,Agency Staff,09/06/2022,4011275-21625839,"2,966.16",BROOK STREET UK LTD T/A BS SOCIAL CARE.
Children and Young Peoples Services,Head of Childrens Social Care,Transport,235073,Public Transport,09/06/2022,4011657-2838010112,"1,240.00",TOGETHER FOR CHILDREN SUNDERLAND LTD.
Neighbourhoods and Climate Change,Environmental Services,Transport,215022,Running Costs of Vehicles,09/06/2022,4011708-939704,"1,059.77",YOUR NRG LTD.
Neighbourhoods and Climate Change,Environmental Services,Transport,215022,Running Costs of Vehicles,09/06/2022,4011708-945839,"1,560.37",YOUR NRG LTD.
Neighbourhoods and Climate Change,Environmental Services,Transport,230005,Contract Hire,09/06/2022,4011313-35080356,581.25,CP DAVIDSON & SONS LTD.
Neighbourhoods and Climate Change,Environmental Services,Transport,230005,Contract Hire,09/06/2022,4011524-SL07231060INV,521.64,NORTHGATE VEHICLE HIRE LTD.
Regeneration Economy and Growth,Culture Sport and Tourism,Premises,145023,Cleaning and Domestic Supplies,09/06/2022,4011398-06/176811,634.20,GREENHAM TRADING LTD.
Regeneration Economy and Growth,Culture Sport and Tourism,Premises,145023,Cleaning and Domestic Supplies,09/06/2022,4011398-06/175593,623.22,GREENHAM TRADING LTD.
Neighbourhoods and Climate Change,Environmental Services,Transport,230005,Contract Hire,09/06/2022,4011524-IW06138574,502.07,NORTHGATE VEHICLE HIRE LTD.
Neighbourhoods and Climate Change,Environmental Services,Supplies and Services,304221,Equipment and Materials,09/06/2022,4011371-6915563,"15,505.20",ESE WORLD LTD.
Neighbourhoods and Climate Change,Environmental Services,Fees,901002,Consultants fees 901002,09/06/2022,4011416-10158,"1,063.00",HOWARTH LITCHFIELD PARTNERSHIP LTD.
Regeneration Economy and Growth,Corporate Property and Land,Supplies and Services,384199,Miscellaneous Expenses,09/06/2022,4011581-TEC599581,"2,666.67",RPS CONSULTING SERVICES LTD.
Regeneration Economy and Growth,Corporate Property and Land,Fees,901002,Consultants fees 901002,09/06/2022,4011581-TEC599594,"1,500.00",RPS CONSULTING SERVICES LTD.
Neighbourhoods and Climate Change,Environmental Services,Third Party Payments,430120,Rendered by Private Contractors,09/06/2022,4011381-CTIN06682421,"8,430.35",FINNING (UK) LTD.
Neighbourhoods and Climate Change,Environmental Services,Third Party Payments,430120,Rendered by Private Contractors,09/06/2022,4011381-CTIN06682422,"2,439.60",FINNING (UK) LTD.
Neighbourhoods and Climate Change,Environmental Services,Third Party Payments,430120,Rendered by Private Contractors,09/06/2022,4011381-CTIN06682482,"11,543.40",FINNING (UK) LTD.
Neighbourhoods and Climate Change,Environmental Services,Third Party Payments,430120,Rendered by Private Contractors,09/06/2022,4011381-SINV9903142,"1,843.52",FINNING (UK) LTD.
Regeneration Economy and Growth,Corporate Property and Land,Fees,901002,Consultants fees 901002,09/06/2022,4011581-TEC599172,"2,500.00",RPS CONSULTING SERVICES LTD.
Neighbourhoods and Climate Change,Technical Services CM0300,Stock A926,926900,Stock in hand-Inventory system,09/06/2022,4011303-1005286,775.20,CMT EQUIPMENT LTD.
Neighbourhoods and Climate Change,Technical Services CM0300,Stock A926,926900,Stock in hand-Inventory system,09/06/2022,4011303-1012382,"1,389.55",CMT EQUIPMENT LTD.
Neighbourhoods and Climate Change,Technical Services CM0300,Stock A926,926900,Stock in hand-Inventory system,09/06/2022,4011654-NSIN00076066,"2,352.50",THOMAS OWEN & SONS (NEWCASTLE) LTD.
Neighbourhoods and Climate Change,Technical Services CM0300,Third Party Payments,430100,Rendered by Private Contractors,09/06/2022,4011560-14185,584.64,QUANTUM POWER CONNECTIONS LTD.
Neighbourhoods and Climate Change,Technical Services CM0300,Third Party Payments,430100,Rendered by Private Contractors,09/06/2022,4011428-26266,"67,841.61",JACK COUPE & SONS LTD T/A COUPE LINE.
Neighbourhoods and Climate Change,Technical Services CM0300,Supplies and Services,304221,Equipment and Materials,09/06/2022,4011631-9045272843,849.51,TARMAC TRADING LTD.
Neighbourhoods and Climate Change,Technical Services CM0300,Supplies and Services,304221,Equipment and Materials,09/06/2022,4011670-233639,"1,489.53",TYNEDALE ROADSTONE LTD.
Regeneration Economy and Growth,Corporate Property and Land,Third Party Payments,430100,Rendered by Private Contractors,09/06/2022,4011508-37866,"1,994.11",NE & C WINDOWS & DOORS LTD.
Regeneration Economy and Growth,Corporate Property and Land,Supplies and Services,304221,Equipment and Materials,09/06/2022,4011508-38264,"5,374.49",NE & C WINDOWS & DOORS LTD.
Regeneration Economy and Growth,Corporate Property and Land,Supplies and Services,304221,Equipment and Materials,09/06/2022,4011630-JE02384-1-TL-HLB,510.00,T MANNERS & SONS LTD.
Regeneration Economy and Growth,Corporate Property and Land,Supplies and Services,304221,Equipment and Materials,09/06/2022,4011630-JE023941TLHLB,"2,100.00",T MANNERS & SONS LTD.
Regeneration Economy and Growth,Corporate Property and Land,Supplies and Services,304221,Equipment and Materials,09/06/2022,4011629-810144,"8,574.84",T CROSSLING & CO LTD.
Regeneration Economy and Growth,Corporate Property and Land,Supplies and Services,304221,Equipment and Materials,09/06/2022,4011629-810829,"2,337.01",T CROSSLING & CO LTD.
Regeneration Economy and Growth,Corporate Property and Land,Supplies and Services,304221,Equipment and Materials,09/06/2022,4011659-36858,"5,896.00",TOTAL PUMP SOLUTIONS LTD.
Neighbourhoods and Climate Change,Environmental Services,Third Party Payments,430103,Rendered by Private Contractors,09/06/2022,4011639-NEI-EXP-06-2022-009,"21,264.94",TEESDALE CONSERVATION VOLUNTEERS.
Regeneration Economy and Growth,Business Durham CL0850,Fees,901002,Consultants fees 901002,09/06/2022,4011581-TEC599170,"5,300.00",RPS CONSULTING SERVICES LTD.
Regeneration Economy and Growth,Business Durham CL0850,Premises,120009,Energy Costs,09/06/2022,4011356-000012395710,"2,412.08",EDF ENERGY CUSTOMERS PLC T/A EDF ENERGY.
Regeneration Economy and Growth,Business Durham CL0850,Premises,120009,Energy Costs,09/06/2022,4011356-000012392403,"20,131.73",EDF ENERGY CUSTOMERS PLC T/A EDF ENERGY.
Regeneration Economy and Growth,Business Durham CL0850,Premises,120009,Energy Costs,09/06/2022,4011356-000012398350,"12,253.32",EDF ENERGY CUSTOMERS PLC T/A EDF ENERGY.
Regeneration Economy and Growth,Business Durham CL0850,Premises,120009,Energy Costs,09/06/2022,4011356-000012405249,"3,701.47",EDF ENERGY CUSTOMERS PLC T/A EDF ENERGY.
Regeneration Economy and Growth,Business Durham CL0850,Supplies and Services,338066,Services,09/06/2022,4011673-INV-14377,"2,708.33",UMI COMMERCIAL LTD.
Regeneration Economy and Growth,Development and Housing,Supplies and Services,338027,Services,09/06/2022,4011442-491269A,"1,000.00",KINGS CHAMBERS.
Neighbourhoods and Climate Change,Environmental Services,Supplies and Services,384199,Miscellaneous Expenses,09/06/2022,4011562-RAD52729,620.00,RA DALTON LTD.
Neighbourhoods and Climate Change,Environmental Services,Supplies and Services,384199,Miscellaneous Expenses,09/06/2022,4011562-RAD52901,620.00,RA DALTON LTD.
Neighbourhoods and Climate Change,Environmental Services,Supplies and Services,384899,Miscellaneous Expenses,09/06/2022,4011346-NEI-EXP-06-2022-011,"15,612.00",DURHAM WILDLIFE TRUST LTD.
Neighbourhoods and Climate Change,Environmental Services,Supplies and Services,384899,Miscellaneous Expenses,09/06/2022,4011409-NEI-EXP-06-2022-012,"2,516.00",HARTLEPOOL BOROUGH COUNCIL.
Neighbourhoods and Climate Change,Environmental Services,Supplies and Services,384899,Miscellaneous Expenses,09/06/2022,4011676-NEI-EXP-06-2022-015,"21,829.00",UNIVERSITY OF NEWCASTLE UPON TYNE.
Regeneration Economy and Growth,Transport and Contracted Services,Third Party Payments,440999,Other third party payments E440,09/06/2022,4011240-100698,"1,263.00",BAYDALE CONTROL SYSTEMS LTD.
Regeneration Economy and Growth,Transport and Contracted Services,Third Party Payments,430106,Rendered by Private Contractors,09/06/2022,4011364-3994/0622,"2,290.00",ELLIOTTS OF TRIMDON.
Regeneration Economy and Growth,Transport and Contracted Services,Construction work A908,908105,Construction work,09/06/2022,4011278-28667,"3,681.84",BUS SHELTERS LTD.
Neighbourhoods and Climate Change,Environmental Services,Fees,901002,Consultants fees 901002,09/06/2022,4011581-TEC599187,"1,200.00",RPS CONSULTING SERVICES LTD.
Neighbourhoods and Climate Change,Environmental Services,Fees,901002,Consultants fees 901002,09/06/2022,4011581-TEC599551,"2,000.00",RPS CONSULTING SERVICES LTD.
Neighbourhoods and Climate Change,Environmental Services,Fees,901002,Consultants fees 901002,09/06/2022,4011581-TEC599557,"2,000.00",RPS CONSULTING SERVICES LTD.
Adult and Health Services,Commissioning inc Supporting People,Third Party Payments,479111,Purchase of Care,09/06/2022,4011456-03/06/2022,"11,757.00",MAIN - TAKING AUTISM PERSONALLY.
Adult and Health Services,Commissioning inc Supporting People,Third Party Payments,479111,Purchase of Care,09/06/2022,4011571-27-619,"31,675.04",RETHINK MENTAL ILLNESS LTD.
Adult and Health Services,Head of Adults,Supplies and Services,338429,Services,09/06/2022,4011306-JOB001/20720,650.00,COLIN JOBLING T/A RAINBOW INTERNATIONAL.
Adult and Health Services,Head of Adults,Transport,230005,Contract Hire,09/06/2022,4011650-240,912.56,THE TAXI COMPANY (MURTON) LTD.
Adult and Health Services,Head of Adults,Transport,230005,Contract Hire,09/06/2022,4011206-52227-SED132,936.00,24/7 TAXI SERVICES (PETERLEE) LTD.
Adult and Health Services,Head of Adults,Transport,230005,Contract Hire,09/06/2022,4011351-1331,"2,352.00",EAST DURHAM TAXIS.
Adult and Health Services,Head of Adults,Transport,230005,Contract Hire,09/06/2022,4011615-07201,819.28,STANLEY TRAVEL (NORTH EAST) LTD.
Adult and Health Services,Head of Adults,Supplies and Services,304516,Equipment and Materials,09/06/2022,4011247-INV-616,"1,049.00",BILL SCOTT TAXIS LTD.
Regeneration Economy and Growth,Culture Sport and Tourism,Supplies and Services,338047,Services,09/06/2022,4011675-22314461395-1,590.63,UNIVERSAL PICTURES INTERNATIONAL UK & EIRE LTD.
Adult and Health Services,Central/Other,Debtors,930140,Debtor - Independent Sector Care Providers,09/06/2022,4011470-CANX_REPAYPP12/203,920.53,MENCAP.
Adult and Health Services,Central/Other,Debtors,930140,Debtor - Independent Sector Care Providers,09/06/2022,4011470-CANX_REPAYPP13/202,926.00,MENCAP.
Resources BK0010,Digital Services,Vehicles Equipment Furniture and Fittings,912701,Computer equipment,09/06/2022,4011327-7402819746,"8,210.20",DELL COMPUTER CORPORATION LTD.
Resources BK0010,Digital Services,Supplies and Services,342033,Computers and Communications,09/06/2022,4011327-7402819602,"9,683.00",DELL COMPUTER CORPORATION LTD.
Resources BK0010,HR & Employee Services,Supplies and Services,338094,Services,09/06/2022,4011642-6734,818.00,THE DURHAM CENTRE LTD.
Dedicated Schools Grant BG0015,DSG High Needs Block,Transfer Payments,510025,School Children,09/06/2022,4011251-MAY2022TOPUP-1,515.00,BISHOP HOGARTH CATHOLIC EDUCATION TRUST.
Dedicated Schools Grant BG0015,DSG High Needs Block,Transfer Payments,510025,School Children,09/06/2022,4011353-MAY2022TOPUP,656.00,EDEN LEARNING TRUST T/A CHILTON ACADEMY.
Dedicated Schools Grant BG0015,DSG High Needs Block,Transfer Payments,510025,School Children,09/06/2022,4011365-MAY2022TOPUP,"1,008.00",EMERALDS LITTLE GEMS DAYCARE LTD.
Dedicated Schools Grant BG0015,DSG High Needs Block,Transfer Payments,510025,School Children,09/06/2022,4011619-MAY2022TOPUP,"3,194.00",STEPHENSON WAY ACADEMY & NURSERY SCHOOL.
Dedicated Schools Grant BG0015,DSG High Needs Block,Transfer Payments,510025,School Children,09/06/2022,4011625-MAY2022TOPUP,"1,900.00",SUNSHINE DAY NURSERY LTD.
Dedicated Schools Grant BG0015,DSG High Needs Block,Transfer Payments,510025,School Children,09/06/2022,4011679-MAY2022TOPUP,"1,267.00",USHAW MOOR DAYCARE.
Dedicated Schools Grant BG0015,DSG High Needs Block,Transfer Payments,510025,School Children,09/06/2022,4011706-MAY2022TOPUP,"1,980.00",YORK HOUSE NURSERY.
Children and Young Peoples Services,Head of Education and Skills,Transfer Payments,510026,School Children,09/06/2022,4011325-MAY2022TOPUP,950.00,DAYPARK LTD T/A YELLOW WELLIES.
Children and Young Peoples Services,Head of Education and Skills,Transfer Payments,510027,School Children,09/06/2022,4011415-MAY2022TOPUP,756.00,HOUSE OF EDEN LTD.
Children and Young Peoples Services,Head of Education and Skills,Transfer Payments,510026,School Children,09/06/2022,4011449-MAY2022TOPUP,"1,008.00",LITTLE CUBS DAY NURSERY.
Children and Young Peoples Services,Head of Education and Skills,Transfer Payments,510026,School Children,09/06/2022,4011450-MAY2022TOPUP,853.00,LITTLE WAVES DAY NURSERY LTD.
Children and Young Peoples Services,Head of Education and Skills,Transfer Payments,510026,School Children,09/06/2022,4011647-MAY2022TOPUP,"1,267.00",THE NURSERY.
Children and Young Peoples Services,Head of Education and Skills,Transfer Payments,510026,School Children,09/06/2022,4011656-MAY2022TOPUP,"1,008.00",TM NURSERY ENTERPRISES LTD T/A JACK IN THE BOX DAYCARE.
Children and Young Peoples Services,Head of Education and Skills,Transfer Payments,510026,School Children,09/06/2022,4011704-MAY2022TOPUP,"1,758.00",WINGATE COMMUNITY CHILDCARE LTD.
Children and Young Peoples Services,Head of Education and Skills,Fees,901002,Consultants fees 901002,09/06/2022,4011581-TEC599174,"5,000.00",RPS CONSULTING SERVICES LTD.
Children and Young Peoples Services,Head of Education and Skills,Transport,230009,Contract Hire,09/06/2022,4011615-07195,"1,607.97",STANLEY TRAVEL (NORTH EAST) LTD.
Children and Young Peoples Services,Head of Education and Skills,Transport,230007,Contract Hire,09/06/2022,4011615-07211,"1,080.00",STANLEY TRAVEL (NORTH EAST) LTD.
Children and Young Peoples Services,Head of Education and Skills,Transport,230007,Contract Hire,09/06/2022,4011263-G1/MAY,817.00,BOBS TAXIS.
Children and Young Peoples Services,Head of Education and Skills,Transport,230007,Contract Hire,09/06/2022,4011577-1900,"1,140.00",RON`S TAXIS (FISHBURN).
Children and Young Peoples Services,Head of Education and Skills,Construction work A908,908105,Construction work,09/06/2022,4011581-TEC599568,712.00,RPS CONSULTING SERVICES LTD.
Children and Young Peoples Services,Head of Education and Skills,Fees,901002,Consultants fees 901002,09/06/2022,4011581-TEC599181,"3,300.00",RPS CONSULTING SERVICES LTD.
Children and Young Peoples Services,Head of Education and Skills,Transport,230007,Contract Hire,09/06/2022,4011243-4495,"1,140.00",BENS TAXIS.
Children and Young Peoples Services,Head of Education and Skills,Transport,230007,Contract Hire,09/06/2022,4011304-C/11447,"3,762.00",COCHRANES T/A KELVIN TRAVEL.
Children and Young Peoples Services,Head of Education and Skills,Transport,230008,Contract Hire,09/06/2022,4011615-07210,"2,232.00",STANLEY TRAVEL (NORTH EAST) LTD.
Children and Young Peoples Services,Head of Education and Skills,Transport,230008,Contract Hire,09/06/2022,4011206-52215,"3,021.00",24/7 TAXI SERVICES (PETERLEE) LTD.
Children and Young Peoples Services,Head of Education and Skills,Transport,230012,Contract Hire,09/06/2022,4011206-52227,"2,850.00",24/7 TAXI SERVICES (PETERLEE) LTD.
Children and Young Peoples Services,Head of Education and Skills,Fees,901002,Consultants fees 901002,09/06/2022,4011581-TEC599564,500.00,RPS CONSULTING SERVICES LTD.
Children and Young Peoples Services,Head of Education and Skills,Transport,230007,Contract Hire,09/06/2022,4011615-07194,988.00,STANLEY TRAVEL (NORTH EAST) LTD.
Children and Young Peoples Services,Head of Education and Skills,Transport,230007,Contract Hire,09/06/2022,4011476-446,608.00,MICKS TAXIS - MURTON.
Children and Young Peoples Services,Head of Education and Skills,Transport,230007,Contract Hire,09/06/2022,4011476-447,970.33,MICKS TAXIS - MURTON.
Dedicated Schools Grant BG0015,DSG High Needs Block,Central Support and Other Recharges,689989,Unclassified E690,09/06/2022,4011205-MAY2022TOPUP,"2,196.00",1EXCELLENCE MULTI ACADEMY TRUST.
Dedicated Schools Grant BG0015,DSG High Needs Block,Central Support and Other Recharges,689988,Unclassified E690,09/06/2022,4011212-MAY2022TOPUP,949.00,ACRE RIGG ACADEMY.
Dedicated Schools Grant BG0015,DSG High Needs Block,Central Support and Other Recharges,689988,Unclassified E690,09/06/2022,4011214-MAY2022TOPUP,"3,574.00",ADVANCE LEARNING PARTNERSHIP.
Dedicated Schools Grant BG0015,DSG High Needs Block,Central Support and Other Recharges,689989,Unclassified E690,09/06/2022,4011214-MAY2022TOPUP-1,"3,010.00",ADVANCE LEARNING PARTNERSHIP.
Dedicated Schools Grant BG0015,DSG High Needs Block,Central Support and Other Recharges,689989,Unclassified E690,09/06/2022,4011250-MAY2022TOPUP,"1,045.00",BISHOP CHADWICK CATHOLIC EDUCATION TRUST (NSCET).
Dedicated Schools Grant BG0015,DSG High Needs Block,Central Support and Other Recharges,689988,Unclassified E690,09/06/2022,4011252-MAY2022TOPUP,"2,390.00",BISHOP HOGARTH CATHOLIC EDUCATION TRUST.
Dedicated Schools Grant BG0015,DSG High Needs Block,Central Support and Other Recharges,689988,Unclassified E690,09/06/2022,4011253-MAY2022TOPUP,"2,160.00",BISHOP IAN RAMSEY C OF E PRIMARY SCHOOL.
Dedicated Schools Grant BG0015,DSG High Needs Block,Central Support and Other Recharges,689989,Unclassified E690,09/06/2022,4011255-MAY2022TOPUP,"2,769.00",BISHOP WILKINSON CE TRUST.
Dedicated Schools Grant BG0015,DSG High Needs Block,Central Support and Other Recharges,689989,Unclassified E690,09/06/2022,4011256-MAY2022TOPUP,"3,646.00",BISHOP WILKINSON CE TRUST.
Dedicated Schools Grant BG0015,DSG High Needs Block,Central Support and Other Recharges,689988,Unclassified E690,09/06/2022,4011258-MAY2022TOPUP,"3,022.00",BISHOP WILKINSON CE TRUST.
Dedicated Schools Grant BG0015,DSG High Needs Block,Central Support and Other Recharges,689988,Unclassified E690,09/06/2022,4011276-MAY2022TOPUP,907.00,BROWNEY PRIMARY ACADEMY.
Dedicated Schools Grant BG0015,DSG High Needs Block,Central Support and Other Recharges,689989,Unclassified E690,09/06/2022,4011276-MAY2022TOPUP-1,"1,368.00",BROWNEY PRIMARY ACADEMY.
Dedicated Schools Grant BG0015,DSG High Needs Block,Central Support and Other Recharges,689989,Unclassified E690,09/06/2022,4011299-MAY2022TOPUP,"5,083.00",CLEVES CROSS LEARNING TRUST T/A ROSA STREET PRIMARY SCHOOL.
Dedicated Schools Grant BG0015,DSG High Needs Block,Central Support and Other Recharges,689989,Unclassified E690,09/06/2022,4011328-MAY2022TOPUP,"1,182.00",DENE HOUSE PRIMARY SCHOOL (ACADEMY).
Dedicated Schools Grant BG0015,DSG High Needs Block,Central Support and Other Recharges,689989,Unclassified E690,09/06/2022,4011339-MAY2022TOPUP,"3,181.00",DURHAM & NEWCASTLE DIOCESAN LEARNING TRUST T/A STANHOPE BARRINGTON C OF E PRIMARY SCHOOL.
Dedicated Schools Grant BG0015,DSG High Needs Block,Central Support and Other Recharges,689989,Unclassified E690,09/06/2022,4011352-MAY2022TOPUP,"1,530.00",EDEN ACADEMY TRUST LTD T/A BLUEBELL MEADOW PRIMARY SCHOOL.
Dedicated Schools Grant BG0015,DSG High Needs Block,Central Support and Other Recharges,689988,Unclassified E690,09/06/2022,4011432-MAY2022TOPUP,"5,587.00",JIGSAW LEARNING TRUST.
Dedicated Schools Grant BG0015,DSG High Needs Block,Central Support and Other Recharges,689989,Unclassified E690,09/06/2022,4011613-MAY2022TOPUP,"1,985.00",STANLEY LEARNING PARTNERSHIP.
Dedicated Schools Grant BG0015,DSG High Needs Block,Central Support and Other Recharges,689988,Unclassified E690,09/06/2022,4011614-MAY2022TOPUP,"1,958.00",STANLEY LEARNING PARTNERSHIP.
Dedicated Schools Grant BG0015,DSG High Needs Block,Central Support and Other Recharges,689988,Unclassified E690,09/06/2022,4011669-MAY2022TOPUP,"2,764.00",TUDHOE LEARNING TRUST T/A TUDHOE COLLIERY PRIMARY SCHOOL.
Children and Young Peoples Services,Head of Education and Skills,Transport,230007,Contract Hire,09/06/2022,4011507-MAY22/5431,"1,520.00",ND TAXIS.
Children and Young Peoples Services,Head of Education and Skills,Transport,230009,Contract Hire,09/06/2022,4011262-41002,524.19,BLUELINE SOUTH INCORPORATING NAVIGATION TAXIS T/A BLUELINE TAXIS.
Children and Young Peoples Services,Head of Education and Skills,Transport,230007,Contract Hire,09/06/2022,4011389-5937,"1,576.62",GEM TRAVEL.
Children and Young Peoples Services,Head of Education and Skills,Transport,230007,Contract Hire,09/06/2022,4011615-07200,978.88,STANLEY TRAVEL (NORTH EAST) LTD.
Children and Young Peoples Services,Head of Education and Skills,Transport,230035,Contract Hire,09/06/2022,4011506-5MAY2022,"1,900.00",NC TAXI`S.
Children and Young Peoples Services,Head of Education and Skills,Transport,230007,Contract Hire,09/06/2022,4011691-7614,"2,067.01",WEARDALE PRIVATE HIRE.
Children and Young Peoples Services,Head of Education and Skills,Transport,230007,Contract Hire,09/06/2022,4011632-05/2022/005,566.24,TARNS TAXIS LTD.
Children and Young Peoples Services,Head of Education and Skills,Transport,230007,Contract Hire,09/06/2022,4011427-6149,"1,467.37",J YOUNG T/A VIP TAXIS.
Children and Young Peoples Services,Head of Education and Skills,Transport,230007,Contract Hire,09/06/2022,4011263-G/MAY,"3,034.30",BOBS TAXIS.
Children and Young Peoples Services,Head of Education and Skills,Transport,230007,Contract Hire,09/06/2022,4011684-31-APRIL22,627.44,WALTONS TAXIS.
Children and Young Peoples Services,Head of Education and Skills,Transport,230007,Contract Hire,09/06/2022,4011684-32-MAY22,"1,083.76",WALTONS TAXIS.
Children and Young Peoples Services,Head of Education and Skills,Transport,230034,Contract Hire,09/06/2022,4011262-40879,936.98,BLUELINE SOUTH INCORPORATING NAVIGATION TAXIS T/A BLUELINE TAXIS.
Children and Young Peoples Services,Head of Education and Skills,Transport,235005,Public Transport,09/06/2022,4011228-118892,"2,773.98",ARRIVA DURHAM COUNTY LTD.
Children and Young Peoples Services,Head of Education and Skills,Transport,230034,Contract Hire,09/06/2022,4011243-4492/MAY,"1,767.00",BENS TAXIS.
Children and Young Peoples Services,Head of Education and Skills,Transport,230008,Contract Hire,09/06/2022,4011615-07207,"1,843.00",STANLEY TRAVEL (NORTH EAST) LTD.
Children and Young Peoples Services,Head of Education and Skills,Transport,230007,Contract Hire,09/06/2022,4011637-4055-MAY22,"3,600.00",TED WILFORD COACHES.
Children and Young Peoples Services,Head of Education and Skills,Transport,230007,Contract Hire,09/06/2022,4011262-40982,601.88,BLUELINE SOUTH INCORPORATING NAVIGATION TAXIS T/A BLUELINE TAXIS.
Children and Young Peoples Services,Head of Education and Skills,Transport,230007,Contract Hire,09/06/2022,4011304-C/11446,"6,764.00",COCHRANES T/A KELVIN TRAVEL.
Children and Young Peoples Services,Head of Education and Skills,Transport,230034,Contract Hire,09/06/2022,4011262-39965,"1,060.12",BLUELINE SOUTH INCORPORATING NAVIGATION TAXIS T/A BLUELINE TAXIS.
Children and Young Peoples Services,Head of Education and Skills,Transport,230035,Contract Hire,09/06/2022,4011262-40452,"2,588.02",BLUELINE SOUTH INCORPORATING NAVIGATION TAXIS T/A BLUELINE TAXIS.
Children and Young Peoples Services,Head of Education and Skills,Transport,230009,Contract Hire,09/06/2022,4011351-1324,"2,546.00",EAST DURHAM TAXIS.
Children and Young Peoples Services,Head of Education and Skills,Transport,230007,Contract Hire,09/06/2022,4011427-6148,996.74,J YOUNG T/A VIP TAXIS.
Children and Young Peoples Services,Head of Education and Skills,Transport,230004,Contract Hire,09/06/2022,4011691-7617,827.45,WEARDALE PRIVATE HIRE.
Children and Young Peoples Services,Head of Education and Skills,Transport,230003,Contract Hire,09/06/2022,4011389-5936,"3,811.40",GEM TRAVEL.
Children and Young Peoples Services,Head of Education and Skills,Transport,230003,Contract Hire,09/06/2022,4011579-ROXDCC272,"4,728.72",ROXBYS BUS HIRE.
Children and Young Peoples Services,Head of Education and Skills,Transport,230003,Contract Hire,09/06/2022,4011304-C/11448,"2,432.00",COCHRANES T/A KELVIN TRAVEL.
Children and Young Peoples Services,Head of Education and Skills,Transport,230003,Contract Hire,09/06/2022,4011304-C/11449,"2,812.00",COCHRANES T/A KELVIN TRAVEL.
Children and Young Peoples Services,Head of Education and Skills,Transport,230003,Contract Hire,09/06/2022,4011304-C/11450,"3,572.00",COCHRANES T/A KELVIN TRAVEL.
Children and Young Peoples Services,Head of Education and Skills,Transport,230003,Contract Hire,09/06/2022,4011579-ROXDCC271,"2,660.00",ROXBYS BUS HIRE.
Children and Young Peoples Services,Head of Education and Skills,Transport,230003,Contract Hire,09/06/2022,4011579-ROXDCC273,"5,320.00",ROXBYS BUS HIRE.
Children and Young Peoples Services,Head of Education and Skills,Transport,230003,Contract Hire,09/06/2022,4011637-5030-MAY22,"3,600.00",TED WILFORD COACHES.
Children and Young Peoples Services,Head of Education and Skills,Transport,230003,Contract Hire,09/06/2022,4011637-5300-MAY22,"3,000.00",TED WILFORD COACHES.
Children and Young Peoples Services,Head of Education and Skills,Transport,230008,Contract Hire,09/06/2022,4011232-098,"2,607.00",AUCKLAND TRAVEL.
Children and Young Peoples Services,Head of Education and Skills,Transport,230006,Contract Hire,09/06/2022,4011262-41013,660.00,BLUELINE SOUTH INCORPORATING NAVIGATION TAXIS T/A BLUELINE TAXIS.
Children and Young Peoples Services,Head of Education and Skills,Transport,230007,Contract Hire,09/06/2022,4011427-6154-2022,520.00,J YOUNG T/A VIP TAXIS.
Children and Young Peoples Services,Head of Education and Skills,Transport,230008,Contract Hire,09/06/2022,4011437-A026-MAY22,"2,656.00",KEITH GIBSON T/A KEITH`S TAXIS.
Children and Young Peoples Services,Head of Education and Skills,Transport,230008,Contract Hire,09/06/2022,4011443-1037,"1,756.00",KINGSWAY CABS LTD.
Children and Young Peoples Services,Head of Education and Skills,Transport,230006,Contract Hire,09/06/2022,4011476-448,"1,140.00",MICKS TAXIS - MURTON.
Children and Young Peoples Services,Head of Education and Skills,Transport,230008,Contract Hire,09/06/2022,4011482-A009-MAY22,"2,590.84",MOLLY`S TAXIS LTD.
Children and Young Peoples Services,Head of Education and Skills,Transport,230008,Contract Hire,09/06/2022,4011482-A051-MAY22,"3,363.00",MOLLY`S TAXIS LTD.
Children and Young Peoples Services,Head of Education and Skills,Transport,230008,Contract Hire,09/06/2022,4011482-A161-MAY22,"2,565.00",MOLLY`S TAXIS LTD.
Children and Young Peoples Services,Head of Education and Skills,Transport,230008,Contract Hire,09/06/2022,4011482-A190-APRIL22,822.00,MOLLY`S TAXIS LTD.
Children and Young Peoples Services,Head of Education and Skills,Transport,230008,Contract Hire,09/06/2022,4011578-9-MAY22,"2,160.00",ROUTE 1.
Children and Young Peoples Services,Head of Education and Skills,Transport,230006,Contract Hire,09/06/2022,4011596-37,"1,900.00",SEBASTIAN`S TAXI.
Children and Young Peoples Services,Head of Education and Skills,Transport,230007,Contract Hire,09/06/2022,4011691-7615,984.50,WEARDALE PRIVATE HIRE.
Dedicated Schools Grant BG0015,DSG High Needs Block,Central Support and Other Recharges,689988,Unclassified E690,09/06/2022,4011249-MAY2022TOPUP,"3,629.00",BISHOP AUCKLAND COLLEGE.
Dedicated Schools Grant BG0015,DSG High Needs Block,Central Support and Other Recharges,689988,Unclassified E690,09/06/2022,4011354-MAY2022TOPUP,"2,973.00",EDEN LEARNING TRUST T/A SEAHAM HIGH SCHOOL.
Dedicated Schools Grant BG0015,DSG High Needs Block,Central Support and Other Recharges,689988,Unclassified E690,09/06/2022,4011355-MAY2022TOPUP,"1,379.00",EDEN LEARNING TRUST T/A TANFIELD SCHOOL.
Dedicated Schools Grant BG0015,DSG High Needs Block,Central Support and Other Recharges,689988,Unclassified E690,09/06/2022,4011372-MAY2022TOPUP,"8,155.00",EXCEL ACADEMY PARTNERSHIP T/A FRAMWELLGATE SCHOOL DURHAM.
Dedicated Schools Grant BG0015,DSG High Needs Block,Central Support and Other Recharges,689988,Unclassified E690,09/06/2022,4011441-MAY2022TOPUP,"1,720.00",KING JAMES I ACADEMY.
Dedicated Schools Grant BG0015,DSG High Needs Block,Central Support and Other Recharges,689988,Unclassified E690,09/06/2022,4011511-MAY2022TOPUP,710.00,NEW COLLEGE ACADEMIES TRUST - CONSETT ACADEMY.
Dedicated Schools Grant BG0015,DSG High Needs Block,Central Support and Other Recharges,689989,Unclassified E690,09/06/2022,4011522-MAY2022TOPUP-1,779.00,NORTH EAST LEARNING TRUST (NELT).
Dedicated Schools Grant BG0015,DSG High Needs Block,Central Support and Other Recharges,689988,Unclassified E690,09/06/2022,4011535-MAY2022TOPUP,735.00,PARK VIEW ACADEMY.
Children and Young Peoples Services,Head of Education and Skills,Transport,230012,Contract Hire,09/06/2022,4011615-07204,"1,430.89",STANLEY TRAVEL (NORTH EAST) LTD.
Children and Young Peoples Services,Head of Education and Skills,Transport,230008,Contract Hire,09/06/2022,4011615-07208,"2,495.08",STANLEY TRAVEL (NORTH EAST) LTD.
Children and Young Peoples Services,Head of Education and Skills,Transport,230008,Contract Hire,09/06/2022,4011691-7623,"5,314.11",WEARDALE PRIVATE HIRE.
Children and Young Peoples Services,Head of Education and Skills,Transport,230008,Contract Hire,09/06/2022,4011206-52210,"2,626.26",24/7 TAXI SERVICES (PETERLEE) LTD.
Children and Young Peoples Services,Head of Education and Skills,Transport,230008,Contract Hire,09/06/2022,4011218-009MAY2022,"1,980.00",AIRPORT TRANSFER DURHAM.
Children and Young Peoples Services,Head of Education and Skills,Transport,230008,Contract Hire,09/06/2022,4011443-1033,"2,781.18",KINGSWAY CABS LTD.
Children and Young Peoples Services,Head of Education and Skills,Transport,230008,Contract Hire,09/06/2022,4011206-52213,"3,658.26",24/7 TAXI SERVICES (PETERLEE) LTD.
Children and Young Peoples Services,Head of Education and Skills,Transport,230008,Contract Hire,09/06/2022,4011375-E003-MAY22,"2,470.00",FAIR FARE TRAVEL (TAXIS).
Children and Young Peoples Services,Head of Education and Skills,Transport,230008,Contract Hire,09/06/2022,4011443-1040,"3,052.80",KINGSWAY CABS LTD.
Children and Young Peoples Services,Head of Education and Skills,Transport,230008,Contract Hire,09/06/2022,4011615-07196,"3,070.50",STANLEY TRAVEL (NORTH EAST) LTD.
Children and Young Peoples Services,Head of Education and Skills,Transport,230008,Contract Hire,09/06/2022,4011615-07203,"1,235.00",STANLEY TRAVEL (NORTH EAST) LTD.
Children and Young Peoples Services,Head of Education and Skills,Transport,230008,Contract Hire,09/06/2022,4011692-15390-50,"1,583.27",WENDYS` TAXIS.
Children and Young Peoples Services,Head of Education and Skills,Transport,230008,Contract Hire,09/06/2022,4011692-15395-50,"1,520.00",WENDYS` TAXIS.
Children and Young Peoples Services,Head of Education and Skills,Transport,230008,Contract Hire,09/06/2022,4011206-52217,"4,696.41",24/7 TAXI SERVICES (PETERLEE) LTD.
Children and Young Peoples Services,Head of Education and Skills,Transport,230008,Contract Hire,09/06/2022,4011206-52225,"3,507.21",24/7 TAXI SERVICES (PETERLEE) LTD.
Children and Young Peoples Services,Head of Education and Skills,Transport,230008,Contract Hire,09/06/2022,4011280-W112034,"1,773.27",C & R TAXIS.
Children and Young Peoples Services,Head of Education and Skills,Transport,230008,Contract Hire,09/06/2022,4011320-537,"2,515.79",DA TRAVEL.
Children and Young Peoples Services,Head of Education and Skills,Transport,230008,Contract Hire,09/06/2022,4011320-538,"1,725.20",DA TRAVEL.
Children and Young Peoples Services,Head of Education and Skills,Transport,230008,Contract Hire,09/06/2022,4011427-6150,"1,207.52",J YOUNG T/A VIP TAXIS.
Children and Young Peoples Services,Head of Education and Skills,Transport,230008,Contract Hire,09/06/2022,4011607-AL012103,"2,630.93",SPENNYMOOR TAXIS.
Children and Young Peoples Services,Head of Education and Skills,Transport,230008,Contract Hire,09/06/2022,4011691-7621,"3,030.50",WEARDALE PRIVATE HIRE.
Children and Young Peoples Services,Head of Education and Skills,Transport,230008,Contract Hire,09/06/2022,4011443-1051,"1,650.00",KINGSWAY CABS LTD.
Children and Young Peoples Services,Head of Education and Skills,Transport,230008,Contract Hire,09/06/2022,4011206-52219,"1,881.00",24/7 TAXI SERVICES (PETERLEE) LTD.
Children and Young Peoples Services,Head of Education and Skills,Transport,230008,Contract Hire,09/06/2022,4011206-52220,"3,040.00",24/7 TAXI SERVICES (PETERLEE) LTD.
Children and Young Peoples Services,Head of Education and Skills,Transport,230006,Contract Hire,09/06/2022,4011206-52221,"1,520.00",24/7 TAXI SERVICES (PETERLEE) LTD.
Children and Young Peoples Services,Head of Education and Skills,Transport,230008,Contract Hire,09/06/2022,4011262-41016,528.00,BLUELINE SOUTH INCORPORATING NAVIGATION TAXIS T/A BLUELINE TAXIS.
Children and Young Peoples Services,Head of Education and Skills,Transport,230008,Contract Hire,09/06/2022,4011271-BZ00403,"1,934.20",BREZ`S TAXIS.
Children and Young Peoples Services,Head of Education and Skills,Transport,230008,Contract Hire,09/06/2022,4011271-BZ00404,"1,083.00",BREZ`S TAXIS.
Children and Young Peoples Services,Head of Education and Skills,Transport,230008,Contract Hire,09/06/2022,4011443-1031-MAY22,"3,500.00",KINGSWAY CABS LTD.
Children and Young Peoples Services,Head of Education and Skills,Transport,230008,Contract Hire,09/06/2022,4011667-08-MAY22,"2,660.00",TRIDENT TAXIS.
Children and Young Peoples Services,Head of Education and Skills,Transport,230008,Contract Hire,09/06/2022,4011667-09-MAY22,"2,296.91",TRIDENT TAXIS.
Children and Young Peoples Services,Head of Education and Skills,Transport,230008,Contract Hire,09/06/2022,4011280-S006031,"2,064.35",C & R TAXIS.
Children and Young Peoples Services,Head of Education and Skills,Transport,230008,Contract Hire,09/06/2022,4011584-W014/31-3MAY,"3,122.53",S & S TRAVEL LTD.
Children and Young Peoples Services,Head of Education and Skills,Transport,230008,Contract Hire,09/06/2022,4011607-LTDD012103,"2,412.22",SPENNYMOOR TAXIS.
Children and Young Peoples Services,Head of Education and Skills,Transport,230008,Contract Hire,09/06/2022,4011443-1032,"1,980.00",KINGSWAY CABS LTD.
Children and Young Peoples Services,Head of Education and Skills,Transport,230008,Contract Hire,09/06/2022,4011615-07206,"1,368.00",STANLEY TRAVEL (NORTH EAST) LTD.
Children and Young Peoples Services,Head of Education and Skills,Transport,230006,Contract Hire,09/06/2022,4011696-WESTLEA260522,"1,530.00",WESTLEA TAXIS.
Children and Young Peoples Services,Head of Education and Skills,Transport,230008,Contract Hire,09/06/2022,4011206-52216,"4,227.50",24/7 TAXI SERVICES (PETERLEE) LTD.
Children and Young Peoples Services,Head of Education and Skills,Transport,230008,Contract Hire,09/06/2022,4011280-W030031,"3,332.03",C & R TAXIS.
Children and Young Peoples Services,Head of Education and Skills,Transport,230008,Contract Hire,09/06/2022,4011319-1775,"2,090.00",DA TAXIS.
Children and Young Peoples Services,Head of Education and Skills,Transport,230008,Contract Hire,09/06/2022,4011320-541,"1,360.21",DA TRAVEL.
Children and Young Peoples Services,Head of Education and Skills,Transport,230008,Contract Hire,09/06/2022,4011396-027-2022,"2,593.98",GMC TAXIS NORTH EAST.
Children and Young Peoples Services,Head of Education and Skills,Transport,230008,Contract Hire,09/06/2022,4011427-6152-2022,"1,663.64",J YOUNG T/A VIP TAXIS.
Children and Young Peoples Services,Head of Education and Skills,Transport,230008,Contract Hire,09/06/2022,4011577-1902,"3,032.21",RON`S TAXIS (FISHBURN).
Children and Young Peoples Services,Head of Education and Skills,Transport,230008,Contract Hire,09/06/2022,4011584-S009/34,"2,730.87",S & S TRAVEL LTD.
Children and Young Peoples Services,Head of Education and Skills,Transport,230008,Contract Hire,09/06/2022,4011584-W032/34,"2,990.60",S & S TRAVEL LTD.
Children and Young Peoples Services,Head of Education and Skills,Transport,230008,Contract Hire,09/06/2022,4011584-W036/09,"2,971.60",S & S TRAVEL LTD.
Children and Young Peoples Services,Head of Education and Skills,Transport,230008,Contract Hire,09/06/2022,4011584-W178/15,"1,539.00",S & S TRAVEL LTD.
Children and Young Peoples Services,Head of Education and Skills,Transport,230008,Contract Hire,09/06/2022,4011607-012103,"2,394.00",SPENNYMOOR TAXIS.
Children and Young Peoples Services,Head of Education and Skills,Transport,230008,Contract Hire,09/06/2022,4011689-0003343,"2,289.12",WATSONS OF SPENNYMOOR.
Children and Young Peoples Services,Head of Education and Skills,Transport,230008,Contract Hire,09/06/2022,4011689-0003344,"2,419.84",WATSONS OF SPENNYMOOR.
Children and Young Peoples Services,Head of Education and Skills,Transport,230008,Contract Hire,09/06/2022,4011280-W046031,"2,227.37",C & R TAXIS.
Children and Young Peoples Services,Head of Education and Skills,Transport,230008,Contract Hire,09/06/2022,4011319-1773,"1,576.24",DA TAXIS.
Children and Young Peoples Services,Head of Education and Skills,Transport,230008,Contract Hire,09/06/2022,4011437-S020-MAY22,"2,812.76",KEITH GIBSON T/A KEITH`S TAXIS.
Children and Young Peoples Services,Head of Education and Skills,Transport,230008,Contract Hire,09/06/2022,4011437-S103-MAY22,"1,520.00",KEITH GIBSON T/A KEITH`S TAXIS.
Children and Young Peoples Services,Head of Education and Skills,Transport,230016,Contract Hire,09/06/2022,4011584-S101/33,570.35,S & S TRAVEL LTD.
Children and Young Peoples Services,Head of Education and Skills,Transport,230008,Contract Hire,09/06/2022,4011584-W056/33-MAY,"2,167.33",S & S TRAVEL LTD.
Children and Young Peoples Services,Head of Education and Skills,Transport,230008,Contract Hire,09/06/2022,4011584-W067/33,"3,038.29",S & S TRAVEL LTD.
Children and Young Peoples Services,Head of Education and Skills,Transport,230008,Contract Hire,09/06/2022,4011584-W076/33,"2,470.76",S & S TRAVEL LTD.
Children and Young Peoples Services,Head of Education and Skills,Transport,230008,Contract Hire,09/06/2022,4011607-AAN012101,"1,852.12",SPENNYMOOR TAXIS.
Children and Young Peoples Services,Head of Education and Skills,Transport,230008,Contract Hire,09/06/2022,4011607-NUB012102,"1,900.00",SPENNYMOOR TAXIS.
Children and Young Peoples Services,Head of Education and Skills,Transport,230008,Contract Hire,09/06/2022,4011691-7622,"3,118.69",WEARDALE PRIVATE HIRE.
Dedicated Schools Grant BG0015,DSG High Needs Block,Central Support and Other Recharges,689988,Unclassified E690,09/06/2022,4011343-MAY2022TOPUP,"1,413.00",DURHAM HIGH SCHOOL.
Dedicated Schools Grant BG0015,DSG High Needs Block,Central Support and Other Recharges,689988,Unclassified E690,09/06/2022,4011345-MAY2022TOPUP,"4,811.00",DURHAM SCHOOL.*
Dedicated Schools Grant BG0015,DSG High Needs Block,Central Support and Other Recharges,689987,Unclassified E690,09/06/2022,4011361-MAY2022TOPUP,"2,804.00",EDUCATION VILLAGE ACADEMY TRUST.*
Dedicated Schools Grant BG0015,DSG High Needs Block,Central Support and Other Recharges,689988,Unclassified E690,09/06/2022,4011643-MAY2022TOPUP,"5,977.00",THE EDUCATION PARTNERSHIP (UK) LTD.
Dedicated Schools Grant BG0015,DSG High Needs Block,Central Support and Other Recharges,689987,Unclassified E690,09/06/2022,4011414-MAY2022TOPUP,"4,510.00",HOPE WOOD ACADEMY.
Children and Young Peoples Services,Head of Education and Skills,Transport,230006,Contract Hire,09/06/2022,4011351-1315,"3,448.00",EAST DURHAM TAXIS.
Children and Young Peoples Services,Head of Education and Skills,Transport,230010,Contract Hire,09/06/2022,4011206-52226,"1,600.00",24/7 TAXI SERVICES (PETERLEE) LTD.
Children and Young Peoples Services,Head of Education and Skills,Transport,230010,Contract Hire,09/06/2022,4011615-07199,813.96,STANLEY TRAVEL (NORTH EAST) LTD.
Children and Young Peoples Services,Head of Education and Skills,Transport,230010,Contract Hire,09/06/2022,4011632-05/2022/003,"1,777.25",TARNS TAXIS LTD.
Children and Young Peoples Services,Head of Education and Skills,Transport,230010,Contract Hire,09/06/2022,4011694-0522,"3,242.78",WEST AUCKLAND TOWN TRAVEL (WATT).
Children and Young Peoples Services,Head of Education and Skills,Transport,230008,Contract Hire,09/06/2022,4011443-1030,"3,360.34",KINGSWAY CABS LTD.
Children and Young Peoples Services,Head of Education and Skills,Transport,230006,Contract Hire,09/06/2022,4011206-52222,"1,121.00",24/7 TAXI SERVICES (PETERLEE) LTD.
Children and Young Peoples Services,Head of Education and Skills,Transport,230006,Contract Hire,09/06/2022,4011206-52223,"1,499.00",24/7 TAXI SERVICES (PETERLEE) LTD.
Children and Young Peoples Services,Head of Education and Skills,Transport,230006,Contract Hire,09/06/2022,4011206-52224,"3,118.12",24/7 TAXI SERVICES (PETERLEE) LTD.
Children and Young Peoples Services,Head of Education and Skills,Transport,230006,Contract Hire,09/06/2022,4011231-04275,"1,250.80",ATLAS TAXIS CONSETT.
Children and Young Peoples Services,Head of Education and Skills,Transport,230006,Contract Hire,09/06/2022,4011231-04287,585.20,ATLAS TAXIS CONSETT.
Children and Young Peoples Services,Head of Education and Skills,Transport,230006,Contract Hire,09/06/2022,4011231-04288,"1,609.20",ATLAS TAXIS CONSETT.
Children and Young Peoples Services,Head of Education and Skills,Transport,230006,Contract Hire,09/06/2022,4011234-9/MAY,854.00,B&C YELLOWCAB TAXI`S.
Children and Young Peoples Services,Head of Education and Skills,Transport,230006,Contract Hire,09/06/2022,4011262-40453,"1,718.00",BLUELINE SOUTH INCORPORATING NAVIGATION TAXIS T/A BLUELINE TAXIS.
Children and Young Peoples Services,Head of Education and Skills,Transport,230006,Contract Hire,09/06/2022,4011320-539,567.79,DA TRAVEL.
Children and Young Peoples Services,Head of Education and Skills,Transport,230006,Contract Hire,09/06/2022,4011320-540,"1,306.62",DA TRAVEL.
Children and Young Peoples Services,Head of Education and Skills,Transport,230006,Contract Hire,09/06/2022,4011427-6151-2022,"1,278.43",J YOUNG T/A VIP TAXIS.
Children and Young Peoples Services,Head of Education and Skills,Transport,230006,Contract Hire,09/06/2022,4011476-449,"2,160.00",MICKS TAXIS - MURTON.
Children and Young Peoples Services,Head of Education and Skills,Transport,230006,Contract Hire,09/06/2022,4011507-MAY2022/F806,"1,170.00",ND TAXIS.
Children and Young Peoples Services,Head of Education and Skills,Transport,230004,Contract Hire,09/06/2022,4011691-7616,"1,130.50",WEARDALE PRIVATE HIRE.
Children and Young Peoples Services,Head of Education and Skills,Transport,230004,Contract Hire,09/06/2022,4011691-7618,"1,002.82",WEARDALE PRIVATE HIRE.
Dedicated Schools Grant BG0015,DSG High Needs Block,Third Party Payments,440080,Other third party payments E440,09/06/2022,4011349-MAY2022TOPUP,"5,972.00",EAST DURHAM COLLEGE.
Dedicated Schools Grant BG0015,DSG High Needs Block,Third Party Payments,440080,Other third party payments E440,09/06/2022,4011410-MAY2022TOPUP,926.00,HARTLEPOOL COLLEGE OF FURTHER EDUCATION.
Dedicated Schools Grant BG0015,DSG High Needs Block,Third Party Payments,440080,Other third party payments E440,09/06/2022,4011419-MAY2022TOPUP,"2,853.00",HUMANKIND CHARITY.
Dedicated Schools Grant BG0015,DSG High Needs Block,Third Party Payments,440080,Other third party payments E440,09/06/2022,4011512-MAY2022TOPUP,"2,405.00",NEWCASTLE COLLEGE.
Dedicated Schools Grant BG0015,DSG High Needs Block,Third Party Payments,440080,Other third party payments E440,09/06/2022,4011610-MAY2022TOPUP,"3,244.00",SPRINGBOARD SUNDERLAND TRUST.
Children and Young Peoples Services,Head of Childrens Social Care,Supplies and Services,304040,Equipment and Materials,09/06/2022,4011526-SINCC3F59923,"3,119.00",OFSTED.
Children and Young Peoples Services,Head of Childrens Social Care,Transport,240045,Car allowances E240,09/06/2022,4011626-11766,"9,964.55",SUPPORTIVE SRC LTD.
Children and Young Peoples Services,Head of Early Help Inclusion & Vulnerable Children.,Supplies and Services,304359,Equipment and Materials,09/06/2022,4011254-BMPR/903/SKIPS,700.00,BISHOP MIDDLEHAM PLANT & RECYCLING LTD.
Regeneration Economy and Growth,Culture Sport and Tourism,Supplies and Services,304259,Equipment and Materials,09/06/2022,4011401-INV-5190,847.36,GYM TECH NORTH EAST.
Regeneration Economy and Growth,Culture Sport and Tourism,Third Party Payments,430100,Rendered by Private Contractors,09/06/2022,4011385-NEI-HCL-06-2022-01,"15,000.00",FUTURE LEISURE IN COXHOE (FLIC).
Regeneration Economy and Growth,Culture Sport and Tourism,Third Party Payments,430100,Rendered by Private Contractors,09/06/2022,4011612-NEI-HCL-06-2022-02,"7,500.00",STANLEY INDOOR BOWLS CENTRE LTD.
Neighbourhoods and Climate Change,Environmental Services,Supplies and Services,338066,Services,09/06/2022,4011513-11925,"1,000.00",NEWCASTLE GATESHEAD INITIATIVE LTD.
Regeneration Economy and Growth,Culture Sport and Tourism,Supplies and Services,338047,Services,09/06/2022,4011648-SINRNT1013937,714.33,THE ROYAL NATIONAL THEATRE.
Regeneration Economy and Growth,Culture Sport and Tourism,Supplies and Services,338047,Services,09/06/2022,4011648-SINRNT1014398,685.64,THE ROYAL NATIONAL THEATRE.
Children and Young Peoples Services,Head of Education and Skills,Transport,230007,Contract Hire,09/06/2022,4011259-98,702.62,BL CARS.
Children and Young Peoples Services,Head of Education and Skills,Transport,230008,Contract Hire,09/06/2022,4011242-SMITH1MAY22,"2,018.90",BEELINE PRIVATE HIRE.
Children and Young Peoples Services,Head of Education and Skills,Transport,230016,Contract Hire,09/06/2022,4011242-SMITH2/MAY22,770.40,BEELINE PRIVATE HIRE.
Regeneration Economy and Growth,Development and Housing,Supplies and Services,384899,Miscellaneous Expenses,09/06/2022,4011504-NEI-EXP-06-2022-014,"12,949.00",NATIONAL TRUST.
Regeneration Economy and Growth,Development and Housing,Supplies and Services,384899,Miscellaneous Expenses,09/06/2022,4011594-NEI-EXP-06-2022-016,"28,430.00",SEAHAM HARBOUR CIC.
Regeneration Economy and Growth,Development and Housing,Supplies and Services,384899,Miscellaneous Expenses,09/06/2022,4011677-NEI-EXP-06-2022-017,"15,044.00",UNIVERSITY OF SUNDERLAND.
Neighbourhoods and Climate Change,Environmental Services,Supplies and Services,384899,Miscellaneous Expenses,09/06/2022,4011452-NEI-EXP-06-2022-013,"31,732.00",LIVING HISTORY NORTH EAST.
Neighbourhoods and Climate Change,Environmental Services,Supplies and Services,384899,Miscellaneous Expenses,09/06/2022,4011616-RES-06-2022-057,800.00,STARTFORTH COMMUNITY CENTRE.
Adult and Health Services,Head of Adults,Supplies and Services,338045,Services,09/06/2022,4011316-RES-06-2022-064,741.33,CYBER SPIDER LTD.
Neighbourhoods and Climate Change,Partnerships & Community Engagement Div.,Supplies and Services,384086,Miscellaneous Expenses,09/06/2022,4011644-VOUCHERPJ-TAYP02-22,605.00,THE FRIENDS OF ADDISON PARK.
Dedicated Schools Grant BG0015,DSG High Needs Block,Transfer Payments,510025,School Children,09/06/2022,4011311-MAY2022TOPUP,"1,319.00",CORE CARE EVENWOOD LTD T/A FLOWERPOTS NURSERY.
Dedicated Schools Grant BG0015,DSG High Needs Block,Transfer Payments,510025,School Children,09/06/2022,4011651-MAY2022TOPUP,"1,713.00",THE VILLAGE MONTESSORI NURSERY SCHOOL.
Children and Young Peoples Services,Head of Education and Skills,Transfer Payments,510026,School Children,09/06/2022,4011312-MAY2022TOPUP,"1,655.00",CORECARE NA LTD.
Children and Young Peoples Services,Head of Education and Skills,Transfer Payments,510027,School Children,09/06/2022,4011412-MAY2022TOPUP,853.00,HIPPITOTS LTD.
Dedicated Schools Grant BG0015,DSG High Needs Block,Central Support and Other Recharges,689988,Unclassified E690,09/06/2022,4011238-MAY2022TOPUP,"2,992.00",BARNARD CASTLE SCHOOL (PRIVATE).
Dedicated Schools Grant BG0015,DSG High Needs Block,Central Support and Other Recharges,689989,Unclassified E690,09/06/2022,4011238-MAY2022TOPUP-1,"1,280.00",BARNARD CASTLE SCHOOL (PRIVATE).
Children and Young Peoples Services,Head of Childrens Social Care,Employees,080025,Agency Staff,09/06/2022,4011457-23950,"5,543.61",MAJOR RECRUITMENT LTD.
Children and Young Peoples Services,Head of Childrens Social Care,Employees,080025,Agency Staff,09/06/2022,4011457-23999,"2,848.26",MAJOR RECRUITMENT LTD.
Children and Young Peoples Services,Head of Childrens Social Care,Employees,080025,Agency Staff,09/06/2022,4011457-24000,"6,866.62",MAJOR RECRUITMENT LTD.
Children and Young Peoples Services,Head of Childrens Social Care,Employees,080025,Agency Staff,09/06/2022,4011457-23952,"4,056.96",MAJOR RECRUITMENT LTD.
Children and Young Peoples Services,Head of Childrens Social Care,Employees,080025,Agency Staff,09/06/2022,4011457-24002,"4,293.28",MAJOR RECRUITMENT LTD.
Neighbourhoods and Climate Change,Community Protection,Supplies and Services,338045,Services,09/06/2022,4011489-116464-20/4/22,"3,000.00",REDACTED - PAYMENT TO INDIVIDUAL
Children and Young Peoples Services,Head of Education and Skills,Supplies and Services,312009,Newspapers books and periodicals E312,09/06/2022,4011566-ELL37925/DPCCS/1,521.77,REDACTED - PAYMENT TO INDIVIDUAL
Regeneration Economy and Growth,Culture Sport and Tourism,Third Party Payments,430131,Rendered by Private Contractors,09/06/2022,4011641-TT/20220502,520.00,REDACTED - PAYMENT TO INDIVIDUAL
Neighbourhoods and Climate Change,Environmental Services,Supplies and Services,338099,Services,09/06/2022,4011429-JMCK/DCC/009,"1,500.72",REDACTED - PAYMENT TO INDIVIDUAL
Neighbourhoods and Climate Change,Environmental Services,Supplies and Services,338099,Services,09/06/2022,4011492-SI-11,"9,685.00",REDACTED - PAYMENT TO INDIVIDUAL
Neighbourhoods and Climate Change,Environmental Services,Supplies and Services,338099,Services,09/06/2022,4011492-SI-12,"9,685.00",REDACTED - PAYMENT TO INDIVIDUAL
Adult and Health Services,Head of Adults,Transport,230005,Contract Hire,09/06/2022,4011461-000066,"2,036.30",REDACTED - PAYMENT TO INDIVIDUAL
Adult and Health Services,Head of Adults,Transport,230005,Contract Hire,09/06/2022,4011653-DM223-MAY22,"1,102.00",REDACTED - PAYMENT TO INDIVIDUAL
Adult and Health Services,Head of Adults,Transport,230005,Contract Hire,09/06/2022,4011621-EAS202-MAY22,"1,674.78",REDACTED - PAYMENT TO INDIVIDUAL
Adult and Health Services,Head of Adults,Transport,230005,Contract Hire,09/06/2022,4011486-THOR310522,"1,030.31",REDACTED - PAYMENT TO INDIVIDUAL
Dedicated Schools Grant BG0015,DSG High Needs Block,Transfer Payments,510025,School Children,09/06/2022,4011485-MAY2022TOPUP,"1,422.00",REDACTED - PAYMENT TO INDIVIDUAL
Dedicated Schools Grant BG0015,DSG High Needs Block,Supplies and Services,384199,Miscellaneous Expenses,09/06/2022,4011366-159,"1,575.00",REDACTED - PAYMENT TO INDIVIDUAL
Children and Young Peoples Services,Head of Education and Skills,Transport,230034,Contract Hire,09/06/2022,4011483-251,"1,628.12",REDACTED - PAYMENT TO INDIVIDUAL
Children and Young Peoples Services,Head of Education and Skills,Transport,230007,Contract Hire,09/06/2022,4011493-2060,"1,306.62",REDACTED - PAYMENT TO INDIVIDUAL
Children and Young Peoples Services,Head of Education and Skills,Transport,230007,Contract Hire,09/06/2022,4011498-9-MAY22,665.00,REDACTED - PAYMENT TO INDIVIDUAL
Children and Young Peoples Services,Head of Education and Skills,Transport,230008,Contract Hire,09/06/2022,4011491-9-MAY22,"2,420.98",REDACTED - PAYMENT TO INDIVIDUAL
Children and Young Peoples Services,Head of Education and Skills,Transport,230034,Contract Hire,09/06/2022,4011471-4510/05,"1,500.00",REDACTED - PAYMENT TO INDIVIDUAL
Children and Young Peoples Services,Head of Education and Skills,Transport,230034,Contract Hire,09/06/2022,4011490-235,"1,177.62",REDACTED - PAYMENT TO INDIVIDUAL
Children and Young Peoples Services,Head of Education and Skills,Transport,230034,Contract Hire,09/06/2022,4011496-INV0094,"2,018.55",REDACTED - PAYMENT TO INDIVIDUAL
Children and Young Peoples Services,Head of Education and Skills,Transport,230034,Contract Hire,09/06/2022,4011496-INV0103,"1,255.64",REDACTED - PAYMENT TO INDIVIDUAL
Children and Young Peoples Services,Head of Education and Skills,Transport,230035,Contract Hire,09/06/2022,4011490-237,"1,207.45",REDACTED - PAYMENT TO INDIVIDUAL
Children and Young Peoples Services,Head of Education and Skills,Transport,230035,Contract Hire,09/06/2022,4011502-084,933.41,REDACTED - PAYMENT TO INDIVIDUAL
Children and Young Peoples Services,Head of Education and Skills,Transport,230035,Contract Hire,09/06/2022,4011486-WHIT310522,"1,126.55",REDACTED - PAYMENT TO INDIVIDUAL
Children and Young Peoples Services,Head of Education and Skills,Transport,230012,Contract Hire,09/06/2022,4011499-TNB28,962.16,REDACTED - PAYMENT TO INDIVIDUAL
Children and Young Peoples Services,Head of Education and Skills,Transport,230007,Contract Hire,09/06/2022,4011490-233,"1,863.33",REDACTED - PAYMENT TO INDIVIDUAL
Children and Young Peoples Services,Head of Education and Skills,Transport,230034,Contract Hire,09/06/2022,4011471-4511/05,"1,500.00",REDACTED - PAYMENT TO INDIVIDUAL
Children and Young Peoples Services,Head of Education and Skills,Transport,230009,Contract Hire,09/06/2022,4011484-FRAM105-22,"1,489.60",REDACTED - PAYMENT TO INDIVIDUAL
Children and Young Peoples Services,Head of Education and Skills,Transport,230007,Contract Hire,09/06/2022,4011440-CTD0009/22,"1,425.00",REDACTED - PAYMENT TO INDIVIDUAL
Children and Young Peoples Services,Head of Education and Skills,Transport,230034,Contract Hire,09/06/2022,4011652-20220006,603.09,REDACTED - PAYMENT TO INDIVIDUAL
Children and Young Peoples Services,Head of Education and Skills,Transport,230007,Contract Hire,09/06/2022,4011471-6064-05,"2,470.00",REDACTED - PAYMENT TO INDIVIDUAL
Children and Young Peoples Services,Head of Education and Skills,Transport,230008,Contract Hire,09/06/2022,4011471-A011/0522,"3,979.00",REDACTED - PAYMENT TO INDIVIDUAL
Children and Young Peoples Services,Head of Education and Skills,Transport,230007,Contract Hire,09/06/2022,4011486-DURHAMGATEWAY310522,940.00,REDACTED - PAYMENT TO INDIVIDUAL
Children and Young Peoples Services,Head of Education and Skills,Transport,230008,Contract Hire,09/06/2022,4011493-2061,"1,330.00",REDACTED - PAYMENT TO INDIVIDUAL
Children and Young Peoples Services,Head of Education and Skills,Transport,230008,Contract Hire,09/06/2022,4011494-075,"2,280.00",REDACTED - PAYMENT TO INDIVIDUAL
Children and Young Peoples Services,Head of Education and Skills,Transport,230006,Contract Hire,09/06/2022,4011617-00503,"2,633.97",REDACTED - PAYMENT TO INDIVIDUAL
Children and Young Peoples Services,Head of Education and Skills,Transport,230007,Contract Hire,09/06/2022,4011618-88,"1,385.91",REDACTED - PAYMENT TO INDIVIDUAL
Children and Young Peoples Services,Head of Education and Skills,Transport,230007,Contract Hire,09/06/2022,4011653-1289-MAY22,"1,589.16",REDACTED - PAYMENT TO INDIVIDUAL
Children and Young Peoples Services,Head of Education and Skills,Transport,230008,Contract Hire,09/06/2022,4011497-143,"2,231.93",REDACTED - PAYMENT TO INDIVIDUAL
Children and Young Peoples Services,Head of Education and Skills,Transport,230008,Contract Hire,09/06/2022,4011502-085,"2,596.00",REDACTED - PAYMENT TO INDIVIDUAL
Children and Young Peoples Services,Head of Education and Skills,Transport,230008,Contract Hire,09/06/2022,4011484-CROFT105-22,"1,954.72",REDACTED - PAYMENT TO INDIVIDUAL
Children and Young Peoples Services,Head of Education and Skills,Transport,230008,Contract Hire,09/06/2022,4011433-27/05/22H,"2,678.62",REDACTED - PAYMENT TO INDIVIDUAL
Children and Young Peoples Services,Head of Education and Skills,Transport,230008,Contract Hire,09/06/2022,4011502-083,"1,710.00",REDACTED - PAYMENT TO INDIVIDUAL
Children and Young Peoples Services,Head of Education and Skills,Transport,230008,Contract Hire,09/06/2022,4011224-46,"2,994.97",REDACTED - PAYMENT TO INDIVIDUAL
Children and Young Peoples Services,Head of Education and Skills,Transport,230008,Contract Hire,09/06/2022,4011392-TT-OC2205,"1,578.52",REDACTED - PAYMENT TO INDIVIDUAL
Children and Young Peoples Services,Head of Education and Skills,Transport,230008,Contract Hire,09/06/2022,4011392-TT-OM2205,"1,964.22",REDACTED - PAYMENT TO INDIVIDUAL
Children and Young Peoples Services,Head of Education and Skills,Transport,230008,Contract Hire,09/06/2022,4011484-OAK105-22,"2,827.20",REDACTED - PAYMENT TO INDIVIDUAL
Children and Young Peoples Services,Head of Education and Skills,Transport,230008,Contract Hire,09/06/2022,4011484-OAK205-22,"2,279.05",REDACTED - PAYMENT TO INDIVIDUAL
Children and Young Peoples Services,Head of Education and Skills,Transport,230008,Contract Hire,09/06/2022,4011494-076,"2,399.00",REDACTED - PAYMENT TO INDIVIDUAL
Children and Young Peoples Services,Head of Education and Skills,Transport,230008,Contract Hire,09/06/2022,4011502-082,"1,498.64",REDACTED - PAYMENT TO INDIVIDUAL
Children and Young Peoples Services,Head of Education and Skills,Transport,230008,Contract Hire,09/06/2022,4011433-27/05/2022A,"2,717.00",REDACTED - PAYMENT TO INDIVIDUAL
Children and Young Peoples Services,Head of Education and Skills,Transport,230008,Contract Hire,09/06/2022,4011433-27/05/2022A-W103,"3,046.84",REDACTED - PAYMENT TO INDIVIDUAL
Children and Young Peoples Services,Head of Education and Skills,Transport,230008,Contract Hire,09/06/2022,4011433-27/5/22B,"3,039.81",REDACTED - PAYMENT TO INDIVIDUAL
Children and Young Peoples Services,Head of Education and Skills,Transport,230008,Contract Hire,09/06/2022,4011433-29/5/22G,"2,400.84",REDACTED - PAYMENT TO INDIVIDUAL
Children and Young Peoples Services,Head of Education and Skills,Transport,230008,Contract Hire,09/06/2022,4011464-09-M125,"1,330.00",REDACTED - PAYMENT TO INDIVIDUAL
Children and Young Peoples Services,Head of Education and Skills,Transport,230008,Contract Hire,09/06/2022,4011494-0073,"3,325.00",REDACTED - PAYMENT TO INDIVIDUAL
